Workbook

Sheet BUD
A1: 08/01/2025 | C1: Sonida Senior Living, Inc | AN1: Run Date/Time: | BA1: 2025-09-15T13:33:58.407 | BB1: | | BH1: | | BM1: |
C2: P&L Category Budget Variance Analysis | AN2: ReportId: | BB2: | | BH2: | | BM2: |
C3: KDC Properties (m1618) | BB3: | | BH3: | | BM3: |
C4: ="As of "&TEXT(EOMONTH(BN4,0),"MMMM DD, YYYY") -> As of August 31, 2025 | BB4: | | BH4: | | BM4: | | BN4: 08/01/2025
D5: Actual | E5: Budget | H5: Actual | I5: Budget | X5: Actual | AK5: Budget | BA5: Budget | BB5: | | BC5: ="Q"&ROUNDUP(MONTH(BC7)/3,0) -> Q3 | BD5: Q2 | BE5: Q1 | BF5: Q4 | BG5: Q3 | BH5: | | BI5: =BC5&" o "&BD5 -> Q3 o Q2 | BJ5: Q2 o Q1 | BK5: Q1 o Q4 | BL5: Q4 o Q3 | BM5: |
D6: Month | E6: Month | F6: Incr(Decr) | G6: % Incr(Decr) | H6: Rolling QTD | I6: Rolling QTD | J6: Incr(Decr) | K6: % Incr(Decr) | L6: =YEAR(BN4)&"-1" -> 2025-1 | M6: =YEAR(BN4)&"-2" -> 2025-2 | N6: =YEAR(BN4)&"-3" -> 2025-3 | O6: =YEAR(BN4)&"-4" -> 2025-4 | P6: =YEAR(BN4)&"-5" -> 2025-5 | Q6: =YEAR(BN4)&"-6" -> 2025-6 | R6: =YEAR(BN4)&"-7" -> 2025-7 | S6: =YEAR(BN4)&"-8" -> 2025-8 | T6: =YEAR(BN4)&"-9" -> 2025-9 | U6: =YEAR(BN4)&"-10" -> 2025-10 | V6: =YEAR(BN4)&"-11" -> 2025-11 | W6: =YEAR(BN4)&"-12" -> 2025-12 | X6: YTD | Y6: =YEAR(BN4)&"-1" -> 2025-1 | Z6: =YEAR(BN4)&"-2" -> 2025-2 | AA6: =YEAR(BN4)&"-3" -> 2025-3 | AB6: =YEAR(BN4)&"-4" -> 2025-4 | AC6: =YEAR(BN4)&"-5" -> 2025-5 | AD6: =YEAR(BN4)&"-6" -> 2025-6 | AE6: =YEAR(BN4)&"-7" -> 2025-7 | AF6: =YEAR(BN4)&"-8" -> 2025-8 | AG6: =YEAR(BN4)&"-9" -> 2025-9 | AH6: =YEAR(BN4)&"-10" -> 2025-10 | AI6: =YEAR(BN4)&"-11" -> 2025-11 | AJ6: =YEAR(BN4)&"-12" -> 2025-12 | AK6: YTD | AL6: Incr(Decr) | AM6: % Incr(Decr) | AO6: =YEAR(BN4)&"-1" -> 2025-1 | AP6: =YEAR(BN4)&"-2" -> 2025-2 | AQ6: =YEAR(BN4)&"-3" -> 2025-3 | AR6: =YEAR(BN4)&"-4" -> 2025-4 | AS6: =YEAR(BN4)&"-5" -> 2025-5 | AT6: =YEAR(BN4)&"-6" -> 2025-6 | AU6: =YEAR(BN4)&"-7" -> 2025-7 | AV6: =YEAR(BN4)&"-8" -> 2025-8 | AW6: =YEAR(BN4)&"-9" -> 2025-9 | AX6: =YEAR(BN4)&"-10" -> 2025-10 | AY6: =YEAR(BN4)&"-11" -> 2025-11 | AZ6: =YEAR(BN4)&"-12" -> 2025-12 | BA6: Annual | BB6: | | BC6: Rolling QTD | BD6: Rolling QTD | BE6: Rolling QTD | BF6: Rolling QTD | BG6: Rolling QTD | BH6: | | BI6: % Incr(Decr) | BJ6: % Incr(Decr) | BK6: % Incr(Decr) | BL6: % Incr(Decr) | BM6: |
C7: Month-Year | D7: Aug-25 | E7: Aug-25 | H7: Aug-25 | I7: Aug-25 | L7: 1 | M7: 2 | N7: 3 | O7: 4 | P7: 5 | Q7: 6 | R7: 7 | S7: 8 | T7: 9 | U7: 10 | V7: 11 | W7: 12 | Y7: 1 | Z7: 2 | AA7: 3 | AB7: 4 | AC7: 5 | AD7: 6 | AE7: 7 | AF7: 8 | AG7: 9 | AH7: 10 | AI7: 11 | AJ7: 12 | AK7: Aug-25 | AO7: 1 | AP7: 2 | AQ7: 3 | AR7: 4 | AS7: 5 | AT7: 6 | AU7: 7 | AV7: 8 | AW7: 9 | AX7: 10 | AY7: 11 | AZ7: 12 | BA7: =YEAR(BN4)&"-12" -> 2025-12 | BB7: | | BC7: Aug-25 | BD7: May-25 | BE7: Feb-25 | BF7: Nov-24 | BG7: Aug-24 | BH7: | | BM7: |
C8: Units Occupied | F8: =D8-E8 -> 0 | G8: =IFERROR(F8/E8,0) -> 0 | J8: =H8-I8 -> 0 | K8: =IFERROR(J8/I8,0) -> 0 | L8: =IF(L7>MONTH($BN$4),"",HLOOKUP($L$7,CPL!$E$5:$P$50,ROW()-4,0)) ->  | M8: =IF(M7>MONTH($BN$4),"",HLOOKUP($M$7,CPL!$E$5:$P$50,ROW()-4,0)) ->  | N8: =IF(N7>MONTH($BN$4),"",HLOOKUP($N$7,CPL!$E$5:$P$50,ROW()-4,0)) ->  | O8: =IF(O7>MONTH($BN$4),"",HLOOKUP($O$7,CPL!$E$5:$P$50,ROW()-4,0)) ->  | P8: =IF(P7>MONTH($BN$4),"",HLOOKUP($P$7,CPL!$E$5:$P$50,ROW()-4,0)) ->  | Q8: =IF(Q7>MONTH($BN$4),"",HLOOKUP($Q$7,CPL!$E$5:$P$50,ROW()-4,0)) ->  | R8: =IF(R7>MONTH($BN$4),"",HLOOKUP($R$7,CPL!$E$5:$P$50,ROW()-4,0)) ->  | S8: =IF(S7>MONTH($BN$4),"",HLOOKUP($S$7,CPL!$E$5:$P$50,ROW()-4,0)) ->  | T8: =IF(T7>MONTH($BN$4),"",HLOOKUP($T$7,CPL!$E$5:$P$50,ROW()-4,0)) ->  | U8: =IF(U7>MONTH($BN$4),"",HLOOKUP($U$7,CPL!$E$5:$P$50,ROW()-4,0)) ->  | V8: =IF(V7>MONTH($BN$4),"",HLOOKUP($V$7,CPL!$E$5:$P$50,ROW()-4,0)) ->  | W8: =IF(W7>MONTH($BN$4),"",HLOOKUP($W$7,CPL!$E$5:$P$50,ROW()-4,0)) ->  | Y8: =IF(Y7>MONTH($BN$4),"",AO8) ->  | AL8: =X8-AK8 -> 0 | AM8: =IFERROR(AL8/AK8,0) -> 0 | BB8: ="|" -> | | BH8: ="|" -> | | BI8: =IFERROR(IF(BG8<=0,-(BG8-BD8)/BD8,(BG8-BD8)/BD8),0) -> 0 | BJ8: =IFERROR(IF(BD8<=0,-(BD8-BE8)/BE8,(BD8-BE8)/BE8),0) -> 0 | BK8: 0 | BL8: 0 | BM8: ="|" -> | | BN8: H
C9: Independent Living Occupied | D9: 11.9032 | E9: 11 | F9: 0.9032 | G9: 0.08210909091 | H9: 11.688166 | I9: 11 | J9: 0.688166 | K9: 0.06256054545 | L9: =IF(L7>MONTH($BN$4),"",HLOOKUP($L$7,CPL!$E$5:$P$50,ROW()-4,0)) -> 12.0323 | M9: =IF(M7>MONTH($BN$4),"",HLOOKUP($M$7,CPL!$E$5:$P$50,ROW()-4,0)) -> 12 | N9: =IF(N7>MONTH($BN$4),"",HLOOKUP($N$7,CPL!$E$5:$P$50,ROW()-4,0)) -> 12 | O9: =IF(O7>MONTH($BN$4),"",HLOOKUP($O$7,CPL!$E$5:$P$50,ROW()-4,0)) -> 12 | P9: =IF(P7>MONTH($BN$4),"",HLOOKUP($P$7,CPL!$E$5:$P$50,ROW()-4,0)) -> 12 | Q9: =IF(Q7>MONTH($BN$4),"",HLOOKUP($Q$7,CPL!$E$5:$P$50,ROW()-4,0)) -> 12 | R9: =IF(R7>MONTH($BN$4),"",HLOOKUP($R$7,CPL!$E$5:$P$50,ROW()-4,0)) -> 11.1613 | S9: =IF(S7>MONTH($BN$4),"",HLOOKUP($S$7,CPL!$E$5:$P$50,ROW()-4,0)) -> 11.9032 | T9: =IF(T7>MONTH($BN$4),"",HLOOKUP($T$7,CPL!$E$5:$P$50,ROW()-4,0)) ->  | U9: =IF(U7>MONTH($BN$4),"",HLOOKUP($U$7,CPL!$E$5:$P$50,ROW()-4,0)) ->  | V9: =IF(V7>MONTH($BN$4),"",HLOOKUP($V$7,CPL!$E$5:$P$50,ROW()-4,0)) ->  | W9: =IF(W7>MONTH($BN$4),"",HLOOKUP($W$7,CPL!$E$5:$P$50,ROW()-4,0)) ->  | X9: 11.8871 | Y9: =IF(Y7>MONTH($BN$4),"",AO9) -> 11 | Z9: 11 | AA9: 11 | AB9: 11 | AC9: 11 | AD9: 11 | AE9: 11 | AF9: 11 | AK9: 11 | AL9: 0.8871 | AM9: 0.08064545455 | AO9: 11 | AP9: 11 | AQ9: 11 | AR9: 11 | AS9: 11 | AT9: 11 | AU9: 11 | AV9: 11 | AW9: 11 | AX9: 11 | AY9: 11 | AZ9: 11 | BA9: 11 | BB9: | | BC9: 11.688166 | BD9: 12 | BE9: 12.010766 | BF9: 11.505366 | BG9: 10.268833 | BH9: | | BI9: -0.1442639167 | BJ9: =IFERROR(IF(BD9<=0,-(BD9-BE9)/BE9,(BD9-BE9)/BE9),0) -> -0.0008963624801 | BK9: 0.04392732921 | BL9: 0.1204161174 | BM9: | | BN9: R
C10: Assisted Living Occupied | D10: 0 | E10: 0 | F10: 0 | G10: 0 | H10: 0 | I10: 0 | J10: 0 | K10: 0 | L10: =IF(L7>MONTH($BN$4),"",HLOOKUP($L$7,CPL!$E$5:$P$50,ROW()-4,0)) -> 0 | M10: =IF(M7>MONTH($BN$4),"",HLOOKUP($M$7,CPL!$E$5:$P$50,ROW()-4,0)) -> 0 | N10: =IF(N7>MONTH($BN$4),"",HLOOKUP($N$7,CPL!$E$5:$P$50,ROW()-4,0)) -> 0 | O10: =IF(O7>MONTH($BN$4),"",HLOOKUP($O$7,CPL!$E$5:$P$50,ROW()-4,0)) -> 0 | P10: =IF(P7>MONTH($BN$4),"",HLOOKUP($P$7,CPL!$E$5:$P$50,ROW()-4,0)) -> 0 | Q10: =IF(Q7>MONTH($BN$4),"",HLOOKUP($Q$7,CPL!$E$5:$P$50,ROW()-4,0)) -> 0 | R10: =IF(R7>MONTH($BN$4),"",HLOOKUP($R$7,CPL!$E$5:$P$50,ROW()-4,0)) -> 0 | S10: =IF(S7>MONTH($BN$4),"",HLOOKUP($S$7,CPL!$E$5:$P$50,ROW()-4,0)) -> 0 | T10: =IF(T7>MONTH($BN$4),"",HLOOKUP($T$7,CPL!$E$5:$P$50,ROW()-4,0)) ->  | U10: =IF(U7>MONTH($BN$4),"",HLOOKUP($U$7,CPL!$E$5:$P$50,ROW()-4,0)) ->  | V10: =IF(V7>MONTH($BN$4),"",HLOOKUP($V$7,CPL!$E$5:$P$50,ROW()-4,0)) ->  | W10: =IF(W7>MONTH($BN$4),"",HLOOKUP($W$7,CPL!$E$5:$P$50,ROW()-4,0)) ->  | X10: 0 | Y10: =IF(Y7>MONTH($BN$4),"",AO10) -> 0 | Z10: 0 | AA10: 0 | AB10: 0 | AC10: 0 | AD10: 0 | AE10: 0 | AF10: 0 | AK10: 0 | AL10: 0 | AM10: 0 | AO10: 0 | AP10: 0 | AQ10: 0 | AR10: 0 | AS10: 0 | AT10: 0 | AU10: 0 | AV10: 0 | AW10: 0 | AX10: 0 | AY10: 0 | AZ10: 0 | BA10: 0 | BB10: | | BC10: 0 | BD10: 0 | BE10: 0 | BF10: 0 | BG10: 0 | BH10: | | BI10: 0 | BJ10: =IFERROR(IF(BD10<=0,-(BD10-BE10)/BE10,(BD10-BE10)/BE10),0) -> 0 | BK10: 0 | BL10: 0 | BM10: | | BN10: R
C11: Memory Care Occupied | D11: 0 | E11: 0 | F11: 0 | G11: 0 | H11: 0 | I11: 0 | J11: 0 | K11: 0 | L11: =IF(L7>MONTH($BN$4),"",HLOOKUP($L$7,CPL!$E$5:$P$50,ROW()-4,0)) -> 0 | M11: =IF(M7>MONTH($BN$4),"",HLOOKUP($M$7,CPL!$E$5:$P$50,ROW()-4,0)) -> 0 | N11: =IF(N7>MONTH($BN$4),"",HLOOKUP($N$7,CPL!$E$5:$P$50,ROW()-4,0)) -> 0 | O11: =IF(O7>MONTH($BN$4),"",HLOOKUP($O$7,CPL!$E$5:$P$50,ROW()-4,0)) -> 0 | P11: =IF(P7>MONTH($BN$4),"",HLOOKUP($P$7,CPL!$E$5:$P$50,ROW()-4,0)) -> 0 | Q11: =IF(Q7>MONTH($BN$4),"",HLOOKUP($Q$7,CPL!$E$5:$P$50,ROW()-4,0)) -> 0 | R11: =IF(R7>MONTH($BN$4),"",HLOOKUP($R$7,CPL!$E$5:$P$50,ROW()-4,0)) -> 0 | S11: =IF(S7>MONTH($BN$4),"",HLOOKUP($S$7,CPL!$E$5:$P$50,ROW()-4,0)) -> 0 | T11: =IF(T7>MONTH($BN$4),"",HLOOKUP($T$7,CPL!$E$5:$P$50,ROW()-4,0)) ->  | U11: =IF(U7>MONTH($BN$4),"",HLOOKUP($U$7,CPL!$E$5:$P$50,ROW()-4,0)) ->  | V11: =IF(V7>MONTH($BN$4),"",HLOOKUP($V$7,CPL!$E$5:$P$50,ROW()-4,0)) ->  | W11: =IF(W7>MONTH($BN$4),"",HLOOKUP($W$7,CPL!$E$5:$P$50,ROW()-4,0)) ->  | X11: 0 | Y11: =IF(Y7>MONTH($BN$4),"",AO11) -> 0 | Z11: 0 | AA11: 0 | AB11: 0 | AC11: 0 | AD11: 0 | AE11: 0 | AF11: 0 | AK11: 0 | AL11: 0 | AM11: 0 | AO11: 0 | AP11: 0 | AQ11: 0 | AR11: 0 | AS11: 0 | AT11: 0 | AU11: 0 | AV11: 0 | AW11: 0 | AX11: 0 | AY11: 0 | AZ11: 0 | BA11: 0 | BB11: | | BC11: 0 | BD11: 0 | BE11: 0 | BF11: 0 | BG11: 0 | BH11: | | BI11: 0 | BJ11: =IFERROR(IF(BD11<=0,-(BD11-BE11)/BE11,(BD11-BE11)/BE11),0) -> 0 | BK11: 0 | BL11: 0 | BM11: | | BN11: R
C12: Total Units Occupied | D12: 11.9032 | E12: 11 | F12: 0.9032 | G12: 0.08210909091 | H12: 11.688166 | I12: 11 | J12: 0.688166 | K12: 0.06256054545 | L12: =IF(L7>MONTH($BN$4),"",HLOOKUP($L$7,CPL!$E$5:$P$50,ROW()-4,0)) -> 12.0323 | M12: =IF(M7>MONTH($BN$4),"",HLOOKUP($M$7,CPL!$E$5:$P$50,ROW()-4,0)) -> 12 | N12: =IF(N7>MONTH($BN$4),"",HLOOKUP($N$7,CPL!$E$5:$P$50,ROW()-4,0)) -> 12 | O12: =IF(O7>MONTH($BN$4),"",HLOOKUP($O$7,CPL!$E$5:$P$50,ROW()-4,0)) -> 12 | P12: =IF(P7>MONTH($BN$4),"",HLOOKUP($P$7,CPL!$E$5:$P$50,ROW()-4,0)) -> 12 | Q12: =IF(Q7>MONTH($BN$4),"",HLOOKUP($Q$7,CPL!$E$5:$P$50,ROW()-4,0)) -> 12 | R12: =IF(R7>MONTH($BN$4),"",HLOOKUP($R$7,CPL!$E$5:$P$50,ROW()-4,0)) -> 11.1613 | S12: =IF(S7>MONTH($BN$4),"",HLOOKUP($S$7,CPL!$E$5:$P$50,ROW()-4,0)) -> 11.9032 | T12: =IF(T7>MONTH($BN$4),"",HLOOKUP($T$7,CPL!$E$5:$P$50,ROW()-4,0)) ->  | U12: =IF(U7>MONTH($BN$4),"",HLOOKUP($U$7,CPL!$E$5:$P$50,ROW()-4,0)) ->  | V12: =IF(V7>MONTH($BN$4),"",HLOOKUP($V$7,CPL!$E$5:$P$50,ROW()-4,0)) ->  | W12: =IF(W7>MONTH($BN$4),"",HLOOKUP($W$7,CPL!$E$5:$P$50,ROW()-4,0)) ->  | X12: 11.8871 | Y12: =IF(Y7>MONTH($BN$4),"",AO12) -> 11 | Z12: 11 | AA12: 11 | AB12: 11 | AC12: 11 | AD12: 11 | AE12: 11 | AF12: 11 | AK12: 11 | AL12: 0.8871 | AM12: 0.08064545455 | AO12: 11 | AP12: 11 | AQ12: 11 | AR12: 11 | AS12: 11 | AT12: 11 | AU12: 11 | AV12: 11 | AW12: 11 | AX12: 11 | AY12: 11 | AZ12: 11 | BA12: 11 | BB12: | | BC12: 11.688166 | BD12: 12 | BE12: 12.010766 | BF12: 11.505366 | BG12: 10.268833 | BH12: | | BI12: -0.1442639167 | BJ12: =IFERROR(IF(BD12<=0,-(BD12-BE12)/BE12,(BD12-BE12)/BE12),0) -> -0.0008963624801 | BK12: 0.04392732921 | BL12: 0.1204161174 | BM12: | | BN12: T
C13: Units Available | F13: 0 | G13: 0 | J13: 0 | K13: 0 | L13: =IF(L7>MONTH($BN$4),"",HLOOKUP($L$7,CPL!$E$5:$P$50,ROW()-4,0)) ->  | M13: =IF(M7>MONTH($BN$4),"",HLOOKUP($M$7,CPL!$E$5:$P$50,ROW()-4,0)) ->  | N13: =IF(N7>MONTH($BN$4),"",HLOOKUP($N$7,CPL!$E$5:$P$50,ROW()-4,0)) ->  | O13: =IF(O7>MONTH($BN$4),"",HLOOKUP($O$7,CPL!$E$5:$P$50,ROW()-4,0)) ->  | P13: =IF(P7>MONTH($BN$4),"",HLOOKUP($P$7,CPL!$E$5:$P$50,ROW()-4,0)) ->  | Q13: =IF(Q7>MONTH($BN$4),"",HLOOKUP($Q$7,CPL!$E$5:$P$50,ROW()-4,0)) ->  | R13: =IF(R7>MONTH($BN$4),"",HLOOKUP($R$7,CPL!$E$5:$P$50,ROW()-4,0)) ->  | S13: =IF(S7>MONTH($BN$4),"",HLOOKUP($S$7,CPL!$E$5:$P$50,ROW()-4,0)) ->  | T13: =IF(T7>MONTH($BN$4),"",HLOOKUP($T$7,CPL!$E$5:$P$50,ROW()-4,0)) ->  | U13: =IF(U7>MONTH($BN$4),"",HLOOKUP($U$7,CPL!$E$5:$P$50,ROW()-4,0)) ->  | V13: =IF(V7>MONTH($BN$4),"",HLOOKUP($V$7,CPL!$E$5:$P$50,ROW()-4,0)) ->  | W13: =IF(W7>MONTH($BN$4),"",HLOOKUP($W$7,CPL!$E$5:$P$50,ROW()-4,0)) ->  | Y13: =IF(Y7>MONTH($BN$4),"",AO13) ->  | AL13: 0 | AM13: 0 | BB13: | | BH13: | | BI13: 0 | BJ13: =IFERROR(IF(BD13<=0,-(BD13-BE13)/BE13,(BD13-BE13)/BE13),0) -> 0 | BK13: 0 | BL13: 0 | BM13: | | BN13: H
C14: Independent Living Available | D14: 12 | E14: 12 | F14: 0 | G14: 0 | H14: 12 | I14: 12 | J14: 0 | K14: 0 | L14: =IF(L7>MONTH($BN$4),"",HLOOKUP($L$7,CPL!$E$5:$P$50,ROW()-4,0)) -> 12 | M14: =IF(M7>MONTH($BN$4),"",HLOOKUP($M$7,CPL!$E$5:$P$50,ROW()-4,0)) -> 12 | N14: =IF(N7>MONTH($BN$4),"",HLOOKUP($N$7,CPL!$E$5:$P$50,ROW()-4,0)) -> 12 | O14: =IF(O7>MONTH($BN$4),"",HLOOKUP($O$7,CPL!$E$5:$P$50,ROW()-4,0)) -> 12 | P14: =IF(P7>MONTH($BN$4),"",HLOOKUP($P$7,CPL!$E$5:$P$50,ROW()-4,0)) -> 12 | Q14: =IF(Q7>MONTH($BN$4),"",HLOOKUP($Q$7,CPL!$E$5:$P$50,ROW()-4,0)) -> 12 | R14: =IF(R7>MONTH($BN$4),"",HLOOKUP($R$7,CPL!$E$5:$P$50,ROW()-4,0)) -> 12 | S14: =IF(S7>MONTH($BN$4),"",HLOOKUP($S$7,CPL!$E$5:$P$50,ROW()-4,0)) -> 12 | T14: =IF(T7>MONTH($BN$4),"",HLOOKUP($T$7,CPL!$E$5:$P$50,ROW()-4,0)) ->  | U14: =IF(U7>MONTH($BN$4),"",HLOOKUP($U$7,CPL!$E$5:$P$50,ROW()-4,0)) ->  | V14: =IF(V7>MONTH($BN$4),"",HLOOKUP($V$7,CPL!$E$5:$P$50,ROW()-4,0)) ->  | W14: =IF(W7>MONTH($BN$4),"",HLOOKUP($W$7,CPL!$E$5:$P$50,ROW()-4,0)) ->  | X14: 12 | Y14: =IF(Y7>MONTH($BN$4),"",AO14) -> 12 | Z14: 12 | AA14: 12 | AB14: 12 | AC14: 12 | AD14: 12 | AE14: 12 | AF14: 12 | AK14: 12 | AL14: 0 | AM14: 0 | AO14: 12 | AP14: 12 | AQ14: 12 | AR14: 12 | AS14: 12 | AT14: 12 | AU14: 12 | AV14: 12 | AW14: 12 | AX14: 12 | AY14: 12 | AZ14: 12 | BA14: 12 | BB14: | | BC14: 12 | BD14: 12 | BE14: 12 | BF14: 12 | BG14: 12 | BH14: | | BI14: 0 | BJ14: =IFERROR(IF(BD14<=0,-(BD14-BE14)/BE14,(BD14-BE14)/BE14),0) -> 0 | BK14: 0 | BL14: 0 | BM14: | | BN14: R
C15: Assisted Living Available | D15: 0 | E15: 0 | F15: 0 | G15: 0 | H15: 0 | I15: 0 | J15: 0 | K15: 0 | L15: =IF(L7>MONTH($BN$4),"",HLOOKUP($L$7,CPL!$E$5:$P$50,ROW()-4,0)) -> 0 | M15: =IF(M7>MONTH($BN$4),"",HLOOKUP($M$7,CPL!$E$5:$P$50,ROW()-4,0)) -> 0 | N15: =IF(N7>MONTH($BN$4),"",HLOOKUP($N$7,CPL!$E$5:$P$50,ROW()-4,0)) -> 0 | O15: =IF(O7>MONTH($BN$4),"",HLOOKUP($O$7,CPL!$E$5:$P$50,ROW()-4,0)) -> 0 | P15: =IF(P7>MONTH($BN$4),"",HLOOKUP($P$7,CPL!$E$5:$P$50,ROW()-4,0)) -> 0 | Q15: =IF(Q7>MONTH($BN$4),"",HLOOKUP($Q$7,CPL!$E$5:$P$50,ROW()-4,0)) -> 0 | R15: =IF(R7>MONTH($BN$4),"",HLOOKUP($R$7,CPL!$E$5:$P$50,ROW()-4,0)) -> 0 | S15: =IF(S7>MONTH($BN$4),"",HLOOKUP($S$7,CPL!$E$5:$P$50,ROW()-4,0)) -> 0 | T15: =IF(T7>MONTH($BN$4),"",HLOOKUP($T$7,CPL!$E$5:$P$50,ROW()-4,0)) ->  | U15: =IF(U7>MONTH($BN$4),"",HLOOKUP($U$7,CPL!$E$5:$P$50,ROW()-4,0)) ->  | V15: =IF(V7>MONTH($BN$4),"",HLOOKUP($V$7,CPL!$E$5:$P$50,ROW()-4,0)) ->  | W15: =IF(W7>MONTH($BN$4),"",HLOOKUP($W$7,CPL!$E$5:$P$50,ROW()-4,0)) ->  | X15: 0 | Y15: =IF(Y7>MONTH($BN$4),"",AO15) -> 0 | Z15: 0 | AA15: 0 | AB15: 0 | AC15: 0 | AD15: 0 | AE15: 0 | AF15: 0 | AK15: 0 | AL15: 0 | AM15: 0 | AO15: 0 | AP15: 0 | AQ15: 0 | AR15: 0 | AS15: 0 | AT15: 0 | AU15: 0 | AV15: 0 | AW15: 0 | AX15: 0 | AY15: 0 | AZ15: 0 | BA15: 0 | BB15: | | BC15: 0 | BD15: 0 | BE15: 0 | BF15: 0 | BG15: 0 | BH15: | | BI15: 0 | BJ15: =IFERROR(IF(BD15<=0,-(BD15-BE15)/BE15,(BD15-BE15)/BE15),0) -> 0 | BK15: 0 | BL15: 0 | BM15: | | BN15: R
C16: Memory Care Available | D16: 0 | E16: 0 | F16: 0 | G16: 0 | H16: 0 | I16: 0 | J16: 0 | K16: 0 | L16: =IF(L7>MONTH($BN$4),"",HLOOKUP($L$7,CPL!$E$5:$P$50,ROW()-4,0)) -> 0 | M16: =IF(M7>MONTH($BN$4),"",HLOOKUP($M$7,CPL!$E$5:$P$50,ROW()-4,0)) -> 0 | N16: =IF(N7>MONTH($BN$4),"",HLOOKUP($N$7,CPL!$E$5:$P$50,ROW()-4,0)) -> 0 | O16: =IF(O7>MONTH($BN$4),"",HLOOKUP($O$7,CPL!$E$5:$P$50,ROW()-4,0)) -> 0 | P16: =IF(P7>MONTH($BN$4),"",HLOOKUP($P$7,CPL!$E$5:$P$50,ROW()-4,0)) -> 0 | Q16: =IF(Q7>MONTH($BN$4),"",HLOOKUP($Q$7,CPL!$E$5:$P$50,ROW()-4,0)) -> 0 | R16: =IF(R7>MONTH($BN$4),"",HLOOKUP($R$7,CPL!$E$5:$P$50,ROW()-4,0)) -> 0 | S16: =IF(S7>MONTH($BN$4),"",HLOOKUP($S$7,CPL!$E$5:$P$50,ROW()-4,0)) -> 0 | T16: =IF(T7>MONTH($BN$4),"",HLOOKUP($T$7,CPL!$E$5:$P$50,ROW()-4,0)) ->  | U16: =IF(U7>MONTH($BN$4),"",HLOOKUP($U$7,CPL!$E$5:$P$50,ROW()-4,0)) ->  | V16: =IF(V7>MONTH($BN$4),"",HLOOKUP($V$7,CPL!$E$5:$P$50,ROW()-4,0)) ->  | W16: =IF(W7>MONTH($BN$4),"",HLOOKUP($W$7,CPL!$E$5:$P$50,ROW()-4,0)) ->  | X16: 0 | Y16: =IF(Y7>MONTH($BN$4),"",AO16) -> 0 | Z16: 0 | AA16: 0 | AB16: 0 | AC16: 0 | AD16: 0 | AE16: 0 | AF16: 0 | AK16: 0 | AL16: 0 | AM16: 0 | AO16: 0 | AP16: 0 | AQ16: 0 | AR16: 0 | AS16: 0 | AT16: 0 | AU16: 0 | AV16: 0 | AW16: 0 | AX16: 0 | AY16: 0 | AZ16: 0 | BA16: 0 | BB16: | | BC16: 0 | BD16: 0 | BE16: 0 | BF16: 0 | BG16: 0 | BH16: | | BI16: 0 | BJ16: =IFERROR(IF(BD16<=0,-(BD16-BE16)/BE16,(BD16-BE16)/BE16),0) -> 0 | BK16: 0 | BL16: 0 | BM16: | | BN16: R
C17: Total Units Available | D17: 12 | E17: 12 | F17: 0 | G17: 0 | H17: 12 | I17: 12 | J17: 0 | K17: 0 | L17: =IF(L7>MONTH($BN$4),"",HLOOKUP($L$7,CPL!$E$5:$P$50,ROW()-4,0)) -> 12 | M17: =IF(M7>MONTH($BN$4),"",HLOOKUP($M$7,CPL!$E$5:$P$50,ROW()-4,0)) -> 12 | N17: =IF(N7>MONTH($BN$4),"",HLOOKUP($N$7,CPL!$E$5:$P$50,ROW()-4,0)) -> 12 | O17: =IF(O7>MONTH($BN$4),"",HLOOKUP($O$7,CPL!$E$5:$P$50,ROW()-4,0)) -> 12 | P17: =IF(P7>MONTH($BN$4),"",HLOOKUP($P$7,CPL!$E$5:$P$50,ROW()-4,0)) -> 12 | Q17: =IF(Q7>MONTH($BN$4),"",HLOOKUP($Q$7,CPL!$E$5:$P$50,ROW()-4,0)) -> 12 | R17: =IF(R7>MONTH($BN$4),"",HLOOKUP($R$7,CPL!$E$5:$P$50,ROW()-4,0)) -> 12 | S17: =IF(S7>MONTH($BN$4),"",HLOOKUP($S$7,CPL!$E$5:$P$50,ROW()-4,0)) -> 12 | T17: =IF(T7>MONTH($BN$4),"",HLOOKUP($T$7,CPL!$E$5:$P$50,ROW()-4,0)) ->  | U17: =IF(U7>MONTH($BN$4),"",HLOOKUP($U$7,CPL!$E$5:$P$50,ROW()-4,0)) ->  | V17: =IF(V7>MONTH($BN$4),"",HLOOKUP($V$7,CPL!$E$5:$P$50,ROW()-4,0)) ->  | W17: =IF(W7>MONTH($BN$4),"",HLOOKUP($W$7,CPL!$E$5:$P$50,ROW()-4,0)) ->  | X17: 12 | Y17: =IF(Y7>MONTH($BN$4),"",AO17) -> 12 | Z17: 12 | AA17: 12 | AB17: 12 | AC17: 12 | AD17: 12 | AE17: 12 | AF17: 12 | AK17: 12 | AL17: 0 | AM17: 0 | AO17: 12 | AP17: 12 | AQ17: 12 | AR17: 12 | AS17: 12 | AT17: 12 | AU17: 12 | AV17: 12 | AW17: 12 | AX17: 12 | AY17: 12 | AZ17: 12 | BA17: 12 | BB17: | | BC17: 12 | BD17: 12 | BE17: 12 | BF17: 12 | BG17: 12 | BH17: | | BI17: 0 | BJ17: =IFERROR(IF(BD17<=0,-(BD17-BE17)/BE17,(BD17-BE17)/BE17),0) -> 0 | BK17: 0 | BL17: 0 | BM17: | | BN17: T
C18: % Occupied | F18: 0 | G18: 0 | J18: 0 | K18: 0 | L18: =IF(L7>MONTH($BN$4),"",HLOOKUP($L$7,CPL!$E$5:$P$50,ROW()-4,0)) ->  | M18: =IF(M7>MONTH($BN$4),"",HLOOKUP($M$7,CPL!$E$5:$P$50,ROW()-4,0)) ->  | N18: =IF(N7>MONTH($BN$4),"",HLOOKUP($N$7,CPL!$E$5:$P$50,ROW()-4,0)) ->  | O18: =IF(O7>MONTH($BN$4),"",HLOOKUP($O$7,CPL!$E$5:$P$50,ROW()-4,0)) ->  | P18: =IF(P7>MONTH($BN$4),"",HLOOKUP($P$7,CPL!$E$5:$P$50,ROW()-4,0)) ->  | Q18: =IF(Q7>MONTH($BN$4),"",HLOOKUP($Q$7,CPL!$E$5:$P$50,ROW()-4,0)) ->  | R18: =IF(R7>MONTH($BN$4),"",HLOOKUP($R$7,CPL!$E$5:$P$50,ROW()-4,0)) ->  | S18: =IF(S7>MONTH($BN$4),"",HLOOKUP($S$7,CPL!$E$5:$P$50,ROW()-4,0)) ->  | T18: =IF(T7>MONTH($BN$4),"",HLOOKUP($T$7,CPL!$E$5:$P$50,ROW()-4,0)) ->  | U18: =IF(U7>MONTH($BN$4),"",HLOOKUP($U$7,CPL!$E$5:$P$50,ROW()-4,0)) ->  | V18: =IF(V7>MONTH($BN$4),"",HLOOKUP($V$7,CPL!$E$5:$P$50,ROW()-4,0)) ->  | W18: =IF(W7>MONTH($BN$4),"",HLOOKUP($W$7,CPL!$E$5:$P$50,ROW()-4,0)) ->  | Y18: =IF(Y7>MONTH($BN$4),"",AO18) ->  | AL18: 0 | AM18: 0 | BB18: | | BH18: | | BI18: 0 | BJ18: =IFERROR(IF(BD18<=0,-(BD18-BE18)/BE18,(BD18-BE18)/BE18),0) -> 0 | BK18: 0 | BL18: 0 | BM18: | | BN18: H | BO18: %
C19: Independent Living % Occupied | D19: 0.991933 | E19: 0.916666 | F19: 0.075267 | G19: 0.08210951426 | H19: 0.974013 | I19: 0.916666 | J19: 0.057347 | K19: 0.06256040913 | L19: =IF(L7>MONTH($BN$4),"",HLOOKUP($L$7,CPL!$E$5:$P$50,ROW()-4,0)) -> 1.002691 | M19: =IF(M7>MONTH($BN$4),"",HLOOKUP($M$7,CPL!$E$5:$P$50,ROW()-4,0)) -> 1 | N19: =IF(N7>MONTH($BN$4),"",HLOOKUP($N$7,CPL!$E$5:$P$50,ROW()-4,0)) -> 1 | O19: =IF(O7>MONTH($BN$4),"",HLOOKUP($O$7,CPL!$E$5:$P$50,ROW()-4,0)) -> 1 | P19: =IF(P7>MONTH($BN$4),"",HLOOKUP($P$7,CPL!$E$5:$P$50,ROW()-4,0)) -> 1 | Q19: =IF(Q7>MONTH($BN$4),"",HLOOKUP($Q$7,CPL!$E$5:$P$50,ROW()-4,0)) -> 1 | R19: =IF(R7>MONTH($BN$4),"",HLOOKUP($R$7,CPL!$E$5:$P$50,ROW()-4,0)) -> 0.930108 | S19: =IF(S7>MONTH($BN$4),"",HLOOKUP($S$7,CPL!$E$5:$P$50,ROW()-4,0)) -> 0.991933 | T19: =IF(T7>MONTH($BN$4),"",HLOOKUP($T$7,CPL!$E$5:$P$50,ROW()-4,0)) ->  | U19: =IF(U7>MONTH($BN$4),"",HLOOKUP($U$7,CPL!$E$5:$P$50,ROW()-4,0)) ->  | V19: =IF(V7>MONTH($BN$4),"",HLOOKUP($V$7,CPL!$E$5:$P$50,ROW()-4,0)) ->  | W19: =IF(W7>MONTH($BN$4),"",HLOOKUP($W$7,CPL!$E$5:$P$50,ROW()-4,0)) ->  | X19: 0.990591 | Y19: =IF(Y7>MONTH($BN$4),"",AO19) -> 0.916666 | Z19: 0.916666 | AA19: 0.916666 | AB19: 0.916666 | AC19: 0.916666 | AD19: 0.916666 | AE19: 0.916666 | AF19: 0.916666 | AK19: 0.916666 | AL19: 0.073925 | AM19: 0.0806455132 | AO19: 0.916666 | AP19: 0.916666 | AQ19: 0.916666 | AR19: 0.916666 | AS19: 0.916666 | AT19: 0.916666 | AU19: 0.916666 | AV19: 0.916666 | AW19: 0.916666 | AX19: 0.916666 | AY19: 0.916666 | AZ19: 0.916666 | BA19: 0.916666 | BB19: | | BC19: 0.974013 | BD19: 1 | BE19: 1.000897 | BF19: 0.95878 | BG19: 0.855736 | BH19: | | BI19: -0.144264 | BJ19: =IFERROR(IF(BD19<=0,-(BD19-BE19)/BE19,(BD19-BE19)/BE19),0) -> -0.0008961961121 | BK19: 0.04392769979 | BL19: 0.1204156422 | BM19: | | BN19: R | BO19: %
C20: Assisted Living % Occupied | D20: 0 | E20: 0 | F20: 0 | G20: 0 | H20: 0 | I20: 0 | J20: 0 | K20: 0 | L20: =IF(L7>MONTH($BN$4),"",HLOOKUP($L$7,CPL!$E$5:$P$50,ROW()-4,0)) -> 0 | M20: =IF(M7>MONTH($BN$4),"",HLOOKUP($M$7,CPL!$E$5:$P$50,ROW()-4,0)) -> 0 | N20: =IF(N7>MONTH($BN$4),"",HLOOKUP($N$7,CPL!$E$5:$P$50,ROW()-4,0)) -> 0 | O20: =IF(O7>MONTH($BN$4),"",HLOOKUP($O$7,CPL!$E$5:$P$50,ROW()-4,0)) -> 0 | P20: =IF(P7>MONTH($BN$4),"",HLOOKUP($P$7,CPL!$E$5:$P$50,ROW()-4,0)) -> 0 | Q20: =IF(Q7>MONTH($BN$4),"",HLOOKUP($Q$7,CPL!$E$5:$P$50,ROW()-4,0)) -> 0 | R20: =IF(R7>MONTH($BN$4),"",HLOOKUP($R$7,CPL!$E$5:$P$50,ROW()-4,0)) -> 0 | S20: =IF(S7>MONTH($BN$4),"",HLOOKUP($S$7,CPL!$E$5:$P$50,ROW()-4,0)) -> 0 | T20: =IF(T7>MONTH($BN$4),"",HLOOKUP($T$7,CPL!$E$5:$P$50,ROW()-4,0)) ->  | U20: =IF(U7>MONTH($BN$4),"",HLOOKUP($U$7,CPL!$E$5:$P$50,ROW()-4,0)) ->  | V20: =IF(V7>MONTH($BN$4),"",HLOOKUP($V$7,CPL!$E$5:$P$50,ROW()-4,0)) ->  | W20: =IF(W7>MONTH($BN$4),"",HLOOKUP($W$7,CPL!$E$5:$P$50,ROW()-4,0)) ->  | X20: 0 | Y20: =IF(Y7>MONTH($BN$4),"",AO20) -> 0 | Z20: 0 | AA20: 0 | AB20: 0 | AC20: 0 | AD20: 0 | AE20: 0 | AF20: 0 | AK20: 0 | AL20: 0 | AM20: 0 | AO20: 0 | AP20: 0 | AQ20: 0 | AR20: 0 | AS20: 0 | AT20: 0 | AU20: 0 | AV20: 0 | AW20: 0 | AX20: 0 | AY20: 0 | AZ20: 0 | BA20: 0 | BB20: | | BC20: 0 | BD20: 0 | BE20: 0 | BF20: 0 | BG20: 0 | BH20: | | BI20: 0 | BJ20: =IFERROR(IF(BD20<=0,-(BD20-BE20)/BE20,(BD20-BE20)/BE20),0) -> 0 | BK20: 0 | BL20: 0 | BM20: | | BN20: R | BO20: %
C21: Memory Care % Occupied | D21: 0 | E21: 0 | F21: 0 | G21: 0 | H21: 0 | I21: 0 | J21: 0 | K21: 0 | L21: =IF(L7>MONTH($BN$4),"",HLOOKUP($L$7,CPL!$E$5:$P$50,ROW()-4,0)) -> 0 | M21: =IF(M7>MONTH($BN$4),"",HLOOKUP($M$7,CPL!$E$5:$P$50,ROW()-4,0)) -> 0 | N21: =IF(N7>MONTH($BN$4),"",HLOOKUP($N$7,CPL!$E$5:$P$50,ROW()-4,0)) -> 0 | O21: =IF(O7>MONTH($BN$4),"",HLOOKUP($O$7,CPL!$E$5:$P$50,ROW()-4,0)) -> 0 | P21: =IF(P7>MONTH($BN$4),"",HLOOKUP($P$7,CPL!$E$5:$P$50,ROW()-4,0)) -> 0 | Q21: =IF(Q7>MONTH($BN$4),"",HLOOKUP($Q$7,CPL!$E$5:$P$50,ROW()-4,0)) -> 0 | R21: =IF(R7>MONTH($BN$4),"",HLOOKUP($R$7,CPL!$E$5:$P$50,ROW()-4,0)) -> 0 | S21: =IF(S7>MONTH($BN$4),"",HLOOKUP($S$7,CPL!$E$5:$P$50,ROW()-4,0)) -> 0 | T21: =IF(T7>MONTH($BN$4),"",HLOOKUP($T$7,CPL!$E$5:$P$50,ROW()-4,0)) ->  | U21: =IF(U7>MONTH($BN$4),"",HLOOKUP($U$7,CPL!$E$5:$P$50,ROW()-4,0)) ->  | V21: =IF(V7>MONTH($BN$4),"",HLOOKUP($V$7,CPL!$E$5:$P$50,ROW()-4,0)) ->  | W21: =IF(W7>MONTH($BN$4),"",HLOOKUP($W$7,CPL!$E$5:$P$50,ROW()-4,0)) ->  | X21: 0 | Y21: =IF(Y7>MONTH($BN$4),"",AO21) -> 0 | Z21: 0 | AA21: 0 | AB21: 0 | AC21: 0 | AD21: 0 | AE21: 0 | AF21: 0 | AK21: 0 | AL21: 0 | AM21: 0 | AO21: 0 | AP21: 0 | AQ21: 0 | AR21: 0 | AS21: 0 | AT21: 0 | AU21: 0 | AV21: 0 | AW21: 0 | AX21: 0 | AY21: 0 | AZ21: 0 | BA21: 0 | BB21: | | BC21: 0 | BD21: 0 | BE21: 0 | BF21: 0 | BG21: 0 | BH21: | | BI21: 0 | BJ21: =IFERROR(IF(BD21<=0,-(BD21-BE21)/BE21,(BD21-BE21)/BE21),0) -> 0 | BK21: 0 | BL21: 0 | BM21: | | BN21: R | BO21: %
C22: Total % Occupied | D22: 0.991933 | E22: 0.916666 | F22: 0.075267 | G22: 0.08210951426 | H22: 0.974013 | I22: 0.916666 | J22: 0.057347 | K22: 0.06256040913 | L22: =IF(L7>MONTH($BN$4),"",HLOOKUP($L$7,CPL!$E$5:$P$50,ROW()-4,0)) -> 1.002691 | M22: =IF(M7>MONTH($BN$4),"",HLOOKUP($M$7,CPL!$E$5:$P$50,ROW()-4,0)) -> 1 | N22: =IF(N7>MONTH($BN$4),"",HLOOKUP($N$7,CPL!$E$5:$P$50,ROW()-4,0)) -> 1 | O22: =IF(O7>MONTH($BN$4),"",HLOOKUP($O$7,CPL!$E$5:$P$50,ROW()-4,0)) -> 1 | P22: =IF(P7>MONTH($BN$4),"",HLOOKUP($P$7,CPL!$E$5:$P$50,ROW()-4,0)) -> 1 | Q22: =IF(Q7>MONTH($BN$4),"",HLOOKUP($Q$7,CPL!$E$5:$P$50,ROW()-4,0)) -> 1 | R22: =IF(R7>MONTH($BN$4),"",HLOOKUP($R$7,CPL!$E$5:$P$50,ROW()-4,0)) -> 0.930108 | S22: =IF(S7>MONTH($BN$4),"",HLOOKUP($S$7,CPL!$E$5:$P$50,ROW()-4,0)) -> 0.991933 | T22: =IF(T7>MONTH($BN$4),"",HLOOKUP($T$7,CPL!$E$5:$P$50,ROW()-4,0)) ->  | U22: =IF(U7>MONTH($BN$4),"",HLOOKUP($U$7,CPL!$E$5:$P$50,ROW()-4,0)) ->  | V22: =IF(V7>MONTH($BN$4),"",HLOOKUP($V$7,CPL!$E$5:$P$50,ROW()-4,0)) ->  | W22: =IF(W7>MONTH($BN$4),"",HLOOKUP($W$7,CPL!$E$5:$P$50,ROW()-4,0)) ->  | X22: 0.990591 | Y22: =IF(Y7>MONTH($BN$4),"",AO22) -> 0.916666 | Z22: 0.916666 | AA22: 0.916666 | AB22: 0.916666 | AC22: 0.916666 | AD22: 0.916666 | AE22: 0.916666 | AF22: 0.916666 | AK22: 0.916666 | AL22: 0.073925 | AM22: 0.0806455132 | AO22: 0.916666 | AP22: 0.916666 | AQ22: 0.916666 | AR22: 0.916666 | AS22: 0.916666 | AT22: 0.916666 | AU22: 0.916666 | AV22: 0.916666 | AW22: 0.916666 | AX22: 0.916666 | AY22: 0.916666 | AZ22: 0.916666 | BA22: 0.916666 | BB22: | | BC22: 0.974013 | BD22: 1 | BE22: 1.000897 | BF22: 0.95878 | BG22: 0.855736 | BH22: | | BI22: -0.144264 | BJ22: =IFERROR(IF(BD22<=0,-(BD22-BE22)/BE22,(BD22-BE22)/BE22),0) -> -0.0008961961121 | BK22: 0.04392769979 | BL22: 0.1204156422 | BM22: | | BN22: T | BO22: %
C23: Monthly Rent per Unit (AVG.) | F23: 0 | G23: 0 | J23: 0 | K23: 0 | L23: =IF(L7>MONTH($BN$4),"",HLOOKUP($L$7,CPL!$E$5:$P$50,ROW()-4,0)) ->  | M23: =IF(M7>MONTH($BN$4),"",HLOOKUP($M$7,CPL!$E$5:$P$50,ROW()-4,0)) ->  | N23: =IF(N7>MONTH($BN$4),"",HLOOKUP($N$7,CPL!$E$5:$P$50,ROW()-4,0)) ->  | O23: =IF(O7>MONTH($BN$4),"",HLOOKUP($O$7,CPL!$E$5:$P$50,ROW()-4,0)) ->  | P23: =IF(P7>MONTH($BN$4),"",HLOOKUP($P$7,CPL!$E$5:$P$50,ROW()-4,0)) ->  | Q23: =IF(Q7>MONTH($BN$4),"",HLOOKUP($Q$7,CPL!$E$5:$P$50,ROW()-4,0)) ->  | R23: =IF(R7>MONTH($BN$4),"",HLOOKUP($R$7,CPL!$E$5:$P$50,ROW()-4,0)) ->  | S23: =IF(S7>MONTH($BN$4),"",HLOOKUP($S$7,CPL!$E$5:$P$50,ROW()-4,0)) ->  | T23: =IF(T7>MONTH($BN$4),"",HLOOKUP($T$7,CPL!$E$5:$P$50,ROW()-4,0)) ->  | U23: =IF(U7>MONTH($BN$4),"",HLOOKUP($U$7,CPL!$E$5:$P$50,ROW()-4,0)) ->  | V23: =IF(V7>MONTH($BN$4),"",HLOOKUP($V$7,CPL!$E$5:$P$50,ROW()-4,0)) ->  | W23: =IF(W7>MONTH($BN$4),"",HLOOKUP($W$7,CPL!$E$5:$P$50,ROW()-4,0)) ->  | Y23: =IF(Y7>MONTH($BN$4),"",AO23) ->  | AL23: 0 | AM23: 0 | BB23: | | BH23: | | BI23: 0 | BJ23: =IFERROR(IF(BD23<=0,-(BD23-BE23)/BE23,(BD23-BE23)/BE23),0) -> 0 | BK23: 0 | BL23: 0 | BM23: | | BN23: H | BO23: $
C24: Independent Living Rent per Unit | D24: 3195.752402 | E24: 0 | F24: 3195.752402 | G24: 0 | H24: 3236.109925 | I24: 0 | J24: 3236.109925 | K24: 0 | L24: =IF(L7>MONTH($BN$4),"",HLOOKUP($L$7,CPL!$E$5:$P$50,ROW()-4,0)) -> 2903.422454 | M24: =IF(M7>MONTH($BN$4),"",HLOOKUP($M$7,CPL!$E$5:$P$50,ROW()-4,0)) -> 3210.583333 | N24: =IF(N7>MONTH($BN$4),"",HLOOKUP($N$7,CPL!$E$5:$P$50,ROW()-4,0)) -> 3358.275 | O24: =IF(O7>MONTH($BN$4),"",HLOOKUP($O$7,CPL!$E$5:$P$50,ROW()-4,0)) -> 3290.833333 | P24: =IF(P7>MONTH($BN$4),"",HLOOKUP($P$7,CPL!$E$5:$P$50,ROW()-4,0)) -> 3290.833333 | Q24: =IF(Q7>MONTH($BN$4),"",HLOOKUP($Q$7,CPL!$E$5:$P$50,ROW()-4,0)) -> 3290.833333 | R24: =IF(R7>MONTH($BN$4),"",HLOOKUP($R$7,CPL!$E$5:$P$50,ROW()-4,0)) -> 3220.313941 | S24: =IF(S7>MONTH($BN$4),"",HLOOKUP($S$7,CPL!$E$5:$P$50,ROW()-4,0)) -> 3195.752402 | T24: =IF(T7>MONTH($BN$4),"",HLOOKUP($T$7,CPL!$E$5:$P$50,ROW()-4,0)) ->  | U24: =IF(U7>MONTH($BN$4),"",HLOOKUP($U$7,CPL!$E$5:$P$50,ROW()-4,0)) ->  | V24: =IF(V7>MONTH($BN$4),"",HLOOKUP($V$7,CPL!$E$5:$P$50,ROW()-4,0)) ->  | W24: =IF(W7>MONTH($BN$4),"",HLOOKUP($W$7,CPL!$E$5:$P$50,ROW()-4,0)) ->  | X24: 3220.021283 | Y24: =IF(Y7>MONTH($BN$4),"",AO24) -> 0 | Z24: 0 | AA24: 0 | AB24: 0 | AC24: 0 | AD24: 0 | AE24: 0 | AF24: 0 | AK24: 0 | AL24: 3220.021283 | AM24: 0 | AO24: 0 | AP24: 0 | AQ24: 0 | AR24: 0 | AS24: 0 | AT24: 0 | AU24: 0 | AV24: 0 | AW24: 0 | AX24: 0 | AY24: 0 | AZ24: 0 | BA24: 0 | BB24: | | BC24: 3236.109925 | BD24: 3313.313888 | BE24: 3077.484816 | BF24: 3267.957171 | BG24: 3152.390344 | BH24: | | BI24: -0.04856875909 | BJ24: =IFERROR(IF(BD24<=0,-(BD24-BE24)/BE24,(BD24-BE24)/BE24),0) -> 0.07663045835 | BK24: -0.05828483821 | BL24: 0.03666006249 | BM24: | | BN24: R | BO24: $
C25: Assisted Living Rent per Unit | F25: 0 | G25: 0 | J25: 0 | K25: 0 | L25: =IF(L7>MONTH($BN$4),"",HLOOKUP($L$7,CPL!$E$5:$P$50,ROW()-4,0)) ->  | M25: =IF(M7>MONTH($BN$4),"",HLOOKUP($M$7,CPL!$E$5:$P$50,ROW()-4,0)) ->  | N25: =IF(N7>MONTH($BN$4),"",HLOOKUP($N$7,CPL!$E$5:$P$50,ROW()-4,0)) ->  | O25: =IF(O7>MONTH($BN$4),"",HLOOKUP($O$7,CPL!$E$5:$P$50,ROW()-4,0)) ->  | P25: =IF(P7>MONTH($BN$4),"",HLOOKUP($P$7,CPL!$E$5:$P$50,ROW()-4,0)) ->  | Q25: =IF(Q7>MONTH($BN$4),"",HLOOKUP($Q$7,CPL!$E$5:$P$50,ROW()-4,0)) ->  | R25: =IF(R7>MONTH($BN$4),"",HLOOKUP($R$7,CPL!$E$5:$P$50,ROW()-4,0)) ->  | S25: =IF(S7>MONTH($BN$4),"",HLOOKUP($S$7,CPL!$E$5:$P$50,ROW()-4,0)) ->  | T25: =IF(T7>MONTH($BN$4),"",HLOOKUP($T$7,CPL!$E$5:$P$50,ROW()-4,0)) ->  | U25: =IF(U7>MONTH($BN$4),"",HLOOKUP($U$7,CPL!$E$5:$P$50,ROW()-4,0)) ->  | V25: =IF(V7>MONTH($BN$4),"",HLOOKUP($V$7,CPL!$E$5:$P$50,ROW()-4,0)) ->  | W25: =IF(W7>MONTH($BN$4),"",HLOOKUP($W$7,CPL!$E$5:$P$50,ROW()-4,0)) ->  | Y25: =IF(Y7>MONTH($BN$4),"",AO25) ->  | AL25: 0 | AM25: 0 | BB25: | | BH25: | | BI25: 0 | BJ25: =IFERROR(IF(BD25<=0,-(BD25-BE25)/BE25,(BD25-BE25)/BE25),0) -> 0 | BK25: 0 | BL25: 0 | BM25: | | BN25: R | BO25: $
C26: Memory Care Rent per Unit | F26: 0 | G26: 0 | J26: 0 | K26: 0 | L26: =IF(L7>MONTH($BN$4),"",HLOOKUP($L$7,CPL!$E$5:$P$50,ROW()-4,0)) ->  | M26: =IF(M7>MONTH($BN$4),"",HLOOKUP($M$7,CPL!$E$5:$P$50,ROW()-4,0)) ->  | N26: =IF(N7>MONTH($BN$4),"",HLOOKUP($N$7,CPL!$E$5:$P$50,ROW()-4,0)) ->  | O26: =IF(O7>MONTH($BN$4),"",HLOOKUP($O$7,CPL!$E$5:$P$50,ROW()-4,0)) ->  | P26: =IF(P7>MONTH($BN$4),"",HLOOKUP($P$7,CPL!$E$5:$P$50,ROW()-4,0)) ->  | Q26: =IF(Q7>MONTH($BN$4),"",HLOOKUP($Q$7,CPL!$E$5:$P$50,ROW()-4,0)) ->  | R26: =IF(R7>MONTH($BN$4),"",HLOOKUP($R$7,CPL!$E$5:$P$50,ROW()-4,0)) ->  | S26: =IF(S7>MONTH($BN$4),"",HLOOKUP($S$7,CPL!$E$5:$P$50,ROW()-4,0)) ->  | T26: =IF(T7>MONTH($BN$4),"",HLOOKUP($T$7,CPL!$E$5:$P$50,ROW()-4,0)) ->  | U26: =IF(U7>MONTH($BN$4),"",HLOOKUP($U$7,CPL!$E$5:$P$50,ROW()-4,0)) ->  | V26: =IF(V7>MONTH($BN$4),"",HLOOKUP($V$7,CPL!$E$5:$P$50,ROW()-4,0)) ->  | W26: =IF(W7>MONTH($BN$4),"",HLOOKUP($W$7,CPL!$E$5:$P$50,ROW()-4,0)) ->  | Y26: =IF(Y7>MONTH($BN$4),"",AO26) ->  | AL26: 0 | AM26: 0 | BB26: | | BH26: | | BI26: 0 | BJ26: =IFERROR(IF(BD26<=0,-(BD26-BE26)/BE26,(BD26-BE26)/BE26),0) -> 0 | BK26: 0 | BL26: 0 | BM26: | | BN26: R | BO26: $
C27: Total Monthly Rent per Unit (AVG.) | D27: 3164.18106 | E27: 0 | F27: 3164.18106 | G27: 0 | H27: 3210.029414 | I27: 0 | J27: 3210.029414 | K27: 0 | L27: =IF(L7>MONTH($BN$4),"",HLOOKUP($L$7,CPL!$E$5:$P$50,ROW()-4,0)) -> 2907.577936 | M27: =IF(M7>MONTH($BN$4),"",HLOOKUP($M$7,CPL!$E$5:$P$50,ROW()-4,0)) -> 3214.75 | N27: =IF(N7>MONTH($BN$4),"",HLOOKUP($N$7,CPL!$E$5:$P$50,ROW()-4,0)) -> 3362.441666 | O27: =IF(O7>MONTH($BN$4),"",HLOOKUP($O$7,CPL!$E$5:$P$50,ROW()-4,0)) -> 3295 | P27: =IF(P7>MONTH($BN$4),"",HLOOKUP($P$7,CPL!$E$5:$P$50,ROW()-4,0)) -> 3045 | Q27: =IF(Q7>MONTH($BN$4),"",HLOOKUP($Q$7,CPL!$E$5:$P$50,ROW()-4,0)) -> 3245 | R27: =IF(R7>MONTH($BN$4),"",HLOOKUP($R$7,CPL!$E$5:$P$50,ROW()-4,0)) -> 3221.326368 | S27: =IF(S7>MONTH($BN$4),"",HLOOKUP($S$7,CPL!$E$5:$P$50,ROW()-4,0)) -> 3164.18106 | T27: =IF(T7>MONTH($BN$4),"",HLOOKUP($T$7,CPL!$E$5:$P$50,ROW()-4,0)) ->  | U27: =IF(U7>MONTH($BN$4),"",HLOOKUP($U$7,CPL!$E$5:$P$50,ROW()-4,0)) ->  | V27: =IF(V7>MONTH($BN$4),"",HLOOKUP($V$7,CPL!$E$5:$P$50,ROW()-4,0)) ->  | W27: =IF(W7>MONTH($BN$4),"",HLOOKUP($W$7,CPL!$E$5:$P$50,ROW()-4,0)) ->  | X27: 3181.486863 | Y27: =IF(Y7>MONTH($BN$4),"",AO27) -> 0 | Z27: 0 | AA27: 0 | AB27: 0 | AC27: 0 | AD27: 0 | AE27: 0 | AF27: 0 | AK27: 0 | AL27: 3181.486863 | AM27: 0 | AO27: 0 | AP27: 0 | AQ27: 0 | AR27: 0 | AS27: 0 | AT27: 0 | AU27: 0 | AV27: 0 | AW27: 0 | AX27: 0 | AY27: 0 | AZ27: 0 | BA27: 0 | BB27: | | BC27: 3210.029414 | BD27: 3234.147222 | BE27: 3088.585968 | BF27: 3259.265575 | BG27: 3152.390344 | BH27: | | BI27: -0.02527926912 | BJ27: =IFERROR(IF(BD27<=0,-(BD27-BE27)/BE27,(BD27-BE27)/BE27),0) -> 0.0471287688 | BK27: -0.05236750522 | BL27: 0.03390291789 | BM27: | | BN27: T | BO27: $
BB28: | | BH28: | | BM28: |
A29: H | C29: Revenue | D29: 0 | E29: 0 | F29: =IF(C29="","",D29-E29) -> 0 | G29: =IF(C29="","",IFERROR(F29/E29,0)) -> 0 | H29: 0 | I29: 0 | J29: =IF(C29="","",H29-I29) -> 0 | K29: =IF(C29="","",IFERROR(J29/I29,0)) -> 0 | L29: 0 | M29: 0 | N29: 0 | O29: 0 | P29: 0 | Q29: 0 | R29: 0 | S29: 0 | T29: 0 | U29: 0 | V29: 0 | W29: 0 | X29: 0 | Y29: =IF(MONTH(BN4)>=1,AO29,0) -> 0 | Z29: =IF(MONTH(BN4)>=2,AP29,0) -> 0 | AA29: =IF(MONTH(BN4)>=3,AQ29,0) -> 0 | AB29: =IF(MONTH(BN4)>=4,AR29,0) -> 0 | AC29: =IF(MONTH(BN4)>=5,AS29,0) -> 0 | AD29: =IF(MONTH(BN4)>=6,AT29,0) -> 0 | AE29: =IF(MONTH(BN4)>=7,AU29,0) -> 0 | AF29: =IF(MONTH(BN4)>=8,AV29,0) -> 0 | AG29: =IF(MONTH(BN4)>=9,AW29,0) -> 0 | AH29: =IF(MONTH(BN4)>=10,AX29,0) -> 0 | AI29: =IF(MONTH(BN4)>=11,AY29,0) -> 0 | AJ29: =IF(MONTH(BN4)>=12,AZ29,0) -> 0 | AK29: 0 | AL29: =IF(C29="","",X29-AK29) -> 0 | AM29: =IF(C29="","",IFERROR(AL29/AK29,0)) -> 0 | AO29: 0 | AP29: 0 | AQ29: 0 | AR29: 0 | AS29: 0 | AT29: 0 | AU29: 0 | AV29: 0 | AW29: 0 | AX29: 0 | AY29: 0 | AZ29: 0 | BA29: 0 | BB29: ="|" -> | | BC29: 0 | BD29: 0 | BE29: 0 | BF29: 0 | BG29: 0 | BH29: ="|" -> | | BI29: =IF(C29="","",IFERROR(IF(BG29<=0,-(BG29-BD29)/BD29,(BG29-BD29)/BD29),0)) -> 0 | BJ29: =IF(C29="","",IFERROR(IF(BD29<=0,-(BD29-BE29)/BE29,(BD29-BE29)/BE29),0)) -> 0 | BK29: =IF(C29="","",IFERROR(IF(BE29<=0,-(BE29-BF29)/BF29,(BE29-BF29)/BF29),0)) -> 0 | BL29: =IF(C29="","",IFERROR(IF(BF29<=0,-(BF29-BG29)/BG29,(BF29-BG29)/BG29),0)) -> 0 | BM29: ="|" -> | | BN29: -1 | BO29: 0 | BP29: H
A30: R | B30: 401000 | C30: IL Rent | D30: 35839.68 | F30: 35839.68 | G30: 0 | H30: 105653.23 | J30: 105653.23 | K30: 0 | L30: 35227 | M30: 35227 | N30: 33190 | O30: 36190 | P30: 36190 | Q30: 36190 | R30: 33623.55 | S30: 35839.68 | X30: 281677.23 | Y30: =IF(MONTH(BN4)>=1,AO30,0) ->  | Z30: =IF(MONTH(BN4)>=2,AP30,0) ->  | AA30: =IF(MONTH(BN4)>=3,AQ30,0) ->  | AB30: =IF(MONTH(BN4)>=4,AR30,0) ->  | AC30: =IF(MONTH(BN4)>=5,AS30,0) ->  | AD30: =IF(MONTH(BN4)>=6,AT30,0) ->  | AE30: =IF(MONTH(BN4)>=7,AU30,0) ->  | AF30: =IF(MONTH(BN4)>=8,AV30,0) ->  | AG30: =IF(MONTH(BN4)>=9,AW30,0) -> 0 | AH30: =IF(MONTH(BN4)>=10,AX30,0) -> 0 | AI30: =IF(MONTH(BN4)>=11,AY30,0) -> 0 | AJ30: =IF(MONTH(BN4)>=12,AZ30,0) -> 0 | AL30: 281677.23 | AM30: 0 | BB30: | | BC30: 105653.23 | BD30: 105570 | BE30: 105681 | BF30: 101229.39 | BG30: 90100.35 | BH30: | | BI30: -0.1465345269 | BJ30: -0.001050330712 | BK30: 0.04397546997 | BL30: 0.1235182771 | BM30: | | BN30: 0 | BO30: 0 | BP30: R
A31: T | C31: IL Rent | D31: 35839.68 | E31: 0 | F31: 35839.68 | G31: 0 | H31: 105653.23 | I31: 0 | J31: 105653.23 | K31: 0 | L31: 35227 | M31: 35227 | N31: 33190 | O31: 36190 | P31: 36190 | Q31: 36190 | R31: 33623.55 | S31: 35839.68 | T31: 0 | U31: 0 | V31: 0 | W31: 0 | X31: 281677.23 | Y31: =IF(MONTH(BN4)>=1,AO31,0) -> 0 | Z31: =IF(MONTH(BN4)>=2,AP31,0) -> 0 | AA31: =IF(MONTH(BN4)>=3,AQ31,0) -> 0 | AB31: =IF(MONTH(BN4)>=4,AR31,0) -> 0 | AC31: =IF(MONTH(BN4)>=5,AS31,0) -> 0 | AD31: =IF(MONTH(BN4)>=6,AT31,0) -> 0 | AE31: =IF(MONTH(BN4)>=7,AU31,0) -> 0 | AF31: =IF(MONTH(BN4)>=8,AV31,0) -> 0 | AG31: =IF(MONTH(BN4)>=9,AW31,0) -> 0 | AH31: =IF(MONTH(BN4)>=10,AX31,0) -> 0 | AI31: =IF(MONTH(BN4)>=11,AY31,0) -> 0 | AJ31: =IF(MONTH(BN4)>=12,AZ31,0) -> 0 | AK31: 0 | AL31: 281677.23 | AM31: 0 | AO31: 0 | AP31: 0 | AQ31: 0 | AR31: 0 | AS31: 0 | AT31: 0 | AU31: 0 | AV31: 0 | AW31: 0 | AX31: 0 | AY31: 0 | AZ31: 0 | BA31: 0 | BB31: | | BC31: 105653.23 | BD31: 105570 | BE31: 105681 | BF31: 101229.39 | BG31: 90100.35 | BH31: | | BI31: -0.1465345269 | BJ31: -0.001050330712 | BK31: 0.04397546997 | BL31: 0.1235182771 | BM31: | | BN31: -1 | BO31: 0 | BP31: T
A32: R | B32: 401400 | C32: IL Rent - Second Resident | D32: 2200 | F32: 2200 | G32: 0 | H32: 7877.42 | J32: 7877.42 | K32: 0 | L32: -292.15 | M32: 3300 | N32: 7109.3 | O32: 3300 | P32: 3300 | Q32: 3300 | R32: 2377.42 | S32: 2200 | X32: 24594.57 | Y32: =IF(MONTH(BN4)>=1,AO32,0) ->  | Z32: =IF(MONTH(BN4)>=2,AP32,0) ->  | AA32: =IF(MONTH(BN4)>=3,AQ32,0) ->  | AB32: =IF(MONTH(BN4)>=4,AR32,0) ->  | AC32: =IF(MONTH(BN4)>=5,AS32,0) ->  | AD32: =IF(MONTH(BN4)>=6,AT32,0) ->  | AE32: =IF(MONTH(BN4)>=7,AU32,0) ->  | AF32: =IF(MONTH(BN4)>=8,AV32,0) ->  | AG32: =IF(MONTH(BN4)>=9,AW32,0) -> 0 | AH32: =IF(MONTH(BN4)>=10,AX32,0) -> 0 | AI32: =IF(MONTH(BN4)>=11,AY32,0) -> 0 | AJ32: =IF(MONTH(BN4)>=12,AZ32,0) -> 0 | AL32: 24594.57 | AM32: 0 | BB32: | | BC32: 7877.42 | BD32: 13709.3 | BE32: 6307.85 | BF32: 11567.74 | BG32: 8513.76 | BH32: | | BI32: -0.3789792331 | BJ32: 1.173371275 | BK32: -0.4547033388 | BL32: 0.3587110748 | BM32: | | BN32: 0 | BO32: 0 | BP32: R
A33: T | C33: IL Rent 2nd Resident | D33: 2200 | E33: 0 | F33: 2200 | G33: 0 | H33: 7877.42 | I33: 0 | J33: 7877.42 | K33: 0 | L33: -292.15 | M33: 3300 | N33: 7109.3 | O33: 3300 | P33: 3300 | Q33: 3300 | R33: 2377.42 | S33: 2200 | T33: 0 | U33: 0 | V33: 0 | W33: 0 | X33: 24594.57 | Y33: =IF(MONTH(BN4)>=1,AO33,0) -> 0 | Z33: =IF(MONTH(BN4)>=2,AP33,0) -> 0 | AA33: =IF(MONTH(BN4)>=3,AQ33,0) -> 0 | AB33: =IF(MONTH(BN4)>=4,AR33,0) -> 0 | AC33: =IF(MONTH(BN4)>=5,AS33,0) -> 0 | AD33: =IF(MONTH(BN4)>=6,AT33,0) -> 0 | AE33: =IF(MONTH(BN4)>=7,AU33,0) -> 0 | AF33: =IF(MONTH(BN4)>=8,AV33,0) -> 0 | AG33: =IF(MONTH(BN4)>=9,AW33,0) -> 0 | AH33: =IF(MONTH(BN4)>=10,AX33,0) -> 0 | AI33: =IF(MONTH(BN4)>=11,AY33,0) -> 0 | AJ33: =IF(MONTH(BN4)>=12,AZ33,0) -> 0 | AK33: 0 | AL33: 24594.57 | AM33: 0 | AO33: 0 | AP33: 0 | AQ33: 0 | AR33: 0 | AS33: 0 | AT33: 0 | AU33: 0 | AV33: 0 | AW33: 0 | AX33: 0 | AY33: 0 | AZ33: 0 | BA33: 0 | BB33: | | BC33: 7877.42 | BD33: 13709.3 | BE33: 6307.85 | BF33: 11567.74 | BG33: 8513.76 | BH33: | | BI33: -0.3789792331 | BJ33: 1.173371275 | BK33: -0.4547033388 | BL33: 0.3587110748 | BM33: | | BN33: -1 | BO33: 0 | BP33: T
A34: R | B34: 401200 | C34: IL Rent Concessions | F34: 0 | G34: 0 | H34: -58.08 | J34: -58.08 | K34: 0 | R34: -58.08 | X34: -58.08 | Y34: =IF(MONTH(BN4)>=1,AO34,0) ->  | Z34: =IF(MONTH(BN4)>=2,AP34,0) ->  | AA34: =IF(MONTH(BN4)>=3,AQ34,0) ->  | AB34: =IF(MONTH(BN4)>=4,AR34,0) ->  | AC34: =IF(MONTH(BN4)>=5,AS34,0) ->  | AD34: =IF(MONTH(BN4)>=6,AT34,0) ->  | AE34: =IF(MONTH(BN4)>=7,AU34,0) ->  | AF34: =IF(MONTH(BN4)>=8,AV34,0) ->  | AG34: =IF(MONTH(BN4)>=9,AW34,0) -> 0 | AH34: =IF(MONTH(BN4)>=10,AX34,0) -> 0 | AI34: =IF(MONTH(BN4)>=11,AY34,0) -> 0 | AJ34: =IF(MONTH(BN4)>=12,AZ34,0) -> 0 | AL34: -58.08 | AM34: 0 | BB34: | | BC34: -58.08 | BE34: -1100 | BG34: -1500 | BH34: | | BI34: 0 | BJ34: 1 | BK34: 0 | BL34: 1 | BM34: | | BN34: 0 | BO34: 0 | BP34: R
A35: T | C35: IL Rent Concessions | D35: 0 | E35: 0 | F35: 0 | G35: 0 | H35: -58.08 | I35: 0 | J35: -58.08 | K35: 0 | L35: 0 | M35: 0 | N35: 0 | O35: 0 | P35: 0 | Q35: 0 | R35: -58.08 | S35: 0 | T35: 0 | U35: 0 | V35: 0 | W35: 0 | X35: -58.08 | Y35: =IF(MONTH(BN4)>=1,AO35,0) -> 0 | Z35: =IF(MONTH(BN4)>=2,AP35,0) -> 0 | AA35: =IF(MONTH(BN4)>=3,AQ35,0) -> 0 | AB35: =IF(MONTH(BN4)>=4,AR35,0) -> 0 | AC35: =IF(MONTH(BN4)>=5,AS35,0) -> 0 | AD35: =IF(MONTH(BN4)>=6,AT35,0) -> 0 | AE35: =IF(MONTH(BN4)>=7,AU35,0) -> 0 | AF35: =IF(MONTH(BN4)>=8,AV35,0) -> 0 | AG35: =IF(MONTH(BN4)>=9,AW35,0) -> 0 | AH35: =IF(MONTH(BN4)>=10,AX35,0) -> 0 | AI35: =IF(MONTH(BN4)>=11,AY35,0) -> 0 | AJ35: =IF(MONTH(BN4)>=12,AZ35,0) -> 0 | AK35: 0 | AL35: -58.08 | AM35: 0 | AO35: 0 | AP35: 0 | AQ35: 0 | AR35: 0 | AS35: 0 | AT35: 0 | AU35: 0 | AV35: 0 | AW35: 0 | AX35: 0 | AY35: 0 | AZ35: 0 | BA35: 0 | BB35: | | BC35: -58.08 | BD35: 0 | BE35: -1100 | BF35: 0 | BG35: -1500 | BH35: | | BI35: 0 | BJ35: 1 | BK35: 0 | BL35: 1 | BM35: | | BN35: -1 | BO35: 0 | BP35: T
A36: R | B36: 440340 | C36: Community Fee | F36: 0 | G36: 0 | J36: 0 | K36: 0 | Y36: =IF(MONTH(BN4)>=1,AO36,0) ->  | Z36: =IF(MONTH(BN4)>=2,AP36,0) ->  | AA36: =IF(MONTH(BN4)>=3,AQ36,0) ->  | AB36: =IF(MONTH(BN4)>=4,AR36,0) ->  | AC36: =IF(MONTH(BN4)>=5,AS36,0) ->  | AD36: =IF(MONTH(BN4)>=6,AT36,0) ->  | AE36: =IF(MONTH(BN4)>=7,AU36,0) ->  | AF36: =IF(MONTH(BN4)>=8,AV36,0) ->  | AG36: =IF(MONTH(BN4)>=9,AW36,0) -> 0 | AH36: =IF(MONTH(BN4)>=10,AX36,0) -> 0 | AI36: =IF(MONTH(BN4)>=11,AY36,0) -> 0 | AJ36: =IF(MONTH(BN4)>=12,AZ36,0) -> 0 | AL36: 0 | AM36: 0 | BB36: | | BH36: | | BI36: 0 | BJ36: 0 | BK36: 0 | BL36: 0 | BM36: | | BN36: 0 | BO36: 0 | BP36: R
A37: T | C37: Community Fees | D37: 0 | E37: 0 | F37: 0 | G37: 0 | H37: 0 | I37: 0 | J37: 0 | K37: 0 | L37: 0 | M37: 0 | N37: 0 | O37: 0 | P37: 0 | Q37: 0 | R37: 0 | S37: 0 | T37: 0 | U37: 0 | V37: 0 | W37: 0 | X37: 0 | Y37: =IF(MONTH(BN4)>=1,AO37,0) -> 0 | Z37: =IF(MONTH(BN4)>=2,AP37,0) -> 0 | AA37: =IF(MONTH(BN4)>=3,AQ37,0) -> 0 | AB37: =IF(MONTH(BN4)>=4,AR37,0) -> 0 | AC37: =IF(MONTH(BN4)>=5,AS37,0) -> 0 | AD37: =IF(MONTH(BN4)>=6,AT37,0) -> 0 | AE37: =IF(MONTH(BN4)>=7,AU37,0) -> 0 | AF37: =IF(MONTH(BN4)>=8,AV37,0) -> 0 | AG37: =IF(MONTH(BN4)>=9,AW37,0) -> 0 | AH37: =IF(MONTH(BN4)>=10,AX37,0) -> 0 | AI37: =IF(MONTH(BN4)>=11,AY37,0) -> 0 | AJ37: =IF(MONTH(BN4)>=12,AZ37,0) -> 0 | AK37: 0 | AL37: 0 | AM37: 0 | AO37: 0 | AP37: 0 | AQ37: 0 | AR37: 0 | AS37: 0 | AT37: 0 | AU37: 0 | AV37: 0 | AW37: 0 | AX37: 0 | AY37: 0 | AZ37: 0 | BA37: 0 | BB37: | | BC37: 0 | BD37: 0 | BE37: 0 | BF37: 0 | BG37: 0 | BH37: | | BI37: 0 | BJ37: 0 | BK37: 0 | BL37: 0 | BM37: | | BN37: -1 | BO37: 0 | BP37: T
A38: R | B38: 441340 | C38: Meals - Refunds | D38: -425.8 | F38: -425.8 | G38: 0 | H38: -1064.5 | J38: -1064.5 | K38: 0 | P38: -3000 | Q38: -600 | R38: -38.7 | S38: -425.8 | X38: -4064.5 | Y38: =IF(MONTH(BN4)>=1,AO38,0) ->  | Z38: =IF(MONTH(BN4)>=2,AP38,0) ->  | AA38: =IF(MONTH(BN4)>=3,AQ38,0) ->  | AB38: =IF(MONTH(BN4)>=4,AR38,0) ->  | AC38: =IF(MONTH(BN4)>=5,AS38,0) ->  | AD38: =IF(MONTH(BN4)>=6,AT38,0) ->  | AE38: =IF(MONTH(BN4)>=7,AU38,0) ->  | AF38: =IF(MONTH(BN4)>=8,AV38,0) ->  | AG38: =IF(MONTH(BN4)>=9,AW38,0) -> 0 | AH38: =IF(MONTH(BN4)>=10,AX38,0) -> 0 | AI38: =IF(MONTH(BN4)>=11,AY38,0) -> 0 | AJ38: =IF(MONTH(BN4)>=12,AZ38,0) -> 0 | AL38: -4064.5 | AM38: 0 | BB38: | | BC38: -1064.5 | BD38: -3000 | BE38: 300 | BF38: -300 | BH38: | | BI38: 1 | BJ38: 11 | BK38: -2 | BL38: 0 | BM38: | | BN38: 0 | BO38: 0 | BP38: R
A39: R | B39: 441500 | C39: Other Income | D39: 50 | F39: 50 | G39: 0 | H39: 150 | J39: 150 | K39: 0 | L39: 50 | M39: 50 | N39: 50 | O39: 50 | P39: 50 | Q39: 50 | R39: 50 | S39: 50 | X39: 400 | Y39: =IF(MONTH(BN4)>=1,AO39,0) ->  | Z39: =IF(MONTH(BN4)>=2,AP39,0) ->  | AA39: =IF(MONTH(BN4)>=3,AQ39,0) ->  | AB39: =IF(MONTH(BN4)>=4,AR39,0) ->  | AC39: =IF(MONTH(BN4)>=5,AS39,0) ->  | AD39: =IF(MONTH(BN4)>=6,AT39,0) ->  | AE39: =IF(MONTH(BN4)>=7,AU39,0) ->  | AF39: =IF(MONTH(BN4)>=8,AV39,0) ->  | AG39: =IF(MONTH(BN4)>=9,AW39,0) -> 0 | AH39: =IF(MONTH(BN4)>=10,AX39,0) -> 0 | AI39: =IF(MONTH(BN4)>=11,AY39,0) -> 0 | AJ39: =IF(MONTH(BN4)>=12,AZ39,0) -> 0 | AL39: 400 | AM39: 0 | BB39: | | BC39: 150 | BD39: 150 | BE39: 100 | BH39: | | BI39: 1 | BJ39: 0.5 | BK39: 0 | BL39: 0 | BM39: | | BN39: 0 | BO39: 0 | BP39: R
A40: R | B40: 441650 | C40: Pet Fees | F40: 0 | G40: 0 | J40: 0 | K40: 0 | Y40: =IF(MONTH(BN4)>=1,AO40,0) ->  | Z40: =IF(MONTH(BN4)>=2,AP40,0) ->  | AA40: =IF(MONTH(BN4)>=3,AQ40,0) ->  | AB40: =IF(MONTH(BN4)>=4,AR40,0) ->  | AC40: =IF(MONTH(BN4)>=5,AS40,0) ->  | AD40: =IF(MONTH(BN4)>=6,AT40,0) ->  | AE40: =IF(MONTH(BN4)>=7,AU40,0) ->  | AF40: =IF(MONTH(BN4)>=8,AV40,0) ->  | AG40: =IF(MONTH(BN4)>=9,AW40,0) -> 0 | AH40: =IF(MONTH(BN4)>=10,AX40,0) -> 0 | AI40: =IF(MONTH(BN4)>=11,AY40,0) -> 0 | AJ40: =IF(MONTH(BN4)>=12,AZ40,0) -> 0 | AL40: 0 | AM40: 0 | BB40: | | BH40: | | BI40: 0 | BJ40: 0 | BK40: 0 | BL40: 0 | BM40: | | BN40: 0 | BO40: 0 | BP40: R
A41: T | C41: Other Income | D41: -375.8 | E41: 0 | F41: -375.8 | G41: 0 | H41: -914.5 | I41: 0 | J41: -914.5 | K41: 0 | L41: 50 | M41: 50 | N41: 50 | O41: 50 | P41: -2950 | Q41: -550 | R41: 11.3 | S41: -375.8 | T41: 0 | U41: 0 | V41: 0 | W41: 0 | X41: -3664.5 | Y41: =IF(MONTH(BN4)>=1,AO41,0) -> 0 | Z41: =IF(MONTH(BN4)>=2,AP41,0) -> 0 | AA41: =IF(MONTH(BN4)>=3,AQ41,0) -> 0 | AB41: =IF(MONTH(BN4)>=4,AR41,0) -> 0 | AC41: =IF(MONTH(BN4)>=5,AS41,0) -> 0 | AD41: =IF(MONTH(BN4)>=6,AT41,0) -> 0 | AE41: =IF(MONTH(BN4)>=7,AU41,0) -> 0 | AF41: =IF(MONTH(BN4)>=8,AV41,0) -> 0 | AG41: =IF(MONTH(BN4)>=9,AW41,0) -> 0 | AH41: =IF(MONTH(BN4)>=10,AX41,0) -> 0 | AI41: =IF(MONTH(BN4)>=11,AY41,0) -> 0 | AJ41: =IF(MONTH(BN4)>=12,AZ41,0) -> 0 | AK41: 0 | AL41: -3664.5 | AM41: 0 | AO41: 0 | AP41: 0 | AQ41: 0 | AR41: 0 | AS41: 0 | AT41: 0 | AU41: 0 | AV41: 0 | AW41: 0 | AX41: 0 | AY41: 0 | AZ41: 0 | BA41: 0 | BB41: | | BC41: -914.5 | BD41: -2850 | BE41: 400 | BF41: -300 | BG41: 0 | BH41: | | BI41: 1 | BJ41: 8.125 | BK41: -2.333333333 | BL41: 0 | BM41: | | BN41: -1 | BO41: 0 | BP41: T
Y42: =IF(MONTH(BN4)>=1,AO42,0) ->  | Z42: =IF(MONTH(BN4)>=2,AP42,0) ->  | AA42: =IF(MONTH(BN4)>=3,AQ42,0) ->  | AB42: =IF(MONTH(BN4)>=4,AR42,0) ->  | AC42: =IF(MONTH(BN4)>=5,AS42,0) ->  | AD42: =IF(MONTH(BN4)>=6,AT42,0) ->  | AE42: =IF(MONTH(BN4)>=7,AU42,0) ->  | AF42: =IF(MONTH(BN4)>=8,AV42,0) ->  | AG42: =IF(MONTH(BN4)>=9,AW42,0) -> 0 | AH42: =IF(MONTH(BN4)>=10,AX42,0) -> 0 | AI42: =IF(MONTH(BN4)>=11,AY42,0) -> 0 | AJ42: =IF(MONTH(BN4)>=12,AZ42,0) -> 0 | BB42: | | BH42: | | BM42: | | BO42: 0
A43: T | C43: Total Revenue | D43: 37663.88 | E43: 0 | F43: 37663.88 | G43: 0 | H43: 112558.07 | I43: 0 | J43: 112558.07 | K43: 0 | L43: 34984.85 | M43: 38577 | N43: 40349.3 | O43: 39540 | P43: 36540 | Q43: 38940 | R43: 35954.19 | S43: 37663.88 | T43: 0 | U43: 0 | V43: 0 | W43: 0 | X43: 302549.22 | Y43: =IF(MONTH(BN4)>=1,AO43,0) -> 0 | Z43: =IF(MONTH(BN4)>=2,AP43,0) -> 0 | AA43: =IF(MONTH(BN4)>=3,AQ43,0) -> 0 | AB43: =IF(MONTH(BN4)>=4,AR43,0) -> 0 | AC43: =IF(MONTH(BN4)>=5,AS43,0) -> 0 | AD43: =IF(MONTH(BN4)>=6,AT43,0) -> 0 | AE43: =IF(MONTH(BN4)>=7,AU43,0) -> 0 | AF43: =IF(MONTH(BN4)>=8,AV43,0) -> 0 | AG43: =IF(MONTH(BN4)>=9,AW43,0) -> 0 | AH43: =IF(MONTH(BN4)>=10,AX43,0) -> 0 | AI43: =IF(MONTH(BN4)>=11,AY43,0) -> 0 | AJ43: =IF(MONTH(BN4)>=12,AZ43,0) -> 0 | AK43: 0 | AL43: 302549.22 | AM43: 0 | AO43: 0 | AP43: 0 | AQ43: 0 | AR43: 0 | AS43: 0 | AT43: 0 | AU43: 0 | AV43: 0 | AW43: 0 | AX43: 0 | AY43: 0 | AZ43: 0 | BA43: 0 | BB43: | | BC43: 112558.07 | BD43: 116429.3 | BE43: 111288.85 | BF43: 112497.13 | BG43: 97114.11 | BH43: | | BI43: -0.1658962993 | BJ43: 0.04619016191 | BK43: -0.01074054067 | BL43: 0.1584014928 | BM43: | | BN43: -1 | BO43: 1 | BP43: T
A44: H | C44: Operating Expenses | D44: 0 | E44: 0 | F44: 0 | G44: 0 | H44: 0 | I44: 0 | J44: 0 | K44: 0 | L44: 0 | M44: 0 | N44: 0 | O44: 0 | P44: 0 | Q44: 0 | R44: 0 | S44: 0 | T44: 0 | U44: 0 | V44: 0 | W44: 0 | X44: 0 | Y44: =IF(MONTH(BN4)>=1,AO44,0) -> 0 | Z44: =IF(MONTH(BN4)>=2,AP44,0) -> 0 | AA44: =IF(MONTH(BN4)>=3,AQ44,0) -> 0 | AB44: =IF(MONTH(BN4)>=4,AR44,0) -> 0 | AC44: =IF(MONTH(BN4)>=5,AS44,0) -> 0 | AD44: =IF(MONTH(BN4)>=6,AT44,0) -> 0 | AE44: =IF(MONTH(BN4)>=7,AU44,0) -> 0 | AF44: =IF(MONTH(BN4)>=8,AV44,0) -> 0 | AG44: =IF(MONTH(BN4)>=9,AW44,0) -> 0 | AH44: =IF(MONTH(BN4)>=10,AX44,0) -> 0 | AI44: =IF(MONTH(BN4)>=11,AY44,0) -> 0 | AJ44: =IF(MONTH(BN4)>=12,AZ44,0) -> 0 | AK44: 0 | AL44: 0 | AM44: 0 | AO44: 0 | AP44: 0 | AQ44: 0 | AR44: 0 | AS44: 0 | AT44: 0 | AU44: 0 | AV44: 0 | AW44: 0 | AX44: 0 | AY44: 0 | AZ44: 0 | BA44: 0 | BB44: | | BC44: 0 | BD44: 0 | BE44: 0 | BF44: 0 | BG44: 0 | BH44: | | BI44: 0 | BJ44: 0 | BK44: 0 | BL44: 0 | BM44: | | BN44: -1 | BO44: 0 | BP44: H
A45: R | B45: 500570 | C45: Labor - Other | D45: 450 | F45: 450 | G45: 0 | H45: 1350 | J45: 1350 | K45: 0 | L45: 450 | M45: 450 | N45: 450 | O45: 450 | P45: 450 | Q45: 450 | R45: 450 | S45: 450 | X45: 3600 | Y45: =IF(MONTH(BN4)>=1,AO45,0) ->  | Z45: =IF(MONTH(BN4)>=2,AP45,0) ->  | AA45: =IF(MONTH(BN4)>=3,AQ45,0) ->  | AB45: =IF(MONTH(BN4)>=4,AR45,0) ->  | AC45: =IF(MONTH(BN4)>=5,AS45,0) ->  | AD45: =IF(MONTH(BN4)>=6,AT45,0) ->  | AE45: =IF(MONTH(BN4)>=7,AU45,0) ->  | AF45: =IF(MONTH(BN4)>=8,AV45,0) ->  | AG45: =IF(MONTH(BN4)>=9,AW45,0) -> 0 | AH45: =IF(MONTH(BN4)>=10,AX45,0) -> 0 | AI45: =IF(MONTH(BN4)>=11,AY45,0) -> 0 | AJ45: =IF(MONTH(BN4)>=12,AZ45,0) -> 0 | AL45: 3600 | AM45: 0 | BB45: | | BC45: 1350 | BD45: 1350 | BE45: 1350 | BF45: 1350 | BG45: 1350 | BH45: | | BI45: 0 | BJ45: 0 | BK45: 0 | BL45: 0 | BM45: | | BN45: 0 | BO45: 0 | BP45: R
A46: T | C46: Direct Labor | D46: 450 | E46: 0 | F46: 450 | G46: 0 | H46: 1350 | I46: 0 | J46: 1350 | K46: 0 | L46: 450 | M46: 450 | N46: 450 | O46: 450 | P46: 450 | Q46: 450 | R46: 450 | S46: 450 | T46: 0 | U46: 0 | V46: 0 | W46: 0 | X46: 3600 | Y46: =IF(MONTH(BN4)>=1,AO46,0) -> 0 | Z46: =IF(MONTH(BN4)>=2,AP46,0) -> 0 | AA46: =IF(MONTH(BN4)>=3,AQ46,0) -> 0 | AB46: =IF(MONTH(BN4)>=4,AR46,0) -> 0 | AC46: =IF(MONTH(BN4)>=5,AS46,0) -> 0 | AD46: =IF(MONTH(BN4)>=6,AT46,0) -> 0 | AE46: =IF(MONTH(BN4)>=7,AU46,0) -> 0 | AF46: =IF(MONTH(BN4)>=8,AV46,0) -> 0 | AG46: =IF(MONTH(BN4)>=9,AW46,0) -> 0 | AH46: =IF(MONTH(BN4)>=10,AX46,0) -> 0 | AI46: =IF(MONTH(BN4)>=11,AY46,0) -> 0 | AJ46: =IF(MONTH(BN4)>=12,AZ46,0) -> 0 | AK46: 0 | AL46: 3600 | AM46: 0 | AO46: 0 | AP46: 0 | AQ46: 0 | AR46: 0 | AS46: 0 | AT46: 0 | AU46: 0 | AV46: 0 | AW46: 0 | AX46: 0 | AY46: 0 | AZ46: 0 | BA46: 0 | BB46: | | BC46: 1350 | BD46: 1350 | BE46: 1350 | BF46: 1350 | BG46: 1350 | BH46: | | BI46: 0 | BJ46: 0 | BK46: 0 | BL46: 0 | BM46: | | BN46: -1 | BO46: 0 | BP46: T
A47: T | C47: Labor Categories Combined | D47: 450 | E47: 0 | F47: 450 | G47: 0 | H47: 1350 | I47: 0 | J47: 1350 | K47: 0 | L47: 450 | M47: 450 | N47: 450 | O47: 450 | P47: 450 | Q47: 450 | R47: 450 | S47: 450 | T47: 0 | U47: 0 | V47: 0 | W47: 0 | X47: 3600 | Y47: =IF(MONTH(BN4)>=1,AO47,0) -> 0 | Z47: =IF(MONTH(BN4)>=2,AP47,0) -> 0 | AA47: =IF(MONTH(BN4)>=3,AQ47,0) -> 0 | AB47: =IF(MONTH(BN4)>=4,AR47,0) -> 0 | AC47: =IF(MONTH(BN4)>=5,AS47,0) -> 0 | AD47: =IF(MONTH(BN4)>=6,AT47,0) -> 0 | AE47: =IF(MONTH(BN4)>=7,AU47,0) -> 0 | AF47: =IF(MONTH(BN4)>=8,AV47,0) -> 0 | AG47: =IF(MONTH(BN4)>=9,AW47,0) -> 0 | AH47: =IF(MONTH(BN4)>=10,AX47,0) -> 0 | AI47: =IF(MONTH(BN4)>=11,AY47,0) -> 0 | AJ47: =IF(MONTH(BN4)>=12,AZ47,0) -> 0 | AK47: 0 | AL47: 3600 | AM47: 0 | AO47: 0 | AP47: 0 | AQ47: 0 | AR47: 0 | AS47: 0 | AT47: 0 | AU47: 0 | AV47: 0 | AW47: 0 | AX47: 0 | AY47: 0 | AZ47: 0 | BA47: 0 | BB47: | | BC47: 1350 | BD47: 1350 | BE47: 1350 | BF47: 1350 | BG47: 1350 | BH47: | | BI47: 0 | BJ47: 0 | BK47: 0 | BL47: 0 | BM47: | | BN47: -1 | BO47: 1 | BP47: T
A48: R | B48: 676000 | C48: Food | D48: 5015.77 | F48: 5015.77 | G48: 0 | H48: 15263.77 | J48: 15263.77 | K48: 0 | L48: 5208 | M48: 4704 | N48: 5208 | O48: 5040 | P48: 5208 | Q48: 5040 | R48: 5208 | S48: 5015.77 | X48: 40631.77 | Y48: =IF(MONTH(BN4)>=1,AO48,0) ->  | Z48: =IF(MONTH(BN4)>=2,AP48,0) ->  | AA48: =IF(MONTH(BN4)>=3,AQ48,0) ->  | AB48: =IF(MONTH(BN4)>=4,AR48,0) ->  | AC48: =IF(MONTH(BN4)>=5,AS48,0) ->  | AD48: =IF(MONTH(BN4)>=6,AT48,0) ->  | AE48: =IF(MONTH(BN4)>=7,AU48,0) ->  | AF48: =IF(MONTH(BN4)>=8,AV48,0) ->  | AG48: =IF(MONTH(BN4)>=9,AW48,0) -> 0 | AH48: =IF(MONTH(BN4)>=10,AX48,0) -> 0 | AI48: =IF(MONTH(BN4)>=11,AY48,0) -> 0 | AJ48: =IF(MONTH(BN4)>=12,AZ48,0) -> 0 | AL48: 40631.77 | AM48: 0 | BB48: | | BC48: 15263.77 | BD48: 15456 | BE48: 14977.16 | BF48: 17086.84 | BG48: 17868 | BH48: | | BI48: 0.1560559006 | BJ48: 0.03197134837 | BK48: -0.1234681193 | BL48: -0.04371837923 | BM48: | | BN48: 0 | BO48: 0 | BP48: R
A49: T | C49: Food | D49: 5015.77 | E49: 0 | F49: 5015.77 | G49: 0 | H49: 15263.77 | I49: 0 | J49: 15263.77 | K49: 0 | L49: 5208 | M49: 4704 | N49: 5208 | O49: 5040 | P49: 5208 | Q49: 5040 | R49: 5208 | S49: 5015.77 | T49: 0 | U49: 0 | V49: 0 | W49: 0 | X49: 40631.77 | Y49: =IF(MONTH(BN4)>=1,AO49,0) -> 0 | Z49: =IF(MONTH(BN4)>=2,AP49,0) -> 0 | AA49: =IF(MONTH(BN4)>=3,AQ49,0) -> 0 | AB49: =IF(MONTH(BN4)>=4,AR49,0) -> 0 | AC49: =IF(MONTH(BN4)>=5,AS49,0) -> 0 | AD49: =IF(MONTH(BN4)>=6,AT49,0) -> 0 | AE49: =IF(MONTH(BN4)>=7,AU49,0) -> 0 | AF49: =IF(MONTH(BN4)>=8,AV49,0) -> 0 | AG49: =IF(MONTH(BN4)>=9,AW49,0) -> 0 | AH49: =IF(MONTH(BN4)>=10,AX49,0) -> 0 | AI49: =IF(MONTH(BN4)>=11,AY49,0) -> 0 | AJ49: =IF(MONTH(BN4)>=12,AZ49,0) -> 0 | AK49: 0 | AL49: 40631.77 | AM49: 0 | AO49: 0 | AP49: 0 | AQ49: 0 | AR49: 0 | AS49: 0 | AT49: 0 | AU49: 0 | AV49: 0 | AW49: 0 | AX49: 0 | AY49: 0 | AZ49: 0 | BA49: 0 | BB49: | | BC49: 15263.77 | BD49: 15456 | BE49: 14977.16 | BF49: 17086.84 | BG49: 17868 | BH49: | | BI49: 0.1560559006 | BJ49: 0.03197134837 | BK49: -0.1234681193 | BL49: -0.04371837923 | BM49: | | BN49: -1 | BO49: 0 | BP49: T
A50: R | B50: 790300 | C50: Promotion - Marketing | F50: 0 | G50: 0 | J50: 0 | K50: 0 | Y50: =IF(MONTH(BN4)>=1,AO50,0) ->  | Z50: =IF(MONTH(BN4)>=2,AP50,0) ->  | AA50: =IF(MONTH(BN4)>=3,AQ50,0) ->  | AB50: =IF(MONTH(BN4)>=4,AR50,0) ->  | AC50: =IF(MONTH(BN4)>=5,AS50,0) ->  | AD50: =IF(MONTH(BN4)>=6,AT50,0) ->  | AE50: =IF(MONTH(BN4)>=7,AU50,0) ->  | AF50: =IF(MONTH(BN4)>=8,AV50,0) ->  | AG50: =IF(MONTH(BN4)>=9,AW50,0) -> 0 | AH50: =IF(MONTH(BN4)>=10,AX50,0) -> 0 | AI50: =IF(MONTH(BN4)>=11,AY50,0) -> 0 | AJ50: =IF(MONTH(BN4)>=12,AZ50,0) -> 0 | AL50: 0 | AM50: 0 | BB50: | | BH50: | | BI50: 0 | BJ50: 0 | BK50: 0 | BL50: 0 | BM50: | | BN50: 0 | BO50: 0 | BP50: R
A51: T | C51: Advertising & Promotions | D51: 0 | E51: 0 | F51: 0 | G51: 0 | H51: 0 | I51: 0 | J51: 0 | K51: 0 | L51: 0 | M51: 0 | N51: 0 | O51: 0 | P51: 0 | Q51: 0 | R51: 0 | S51: 0 | T51: 0 | U51: 0 | V51: 0 | W51: 0 | X51: 0 | Y51: =IF(MONTH(BN4)>=1,AO51,0) -> 0 | Z51: =IF(MONTH(BN4)>=2,AP51,0) -> 0 | AA51: =IF(MONTH(BN4)>=3,AQ51,0) -> 0 | AB51: =IF(MONTH(BN4)>=4,AR51,0) -> 0 | AC51: =IF(MONTH(BN4)>=5,AS51,0) -> 0 | AD51: =IF(MONTH(BN4)>=6,AT51,0) -> 0 | AE51: =IF(MONTH(BN4)>=7,AU51,0) -> 0 | AF51: =IF(MONTH(BN4)>=8,AV51,0) -> 0 | AG51: =IF(MONTH(BN4)>=9,AW51,0) -> 0 | AH51: =IF(MONTH(BN4)>=10,AX51,0) -> 0 | AI51: =IF(MONTH(BN4)>=11,AY51,0) -> 0 | AJ51: =IF(MONTH(BN4)>=12,AZ51,0) -> 0 | AK51: 0 | AL51: 0 | AM51: 0 | AO51: 0 | AP51: 0 | AQ51: 0 | AR51: 0 | AS51: 0 | AT51: 0 | AU51: 0 | AV51: 0 | AW51: 0 | AX51: 0 | AY51: 0 | AZ51: 0 | BA51: 0 | BB51: | | BC51: 0 | BD51: 0 | BE51: 0 | BF51: 0 | BG51: 0 | BH51: | | BI51: 0 | BJ51: 0 | BK51: 0 | BL51: 0 | BM51: | | BN51: -1 | BO51: 0 | BP51: T
A52: R | B52: 760000 | C52: R & M - Apartments | F52: 0 | G52: 0 | J52: 0 | K52: 0 | O52: 2150 | P52: 2150 | X52: 4300 | Y52: =IF(MONTH(BN4)>=1,AO52,0) ->  | Z52: =IF(MONTH(BN4)>=2,AP52,0) ->  | AA52: =IF(MONTH(BN4)>=3,AQ52,0) ->  | AB52: =IF(MONTH(BN4)>=4,AR52,0) ->  | AC52: =IF(MONTH(BN4)>=5,AS52,0) ->  | AD52: =IF(MONTH(BN4)>=6,AT52,0) ->  | AE52: =IF(MONTH(BN4)>=7,AU52,0) ->  | AF52: =IF(MONTH(BN4)>=8,AV52,0) ->  | AG52: =IF(MONTH(BN4)>=9,AW52,0) -> 0 | AH52: =IF(MONTH(BN4)>=10,AX52,0) -> 0 | AI52: =IF(MONTH(BN4)>=11,AY52,0) -> 0 | AJ52: =IF(MONTH(BN4)>=12,AZ52,0) -> 0 | AL52: 4300 | AM52: 0 | BB52: | | BD52: 4300 | BF52: 4111.88 | BH52: | | BI52: 1 | BJ52: 0 | BK52: 1 | BL52: 0 | BM52: | | BN52: 0 | BO52: 0 | BP52: R
A53: T | C53: Repair & Maintenance | D53: 0 | E53: 0 | F53: 0 | G53: 0 | H53: 0 | I53: 0 | J53: 0 | K53: 0 | L53: 0 | M53: 0 | N53: 0 | O53: 2150 | P53: 2150 | Q53: 0 | R53: 0 | S53: 0 | T53: 0 | U53: 0 | V53: 0 | W53: 0 | X53: 4300 | Y53: =IF(MONTH(BN4)>=1,AO53,0) -> 0 | Z53: =IF(MONTH(BN4)>=2,AP53,0) -> 0 | AA53: =IF(MONTH(BN4)>=3,AQ53,0) -> 0 | AB53: =IF(MONTH(BN4)>=4,AR53,0) -> 0 | AC53: =IF(MONTH(BN4)>=5,AS53,0) -> 0 | AD53: =IF(MONTH(BN4)>=6,AT53,0) -> 0 | AE53: =IF(MONTH(BN4)>=7,AU53,0) -> 0 | AF53: =IF(MONTH(BN4)>=8,AV53,0) -> 0 | AG53: =IF(MONTH(BN4)>=9,AW53,0) -> 0 | AH53: =IF(MONTH(BN4)>=10,AX53,0) -> 0 | AI53: =IF(MONTH(BN4)>=11,AY53,0) -> 0 | AJ53: =IF(MONTH(BN4)>=12,AZ53,0) -> 0 | AK53: 0 | AL53: 4300 | AM53: 0 | AO53: 0 | AP53: 0 | AQ53: 0 | AR53: 0 | AS53: 0 | AT53: 0 | AU53: 0 | AV53: 0 | AW53: 0 | AX53: 0 | AY53: 0 | AZ53: 0 | BA53: 0 | BB53: | | BC53: 0 | BD53: 4300 | BE53: 0 | BF53: 4111.88 | BG53: 0 | BH53: | | BI53: 1 | BJ53: 0 | BK53: 1 | BL53: 0 | BM53: | | BN53: -1 | BO53: 0 | BP53: T
A54: R | B54: 638200 | C54: Computer - Maintenance Agreeme | F54: 0 | G54: 0 | H54: -12.15 | J54: -12.15 | K54: 0 | P54: 12.15 | Q54: -12.15 | Y54: =IF(MONTH(BN4)>=1,AO54,0) ->  | Z54: =IF(MONTH(BN4)>=2,AP54,0) ->  | AA54: =IF(MONTH(BN4)>=3,AQ54,0) ->  | AB54: =IF(MONTH(BN4)>=4,AR54,0) ->  | AC54: =IF(MONTH(BN4)>=5,AS54,0) ->  | AD54: =IF(MONTH(BN4)>=6,AT54,0) ->  | AE54: =IF(MONTH(BN4)>=7,AU54,0) ->  | AF54: =IF(MONTH(BN4)>=8,AV54,0) ->  | AG54: =IF(MONTH(BN4)>=9,AW54,0) -> 0 | AH54: =IF(MONTH(BN4)>=10,AX54,0) -> 0 | AI54: =IF(MONTH(BN4)>=11,AY54,0) -> 0 | AJ54: =IF(MONTH(BN4)>=12,AZ54,0) -> 0 | AL54: 0 | AM54: 0 | BB54: | | BC54: -12.15 | BD54: 12.15 | BH54: | | BI54: 1 | BJ54: 0 | BK54: 0 | BL54: 0 | BM54: | | BN54: 0 | BO54: 0 | BP54: R
A55: T | C55: Computer Software/Hosting | D55: 0 | E55: 0 | F55: 0 | G55: 0 | H55: -12.15 | I55: 0 | J55: -12.15 | K55: 0 | L55: 0 | M55: 0 | N55: 0 | O55: 0 | P55: 12.15 | Q55: -12.15 | R55: 0 | S55: 0 | T55: 0 | U55: 0 | V55: 0 | W55: 0 | X55: 0 | Y55: =IF(MONTH(BN4)>=1,AO55,0) -> 0 | Z55: =IF(MONTH(BN4)>=2,AP55,0) -> 0 | AA55: =IF(MONTH(BN4)>=3,AQ55,0) -> 0 | AB55: =IF(MONTH(BN4)>=4,AR55,0) -> 0 | AC55: =IF(MONTH(BN4)>=5,AS55,0) -> 0 | AD55: =IF(MONTH(BN4)>=6,AT55,0) -> 0 | AE55: =IF(MONTH(BN4)>=7,AU55,0) -> 0 | AF55: =IF(MONTH(BN4)>=8,AV55,0) -> 0 | AG55: =IF(MONTH(BN4)>=9,AW55,0) -> 0 | AH55: =IF(MONTH(BN4)>=10,AX55,0) -> 0 | AI55: =IF(MONTH(BN4)>=11,AY55,0) -> 0 | AJ55: =IF(MONTH(BN4)>=12,AZ55,0) -> 0 | AK55: 0 | AL55: 0 | AM55: 0 | AO55: 0 | AP55: 0 | AQ55: 0 | AR55: 0 | AS55: 0 | AT55: 0 | AU55: 0 | AV55: 0 | AW55: 0 | AX55: 0 | AY55: 0 | AZ55: 0 | BA55: 0 | BB55: | | BC55: -12.15 | BD55: 12.15 | BE55: 0 | BF55: 0 | BG55: 0 | BH55: | | BI55: 1 | BJ55: 0 | BK55: 0 | BL55: 0 | BM55: | | BN55: -1 | BO55: 0 | BP55: T
A56: R | B56: 880060 | C56: Utilities - Trash | D56: 162 | F56: 162 | G56: 0 | H56: 486 | J56: 486 | K56: 0 | L56: 162 | M56: 162 | N56: 162 | O56: 162 | P56: 162 | Q56: 162 | R56: 162 | S56: 162 | X56: 1296 | Y56: =IF(MONTH(BN4)>=1,AO56,0) ->  | Z56: =IF(MONTH(BN4)>=2,AP56,0) ->  | AA56: =IF(MONTH(BN4)>=3,AQ56,0) ->  | AB56: =IF(MONTH(BN4)>=4,AR56,0) ->  | AC56: =IF(MONTH(BN4)>=5,AS56,0) ->  | AD56: =IF(MONTH(BN4)>=6,AT56,0) ->  | AE56: =IF(MONTH(BN4)>=7,AU56,0) ->  | AF56: =IF(MONTH(BN4)>=8,AV56,0) ->  | AG56: =IF(MONTH(BN4)>=9,AW56,0) -> 0 | AH56: =IF(MONTH(BN4)>=10,AX56,0) -> 0 | AI56: =IF(MONTH(BN4)>=11,AY56,0) -> 0 | AJ56: =IF(MONTH(BN4)>=12,AZ56,0) -> 0 | AL56: 1296 | AM56: 0 | BB56: | | BC56: 486 | BD56: 486 | BE56: 486 | BF56: 472.5 | BG56: 415 | BH56: | | BI56: -0.146090535 | BJ56: 0 | BK56: 0.02857142857 | BL56: 0.1385542169 | BM56: | | BN56: 0 | BO56: 0 | BP56: R
A57: T | C57: Utilities | D57: 162 | E57: 0 | F57: 162 | G57: 0 | H57: 486 | I57: 0 | J57: 486 | K57: 0 | L57: 162 | M57: 162 | N57: 162 | O57: 162 | P57: 162 | Q57: 162 | R57: 162 | S57: 162 | T57: 0 | U57: 0 | V57: 0 | W57: 0 | X57: 1296 | Y57: =IF(MONTH(BN4)>=1,AO57,0) -> 0 | Z57: =IF(MONTH(BN4)>=2,AP57,0) -> 0 | AA57: =IF(MONTH(BN4)>=3,AQ57,0) -> 0 | AB57: =IF(MONTH(BN4)>=4,AR57,0) -> 0 | AC57: =IF(MONTH(BN4)>=5,AS57,0) -> 0 | AD57: =IF(MONTH(BN4)>=6,AT57,0) -> 0 | AE57: =IF(MONTH(BN4)>=7,AU57,0) -> 0 | AF57: =IF(MONTH(BN4)>=8,AV57,0) -> 0 | AG57: =IF(MONTH(BN4)>=9,AW57,0) -> 0 | AH57: =IF(MONTH(BN4)>=10,AX57,0) -> 0 | AI57: =IF(MONTH(BN4)>=11,AY57,0) -> 0 | AJ57: =IF(MONTH(BN4)>=12,AZ57,0) -> 0 | AK57: 0 | AL57: 1296 | AM57: 0 | AO57: 0 | AP57: 0 | AQ57: 0 | AR57: 0 | AS57: 0 | AT57: 0 | AU57: 0 | AV57: 0 | AW57: 0 | AX57: 0 | AY57: 0 | AZ57: 0 | BA57: 0 | BB57: | | BC57: 486 | BD57: 486 | BE57: 486 | BF57: 472.5 | BG57: 415 | BH57: | | BI57: -0.146090535 | BJ57: 0 | BK57: 0.02857142857 | BL57: 0.1385542169 | BM57: | | BN57: -1 | BO57: 0 | BP57: T
A58: R | B58: 890010 | C58: Bank Charges | F58: 0 | G58: 0 | J58: 0 | K58: 0 | Y58: =IF(MONTH(BN4)>=1,AO58,0) ->  | Z58: =IF(MONTH(BN4)>=2,AP58,0) ->  | AA58: =IF(MONTH(BN4)>=3,AQ58,0) ->  | AB58: =IF(MONTH(BN4)>=4,AR58,0) ->  | AC58: =IF(MONTH(BN4)>=5,AS58,0) ->  | AD58: =IF(MONTH(BN4)>=6,AT58,0) ->  | AE58: =IF(MONTH(BN4)>=7,AU58,0) ->  | AF58: =IF(MONTH(BN4)>=8,AV58,0) ->  | AG58: =IF(MONTH(BN4)>=9,AW58,0) -> 0 | AH58: =IF(MONTH(BN4)>=10,AX58,0) -> 0 | AI58: =IF(MONTH(BN4)>=11,AY58,0) -> 0 | AJ58: =IF(MONTH(BN4)>=12,AZ58,0) -> 0 | AL58: 0 | AM58: 0 | BB58: | | BF58: -20 | BH58: | | BI58: 0 | BJ58: 0 | BK58: 1 | BL58: 0 | BM58: | | BN58: 0 | BO58: 0 | BP58: R
A59: T | C59: Other Expenses | D59: 0 | E59: 0 | F59: 0 | G59: 0 | H59: 0 | I59: 0 | J59: 0 | K59: 0 | L59: 0 | M59: 0 | N59: 0 | O59: 0 | P59: 0 | Q59: 0 | R59: 0 | S59: 0 | T59: 0 | U59: 0 | V59: 0 | W59: 0 | X59: 0 | Y59: =IF(MONTH(BN4)>=1,AO59,0) -> 0 | Z59: =IF(MONTH(BN4)>=2,AP59,0) -> 0 | AA59: =IF(MONTH(BN4)>=3,AQ59,0) -> 0 | AB59: =IF(MONTH(BN4)>=4,AR59,0) -> 0 | AC59: =IF(MONTH(BN4)>=5,AS59,0) -> 0 | AD59: =IF(MONTH(BN4)>=6,AT59,0) -> 0 | AE59: =IF(MONTH(BN4)>=7,AU59,0) -> 0 | AF59: =IF(MONTH(BN4)>=8,AV59,0) -> 0 | AG59: =IF(MONTH(BN4)>=9,AW59,0) -> 0 | AH59: =IF(MONTH(BN4)>=10,AX59,0) -> 0 | AI59: =IF(MONTH(BN4)>=11,AY59,0) -> 0 | AJ59: =IF(MONTH(BN4)>=12,AZ59,0) -> 0 | AK59: 0 | AL59: 0 | AM59: 0 | AO59: 0 | AP59: 0 | AQ59: 0 | AR59: 0 | AS59: 0 | AT59: 0 | AU59: 0 | AV59: 0 | AW59: 0 | AX59: 0 | AY59: 0 | AZ59: 0 | BA59: 0 | BB59: | | BC59: 0 | BD59: 0 | BE59: 0 | BF59: -20 | BG59: 0 | BH59: | | BI59: 0 | BJ59: 0 | BK59: 1 | BL59: 0 | BM59: | | BN59: -1 | BO59: 0 | BP59: T
Y60: =IF(MONTH(BN4)>=1,AO60,0) ->  | Z60: =IF(MONTH(BN4)>=2,AP60,0) ->  | AA60: =IF(MONTH(BN4)>=3,AQ60,0) ->  | AB60: =IF(MONTH(BN4)>=4,AR60,0) ->  | AC60: =IF(MONTH(BN4)>=5,AS60,0) ->  | AD60: =IF(MONTH(BN4)>=6,AT60,0) ->  | AE60: =IF(MONTH(BN4)>=7,AU60,0) ->  | AF60: =IF(MONTH(BN4)>=8,AV60,0) ->  | AG60: =IF(MONTH(BN4)>=9,AW60,0) -> 0 | AH60: =IF(MONTH(BN4)>=10,AX60,0) -> 0 | AI60: =IF(MONTH(BN4)>=11,AY60,0) -> 0 | AJ60: =IF(MONTH(BN4)>=12,AZ60,0) -> 0 | BB60: | | BH60: | | BM60: | | BO60: 0
A61: T | C61: Total Operating Expenses | D61: 5627.77 | E61: 0 | F61: 5627.77 | G61: 0 | H61: 17087.62 | I61: 0 | J61: 17087.62 | K61: 0 | L61: 5820 | M61: 5316 | N61: 5820 | O61: 7802 | P61: 7982.15 | Q61: 5639.85 | R61: 5820 | S61: 5627.77 | T61: 0 | U61: 0 | V61: 0 | W61: 0 | X61: 49827.77 | Y61: =IF(MONTH(BN4)>=1,AO61,0) -> 0 | Z61: =IF(MONTH(BN4)>=2,AP61,0) -> 0 | AA61: =IF(MONTH(BN4)>=3,AQ61,0) -> 0 | AB61: =IF(MONTH(BN4)>=4,AR61,0) -> 0 | AC61: =IF(MONTH(BN4)>=5,AS61,0) -> 0 | AD61: =IF(MONTH(BN4)>=6,AT61,0) -> 0 | AE61: =IF(MONTH(BN4)>=7,AU61,0) -> 0 | AF61: =IF(MONTH(BN4)>=8,AV61,0) -> 0 | AG61: =IF(MONTH(BN4)>=9,AW61,0) -> 0 | AH61: =IF(MONTH(BN4)>=10,AX61,0) -> 0 | AI61: =IF(MONTH(BN4)>=11,AY61,0) -> 0 | AJ61: =IF(MONTH(BN4)>=12,AZ61,0) -> 0 | AK61: 0 | AL61: 49827.77 | AM61: 0 | AO61: 0 | AP61: 0 | AQ61: 0 | AR61: 0 | AS61: 0 | AT61: 0 | AU61: 0 | AV61: 0 | AW61: 0 | AX61: 0 | AY61: 0 | AZ61: 0 | BA61: 0 | BB61: | | BC61: 17087.62 | BD61: 21604.15 | BE61: 16813.16 | BF61: 23001.22 | BG61: 19633 | BH61: | | BI61: -0.09123941465 | BJ61: 0.2849547616 | BK61: -0.2690318166 | BL61: 0.1715591097 | BM61: | | BN61: -1 | BO61: 1 | BP61: T
Y62: =IF(MONTH(BN4)>=1,AO62,0) ->  | Z62: =IF(MONTH(BN4)>=2,AP62,0) ->  | AA62: =IF(MONTH(BN4)>=3,AQ62,0) ->  | AB62: =IF(MONTH(BN4)>=4,AR62,0) ->  | AC62: =IF(MONTH(BN4)>=5,AS62,0) ->  | AD62: =IF(MONTH(BN4)>=6,AT62,0) ->  | AE62: =IF(MONTH(BN4)>=7,AU62,0) ->  | AF62: =IF(MONTH(BN4)>=8,AV62,0) ->  | AG62: =IF(MONTH(BN4)>=9,AW62,0) -> 0 | AH62: =IF(MONTH(BN4)>=10,AX62,0) -> 0 | AI62: =IF(MONTH(BN4)>=11,AY62,0) -> 0 | AJ62: =IF(MONTH(BN4)>=12,AZ62,0) -> 0 | BB62: | | BH62: | | BM62: | | BO62: 0
A63: T | C63: Net Operating Income(Loss) | D63: 32036.11 | E63: 0 | F63: 32036.11 | G63: 0 | H63: 95470.45 | I63: 0 | J63: 95470.45 | K63: 0 | L63: 29164.85 | M63: 33261 | N63: 34529.3 | O63: 31738 | P63: 28557.85 | Q63: 33300.15 | R63: 30134.19 | S63: 32036.11 | T63: 0 | U63: 0 | V63: 0 | W63: 0 | X63: 252721.45 | Y63: =IF(MONTH(BN4)>=1,AO63,0) -> 0 | Z63: =IF(MONTH(BN4)>=2,AP63,0) -> 0 | AA63: =IF(MONTH(BN4)>=3,AQ63,0) -> 0 | AB63: =IF(MONTH(BN4)>=4,AR63,0) -> 0 | AC63: =IF(MONTH(BN4)>=5,AS63,0) -> 0 | AD63: =IF(MONTH(BN4)>=6,AT63,0) -> 0 | AE63: =IF(MONTH(BN4)>=7,AU63,0) -> 0 | AF63: =IF(MONTH(BN4)>=8,AV63,0) -> 0 | AG63: =IF(MONTH(BN4)>=9,AW63,0) -> 0 | AH63: =IF(MONTH(BN4)>=10,AX63,0) -> 0 | AI63: =IF(MONTH(BN4)>=11,AY63,0) -> 0 | AJ63: =IF(MONTH(BN4)>=12,AZ63,0) -> 0 | AK63: 0 | AL63: 252721.45 | AM63: 0 | AO63: 0 | AP63: 0 | AQ63: 0 | AR63: 0 | AS63: 0 | AT63: 0 | AU63: 0 | AV63: 0 | AW63: 0 | AX63: 0 | AY63: 0 | AZ63: 0 | BA63: 0 | BB63: | | BC63: 95470.45 | BD63: 94825.15 | BE63: 94475.69 | BF63: 89495.91 | BG63: 77481.11 | BH63: | | BI63: -0.1829054845 | BJ63: 0.003698940966 | BK63: 0.05564254277 | BL63: 0.1550674739 | BM63: | | BN63: -1 | BO63: 2 | BP63: T
A64: T | C64: NOI Margin | D64: 0.850579 | F64: 0.850579 | G64: 0 | H64: 0.848188 | J64: 0.848188 | K64: 0 | L64: 0.833642 | M64: 0.862197 | N64: 0.855759 | O64: 0.80268 | P64: 0.78155 | Q64: 0.855165 | R64: 0.838127 | S64: 0.850579 | X64: 0.835306 | Y64: =IF(MONTH(BN4)>=1,AO64,0) ->  | Z64: =IF(MONTH(BN4)>=2,AP64,0) ->  | AA64: =IF(MONTH(BN4)>=3,AQ64,0) ->  | AB64: =IF(MONTH(BN4)>=4,AR64,0) ->  | AC64: =IF(MONTH(BN4)>=5,AS64,0) ->  | AD64: =IF(MONTH(BN4)>=6,AT64,0) ->  | AE64: =IF(MONTH(BN4)>=7,AU64,0) ->  | AF64: =IF(MONTH(BN4)>=8,AV64,0) ->  | AG64: =IF(MONTH(BN4)>=9,AW64,0) -> 0 | AH64: =IF(MONTH(BN4)>=10,AX64,0) -> 0 | AI64: =IF(MONTH(BN4)>=11,AY64,0) -> 0 | AJ64: =IF(MONTH(BN4)>=12,AZ64,0) -> 0 | AL64: 0.835306 | AM64: 0 | BB64: | | BC64: 0.848188 | BD64: 0.814444 | BE64: 0.848923 | BF64: 0.795539 | BG64: 0.797835 | BH64: | | BI64: -0.02039305342 | BJ64: -0.04061499099 | BK64: 0.06710418974 | BL64: -0.002877788014 | BM64: | | BN64: -1 | BP64: T
A65: H | C65: Non-Operating Expenses | D65: 0 | E65: 0 | F65: 0 | G65: 0 | H65: 0 | I65: 0 | J65: 0 | K65: 0 | L65: 0 | M65: 0 | N65: 0 | O65: 0 | P65: 0 | Q65: 0 | R65: 0 | S65: 0 | T65: 0 | U65: 0 | V65: 0 | W65: 0 | X65: 0 | Y65: =IF(MONTH(BN4)>=1,AO65,0) -> 0 | Z65: =IF(MONTH(BN4)>=2,AP65,0) -> 0 | AA65: =IF(MONTH(BN4)>=3,AQ65,0) -> 0 | AB65: =IF(MONTH(BN4)>=4,AR65,0) -> 0 | AC65: =IF(MONTH(BN4)>=5,AS65,0) -> 0 | AD65: =IF(MONTH(BN4)>=6,AT65,0) -> 0 | AE65: =IF(MONTH(BN4)>=7,AU65,0) -> 0 | AF65: =IF(MONTH(BN4)>=8,AV65,0) -> 0 | AG65: =IF(MONTH(BN4)>=9,AW65,0) -> 0 | AH65: =IF(MONTH(BN4)>=10,AX65,0) -> 0 | AI65: =IF(MONTH(BN4)>=11,AY65,0) -> 0 | AJ65: =IF(MONTH(BN4)>=12,AZ65,0) -> 0 | AK65: 0 | AL65: 0 | AM65: 0 | AO65: 0 | AP65: 0 | AQ65: 0 | AR65: 0 | AS65: 0 | AT65: 0 | AU65: 0 | AV65: 0 | AW65: 0 | AX65: 0 | AY65: 0 | AZ65: 0 | BA65: 0 | BB65: | | BC65: 0 | BD65: 0 | BE65: 0 | BF65: 0 | BG65: 0 | BH65: | | BI65: 0 | BJ65: 0 | BK65: 0 | BL65: 0 | BM65: | | BN65: -1 | BO65: 0 | BP65: H
A66: R | B66: 672600 | C66: Fees - Management | D66: 2259.83 | F66: 2259.83 | G66: 0 | H66: 6753.48 | J66: 6753.48 | K66: 0 | L66: 2099.09 | M66: 2314.62 | N66: 2420.96 | O66: 2372.4 | P66: 2189.4 | Q66: 2336.4 | R66: 2157.25 | S66: 2259.83 | X66: 18149.95 | Y66: =IF(MONTH(BN4)>=1,AO66,0) ->  | Z66: =IF(MONTH(BN4)>=2,AP66,0) ->  | AA66: =IF(MONTH(BN4)>=3,AQ66,0) ->  | AB66: =IF(MONTH(BN4)>=4,AR66,0) ->  | AC66: =IF(MONTH(BN4)>=5,AS66,0) ->  | AD66: =IF(MONTH(BN4)>=6,AT66,0) ->  | AE66: =IF(MONTH(BN4)>=7,AU66,0) ->  | AF66: =IF(MONTH(BN4)>=8,AV66,0) ->  | AG66: =IF(MONTH(BN4)>=9,AW66,0) -> 0 | AH66: =IF(MONTH(BN4)>=10,AX66,0) -> 0 | AI66: =IF(MONTH(BN4)>=11,AY66,0) -> 0 | AJ66: =IF(MONTH(BN4)>=12,AZ66,0) -> 0 | AL66: 18149.95 | AM66: 0 | BB66: | | BC66: 6753.48 | BD66: 6982.76 | BE66: 6641.33 | BF66: 6740.54 | BG66: 5826.85 | BH66: | | BI66: -0.1655376957 | BJ66: 0.05140988326 | BK66: -0.01471840535 | BL66: 0.156806851 | BM66: | | BN66: 0 | BO66: 0 | BP66: R
A67: T | C67: Management Fees | D67: 2259.83 | E67: 0 | F67: 2259.83 | G67: 0 | H67: 6753.48 | I67: 0 | J67: 6753.48 | K67: 0 | L67: 2099.09 | M67: 2314.62 | N67: 2420.96 | O67: 2372.4 | P67: 2189.4 | Q67: 2336.4 | R67: 2157.25 | S67: 2259.83 | T67: 0 | U67: 0 | V67: 0 | W67: 0 | X67: 18149.95 | Y67: =IF(MONTH(BN4)>=1,AO67,0) -> 0 | Z67: =IF(MONTH(BN4)>=2,AP67,0) -> 0 | AA67: =IF(MONTH(BN4)>=3,AQ67,0) -> 0 | AB67: =IF(MONTH(BN4)>=4,AR67,0) -> 0 | AC67: =IF(MONTH(BN4)>=5,AS67,0) -> 0 | AD67: =IF(MONTH(BN4)>=6,AT67,0) -> 0 | AE67: =IF(MONTH(BN4)>=7,AU67,0) -> 0 | AF67: =IF(MONTH(BN4)>=8,AV67,0) -> 0 | AG67: =IF(MONTH(BN4)>=9,AW67,0) -> 0 | AH67: =IF(MONTH(BN4)>=10,AX67,0) -> 0 | AI67: =IF(MONTH(BN4)>=11,AY67,0) -> 0 | AJ67: =IF(MONTH(BN4)>=12,AZ67,0) -> 0 | AK67: 0 | AL67: 18149.95 | AM67: 0 | AO67: 0 | AP67: 0 | AQ67: 0 | AR67: 0 | AS67: 0 | AT67: 0 | AU67: 0 | AV67: 0 | AW67: 0 | AX67: 0 | AY67: 0 | AZ67: 0 | BA67: 0 | BB67: | | BC67: 6753.48 | BD67: 6982.76 | BE67: 6641.33 | BF67: 6740.54 | BG67: 5826.85 | BH67: | | BI67: -0.1655376957 | BJ67: 0.05140988326 | BK67: -0.01471840535 | BL67: 0.156806851 | BM67: | | BN67: -1 | BO67: 0 | BP67: T
Y68: =IF(MONTH(BN4)>=1,AO68,0) ->  | Z68: =IF(MONTH(BN4)>=2,AP68,0) ->  | AA68: =IF(MONTH(BN4)>=3,AQ68,0) ->  | AB68: =IF(MONTH(BN4)>=4,AR68,0) ->  | AC68: =IF(MONTH(BN4)>=5,AS68,0) ->  | AD68: =IF(MONTH(BN4)>=6,AT68,0) ->  | AE68: =IF(MONTH(BN4)>=7,AU68,0) ->  | AF68: =IF(MONTH(BN4)>=8,AV68,0) ->  | AG68: =IF(MONTH(BN4)>=9,AW68,0) -> 0 | AH68: =IF(MONTH(BN4)>=10,AX68,0) -> 0 | AI68: =IF(MONTH(BN4)>=11,AY68,0) -> 0 | AJ68: =IF(MONTH(BN4)>=12,AZ68,0) -> 0 | BB68: | | BH68: | | BM68: | | BO68: 0
A69: T | C69: Total Other (Income)Expenses | D69: 2259.83 | E69: 0 | F69: 2259.83 | G69: 0 | H69: 6753.48 | I69: 0 | J69: 6753.48 | K69: 0 | L69: 2099.09 | M69: 2314.62 | N69: 2420.96 | O69: 2372.4 | P69: 2189.4 | Q69: 2336.4 | R69: 2157.25 | S69: 2259.83 | T69: 0 | U69: 0 | V69: 0 | W69: 0 | X69: 18149.95 | Y69: =IF(MONTH(BN4)>=1,AO69,0) -> 0 | Z69: =IF(MONTH(BN4)>=2,AP69,0) -> 0 | AA69: =IF(MONTH(BN4)>=3,AQ69,0) -> 0 | AB69: =IF(MONTH(BN4)>=4,AR69,0) -> 0 | AC69: =IF(MONTH(BN4)>=5,AS69,0) -> 0 | AD69: =IF(MONTH(BN4)>=6,AT69,0) -> 0 | AE69: =IF(MONTH(BN4)>=7,AU69,0) -> 0 | AF69: =IF(MONTH(BN4)>=8,AV69,0) -> 0 | AG69: =IF(MONTH(BN4)>=9,AW69,0) -> 0 | AH69: =IF(MONTH(BN4)>=10,AX69,0) -> 0 | AI69: =IF(MONTH(BN4)>=11,AY69,0) -> 0 | AJ69: =IF(MONTH(BN4)>=12,AZ69,0) -> 0 | AK69: 0 | AL69: 18149.95 | AM69: 0 | AO69: 0 | AP69: 0 | AQ69: 0 | AR69: 0 | AS69: 0 | AT69: 0 | AU69: 0 | AV69: 0 | AW69: 0 | AX69: 0 | AY69: 0 | AZ69: 0 | BA69: 0 | BB69: | | BC69: 6753.48 | BD69: 6982.76 | BE69: 6641.33 | BF69: 6740.54 | BG69: 5826.85 | BH69: | | BI69: -0.1655376957 | BJ69: 0.05140988326 | BK69: -0.01471840535 | BL69: 0.156806851 | BM69: | | BN69: -1 | BO69: 1 | BP69: T
Y70: =IF(MONTH(BN4)>=1,AO70,0) ->  | Z70: =IF(MONTH(BN4)>=2,AP70,0) ->  | AA70: =IF(MONTH(BN4)>=3,AQ70,0) ->  | AB70: =IF(MONTH(BN4)>=4,AR70,0) ->  | AC70: =IF(MONTH(BN4)>=5,AS70,0) ->  | AD70: =IF(MONTH(BN4)>=6,AT70,0) ->  | AE70: =IF(MONTH(BN4)>=7,AU70,0) ->  | AF70: =IF(MONTH(BN4)>=8,AV70,0) ->  | AG70: =IF(MONTH(BN4)>=9,AW70,0) -> 0 | AH70: =IF(MONTH(BN4)>=10,AX70,0) -> 0 | AI70: =IF(MONTH(BN4)>=11,AY70,0) -> 0 | AJ70: =IF(MONTH(BN4)>=12,AZ70,0) -> 0 | BB70: | | BH70: | | BM70: | | BO70: 0
A71: T | C71: Net Income(Loss) B4 Depr/Amort. | D71: 29776.28 | E71: 0 | F71: 29776.28 | G71: 0 | H71: 88716.97 | I71: 0 | J71: 88716.97 | K71: 0 | L71: 27065.76 | M71: 30946.38 | N71: 32108.34 | O71: 29365.6 | P71: 26368.45 | Q71: 30963.75 | R71: 27976.94 | S71: 29776.28 | T71: 0 | U71: 0 | V71: 0 | W71: 0 | X71: 234571.5 | Y71: =IF(MONTH(BN4)>=1,AO71,0) -> 0 | Z71: =IF(MONTH(BN4)>=2,AP71,0) -> 0 | AA71: =IF(MONTH(BN4)>=3,AQ71,0) -> 0 | AB71: =IF(MONTH(BN4)>=4,AR71,0) -> 0 | AC71: =IF(MONTH(BN4)>=5,AS71,0) -> 0 | AD71: =IF(MONTH(BN4)>=6,AT71,0) -> 0 | AE71: =IF(MONTH(BN4)>=7,AU71,0) -> 0 | AF71: =IF(MONTH(BN4)>=8,AV71,0) -> 0 | AG71: =IF(MONTH(BN4)>=9,AW71,0) -> 0 | AH71: =IF(MONTH(BN4)>=10,AX71,0) -> 0 | AI71: =IF(MONTH(BN4)>=11,AY71,0) -> 0 | AJ71: =IF(MONTH(BN4)>=12,AZ71,0) -> 0 | AK71: 0 | AL71: 234571.5 | AM71: 0 | AO71: 0 | AP71: 0 | AQ71: 0 | AR71: 0 | AS71: 0 | AT71: 0 | AU71: 0 | AV71: 0 | AW71: 0 | AX71: 0 | AY71: 0 | AZ71: 0 | BA71: 0 | BB71: | | BC71: 88716.97 | BD71: 87842.39 | BE71: 87834.36 | BF71: 82755.37 | BG71: 71654.26 | BH71: | | BI71: -0.1842860833 | BJ71: 9.142208129e-05 | BK71: 0.06137353987 | BL71: 0.1549260295 | BM71: | | BN71: -1 | BO71: 0 | BP71: T
Y72: =IF(MONTH(BN4)>=1,AO72,0) ->  | Z72: =IF(MONTH(BN4)>=2,AP72,0) ->  | AA72: =IF(MONTH(BN4)>=3,AQ72,0) ->  | AB72: =IF(MONTH(BN4)>=4,AR72,0) ->  | AC72: =IF(MONTH(BN4)>=5,AS72,0) ->  | AD72: =IF(MONTH(BN4)>=6,AT72,0) ->  | AE72: =IF(MONTH(BN4)>=7,AU72,0) ->  | AF72: =IF(MONTH(BN4)>=8,AV72,0) ->  | AG72: =IF(MONTH(BN4)>=9,AW72,0) -> 0 | AH72: =IF(MONTH(BN4)>=10,AX72,0) -> 0 | AI72: =IF(MONTH(BN4)>=11,AY72,0) -> 0 | AJ72: =IF(MONTH(BN4)>=12,AZ72,0) -> 0 | BB72: | | BH72: | | BM72: | | BO72: 0
A73: T | C73: Net Income (Loss) | D73: 29776.28 | E73: 0 | F73: 29776.28 | G73: 0 | H73: 88716.97 | I73: 0 | J73: 88716.97 | K73: 0 | L73: 27065.76 | M73: 30946.38 | N73: 32108.34 | O73: 29365.6 | P73: 26368.45 | Q73: 30963.75 | R73: 27976.94 | S73: 29776.28 | T73: 0 | U73: 0 | V73: 0 | W73: 0 | X73: 234571.5 | Y73: =IF(MONTH(BN4)>=1,AO73,0) -> 0 | Z73: =IF(MONTH(BN4)>=2,AP73,0) -> 0 | AA73: =IF(MONTH(BN4)>=3,AQ73,0) -> 0 | AB73: =IF(MONTH(BN4)>=4,AR73,0) -> 0 | AC73: =IF(MONTH(BN4)>=5,AS73,0) -> 0 | AD73: =IF(MONTH(BN4)>=6,AT73,0) -> 0 | AE73: =IF(MONTH(BN4)>=7,AU73,0) -> 0 | AF73: =IF(MONTH(BN4)>=8,AV73,0) -> 0 | AG73: =IF(MONTH(BN4)>=9,AW73,0) -> 0 | AH73: =IF(MONTH(BN4)>=10,AX73,0) -> 0 | AI73: =IF(MONTH(BN4)>=11,AY73,0) -> 0 | AJ73: =IF(MONTH(BN4)>=12,AZ73,0) -> 0 | AK73: 0 | AL73: 234571.5 | AM73: 0 | AO73: 0 | AP73: 0 | AQ73: 0 | AR73: 0 | AS73: 0 | AT73: 0 | AU73: 0 | AV73: 0 | AW73: 0 | AX73: 0 | AY73: 0 | AZ73: 0 | BA73: 0 | BB73: | | BC73: 88716.97 | BD73: 87842.39 | BE73: 87834.36 | BF73: 82755.37 | BG73: 71654.26 | BH73: | | BI73: -0.1842860833 | BJ73: 9.142208129e-05 | BK73: 0.06137353987 | BL73: 0.1549260295 | BM73: | | BN73: -1 | BO73: 2 | BP73: T
A74: T | C74: Net Operating Income(Loss) | D74: 32036.11 | E74: 0 | F74: 32036.11 | G74: 0 | H74: 95470.45 | I74: 0 | J74: 95470.45 | K74: 0 | L74: 29164.85 | M74: 33261 | N74: 34529.3 | O74: 31738 | P74: 28557.85 | Q74: 33300.15 | R74: 30134.19 | S74: 32036.11 | T74: 0 | U74: 0 | V74: 0 | W74: 0 | X74: 252721.45 | Y74: =IF(MONTH(BN4)>=1,AO74,0) -> 0 | Z74: =IF(MONTH(BN4)>=2,AP74,0) -> 0 | AA74: =IF(MONTH(BN4)>=3,AQ74,0) -> 0 | AB74: =IF(MONTH(BN4)>=4,AR74,0) -> 0 | AC74: =IF(MONTH(BN4)>=5,AS74,0) -> 0 | AD74: =IF(MONTH(BN4)>=6,AT74,0) -> 0 | AE74: =IF(MONTH(BN4)>=7,AU74,0) -> 0 | AF74: =IF(MONTH(BN4)>=8,AV74,0) -> 0 | AG74: =IF(MONTH(BN4)>=9,AW74,0) -> 0 | AH74: =IF(MONTH(BN4)>=10,AX74,0) -> 0 | AI74: =IF(MONTH(BN4)>=11,AY74,0) -> 0 | AJ74: =IF(MONTH(BN4)>=12,AZ74,0) -> 0 | AK74: 0 | AL74: 252721.45 | AM74: 0 | AO74: 0 | AP74: 0 | AQ74: 0 | AR74: 0 | AS74: 0 | AT74: 0 | AU74: 0 | AV74: 0 | AW74: 0 | AX74: 0 | AY74: 0 | AZ74: 0 | BA74: 0 | BB74: | | BC74: 95470.45 | BD74: 94825.15 | BE74: 94475.69 | BF74: 89495.91 | BG74: 77481.11 | BH74: | | BI74: -0.1829054845 | BJ74: 0.003698940966 | BK74: 0.05564254277 | BL74: 0.1550674739 | BM74: | | BN74: -1 | BP74: T
A75: T | C75: Adjusted Net Operating Income (Loss) | D75: 32036.11 | E75: 0 | F75: 32036.11 | G75: 0 | H75: 95470.45 | I75: 0 | J75: 95470.45 | K75: 0 | L75: 29164.85 | M75: 33261 | N75: 34529.3 | O75: 31738 | P75: 28557.85 | Q75: 33300.15 | R75: 30134.19 | S75: 32036.11 | T75: 0 | U75: 0 | V75: 0 | W75: 0 | X75: 252721.45 | Y75: =IF(MONTH(BN4)>=1,AO75,0) -> 0 | Z75: =IF(MONTH(BN4)>=2,AP75,0) -> 0 | AA75: =IF(MONTH(BN4)>=3,AQ75,0) -> 0 | AB75: =IF(MONTH(BN4)>=4,AR75,0) -> 0 | AC75: =IF(MONTH(BN4)>=5,AS75,0) -> 0 | AD75: =IF(MONTH(BN4)>=6,AT75,0) -> 0 | AE75: =IF(MONTH(BN4)>=7,AU75,0) -> 0 | AF75: =IF(MONTH(BN4)>=8,AV75,0) -> 0 | AG75: =IF(MONTH(BN4)>=9,AW75,0) -> 0 | AH75: =IF(MONTH(BN4)>=10,AX75,0) -> 0 | AI75: =IF(MONTH(BN4)>=11,AY75,0) -> 0 | AJ75: =IF(MONTH(BN4)>=12,AZ75,0) -> 0 | AK75: 0 | AL75: 252721.45 | AM75: 0 | AO75: 0 | AP75: 0 | AQ75: 0 | AR75: 0 | AS75: 0 | AT75: 0 | AU75: 0 | AV75: 0 | AW75: 0 | AX75: 0 | AY75: 0 | AZ75: 0 | BA75: 0 | BB75: | | BC75: 95470.45 | BD75: 94825.15 | BE75: 94475.69 | BF75: 89495.91 | BG75: 77481.11 | BH75: | | BI75: -0.1829054845 | BJ75: 0.003698940966 | BK75: 0.05564254277 | BL75: 0.1550674739 | BM75: | | BN75: -1 | BP75: T

Sheet CAT
C1: Sonida Senior Living, Inc | V1: Run Date/Time | W1: 2025-09-15T13:33:58.407 | Y1: | | AE1: | | AJ1: | | AL1: 08/01/2025
C2: Property P&L Category Variance Analysis | Y2: | | AE2: | | AJ2: |
C3: KDC Properties (m1618) | Y3: | | AE3: | | AJ3: |
C4: ="As of "&TEXT(EOMONTH(AL1,0),"MMMM DD, YYYY") -> As of August 31, 2025 | Y4: | | AE4: | | AJ4: |
D5: Current | E5: Prior | H5: Current | I5: Prior Year | L5: Current | M5: Prior | P5: Current | Q5: Prior Year | T5: Current | U5: Prior Year | Y5: | | Z5: ="Q"&ROUNDUP(MONTH(Z7)/3,0) -> Q3 | AA5: Q2 | AB5: Q1 | AC5: Q4 | AD5: Q3 | AE5: | | AF5: =Z5&" o "&AA5 -> Q3 o Q2 | AG5: Q2 o Q1 | AH5: Q1 o Q4 | AI5: Q4 o Q3 | AJ5: |
D6: Month | E6: Month | F6: Incr(Decr) | G6: % Incr(Decr) | H6: Month | I6: Month | J6: Incr(Decr) | K6: % Incr(Decr) | L6: Rolling QTD | M6: Rolling QTD | N6: Incr(Decr) | O6: % Incr(Decr) | P6: Rolling QTD | Q6: Rolling QTD | R6: Incr(Decr) | S6: % Incr(Decr) | T6: YTD | U6: YTD | V6: Incr(Decr) | W6: % Incr(Decr) | Y6: | | Z6: Rolling QTD | AA6: Rolling QTD | AB6: Rolling QTD | AC6: Rolling QTD | AD6: Rolling QTD | AE6: | | AF6: % Incr(Decr) | AG6: % Incr(Decr) | AH6: % Incr(Decr) | AI6: % Incr(Decr) | AJ6: |
C7: Month-Year | D7: Aug-25 | E7: Jul-25 | H7: Aug-25 | I7: Aug-24 | L7: Aug-25 | M7: May-25 | P7: Aug-25 | Q7: Aug-24 | T7: Aug-25 | U7: Aug-24 | Y7: | | Z7: =TEXT(AL1,"MMM-YY") -> Aug-25 | AA7: May-25 | AB7: Feb-25 | AC7: Nov-24 | AD7: Aug-24 | AE7: | | AJ7: |
C8: Units Occupied | F8: =D8-E8 -> 0 | G8: =IFERROR(F8/E8,0) -> 0 | J8: =H8-I8 -> 0 | K8: =IFERROR(J8/I8,0) -> 0 | N8: =L8-M8 -> 0 | O8: =IFERROR(N8/M8,0) -> 0 | R8: =P8-Q8 -> 0 | S8: =IFERROR(R8/Q8,0) -> 0 | V8: =T8-U8 -> 0 | W8: =IFERROR(V8/U8,0) -> 0 | Y8: ="|" -> | | AE8: ="|" -> | | AF8: =IFERROR(IF(Z8<=0,-(Z8-AA8)/AA8,(Z8-AA8)/AA8),0) -> 0 | AG8: 0 | AH8: 0 | AI8: 0 | AJ8: ="|" -> | | AK8: H
C9: Independent Living Occupied | D9: 11.9032 | E9: 11.1613 | F9: 0.7419 | G9: 0.06647075161 | H9: 11.9032 | I9: 10.8065 | J9: 1.0967 | K9: 0.1014852172 | L9: 11.688166 | M9: 12 | N9: -0.311834 | O9: -0.02598616667 | P9: 11.688166 | Q9: 10.268833 | R9: 1.419333 | S9: 0.138217556 | T9: 11.8871 | U9: 8.248925 | V9: 3.638175 | W9: 0.441048379 | Y9: | | Z9: 11.688166 | AA9: 12 | AB9: 12.010766 | AC9: 11.505366 | AD9: 10.268833 | AE9: | | AF9: =IFERROR(IF(Z9<=0,-(Z9-AA9)/AA9,(Z9-AA9)/AA9),0) -> -0.02598616667 | AG9: -0.0008963624801 | AH9: 0.04392732921 | AI9: 0.1204161174 | AJ9: | | AK9: R
C10: Assisted Living Occupied | D10: 0 | E10: 0 | F10: 0 | G10: 0 | H10: 0 | I10: 0 | J10: 0 | K10: 0 | L10: 0 | M10: 0 | N10: 0 | O10: 0 | P10: 0 | Q10: 0 | R10: 0 | S10: 0 | T10: 0 | U10: 0 | V10: 0 | W10: 0 | Y10: | | Z10: 0 | AA10: 0 | AB10: 0 | AC10: 0 | AD10: 0 | AE10: | | AF10: =IFERROR(IF(Z10<=0,-(Z10-AA10)/AA10,(Z10-AA10)/AA10),0) -> 0 | AG10: 0 | AH10: 0 | AI10: 0 | AJ10: | | AK10: R
C11: Memory Care Occupied | D11: 0 | E11: 0 | F11: 0 | G11: 0 | H11: 0 | I11: 0 | J11: 0 | K11: 0 | L11: 0 | M11: 0 | N11: 0 | O11: 0 | P11: 0 | Q11: 0 | R11: 0 | S11: 0 | T11: 0 | U11: 0 | V11: 0 | W11: 0 | Y11: | | Z11: 0 | AA11: 0 | AB11: 0 | AC11: 0 | AD11: 0 | AE11: | | AF11: =IFERROR(IF(Z11<=0,-(Z11-AA11)/AA11,(Z11-AA11)/AA11),0) -> 0 | AG11: 0 | AH11: 0 | AI11: 0 | AJ11: | | AK11: R
C12: Total Units Occupied | D12: 11.9032 | E12: 11.1613 | F12: 0.7419 | G12: 0.06647075161 | H12: 11.9032 | I12: 10.8065 | J12: 1.0967 | K12: 0.1014852172 | L12: 11.688166 | M12: 12 | N12: -0.311834 | O12: -0.02598616667 | P12: 11.688166 | Q12: 10.268833 | R12: 1.419333 | S12: 0.138217556 | T12: 11.8871 | U12: 8.248925 | V12: 3.638175 | W12: 0.441048379 | Y12: | | Z12: 11.688166 | AA12: 12 | AB12: 12.010766 | AC12: 11.505366 | AD12: 10.268833 | AE12: | | AF12: =IFERROR(IF(Z12<=0,-(Z12-AA12)/AA12,(Z12-AA12)/AA12),0) -> -0.02598616667 | AG12: -0.0008963624801 | AH12: 0.04392732921 | AI12: 0.1204161174 | AJ12: | | AK12: T
C13: Units Available | F13: 0 | G13: 0 | J13: 0 | K13: 0 | N13: 0 | O13: 0 | R13: 0 | S13: 0 | V13: 0 | W13: 0 | Y13: | | AE13: | | AF13: =IFERROR(IF(Z13<=0,-(Z13-AA13)/AA13,(Z13-AA13)/AA13),0) -> 0 | AG13: 0 | AH13: 0 | AI13: 0 | AJ13: | | AK13: H
C14: Independent Living Available | D14: 12 | E14: 12 | F14: 0 | G14: 0 | H14: 12 | I14: 12 | J14: 0 | K14: 0 | L14: 12 | M14: 12 | N14: 0 | O14: 0 | P14: 12 | Q14: 12 | R14: 0 | S14: 0 | T14: 12 | U14: 11.629037 | V14: 0.370963 | W14: 0.03189971792 | Y14: | | Z14: 12 | AA14: 12 | AB14: 12 | AC14: 12 | AD14: 12 | AE14: | | AF14: =IFERROR(IF(Z14<=0,-(Z14-AA14)/AA14,(Z14-AA14)/AA14),0) -> 0 | AG14: 0 | AH14: 0 | AI14: 0 | AJ14: | | AK14: R
C15: Assisted Living Available | D15: 0 | E15: 0 | F15: 0 | G15: 0 | H15: 0 | I15: 0 | J15: 0 | K15: 0 | L15: 0 | M15: 0 | N15: 0 | O15: 0 | P15: 0 | Q15: 0 | R15: 0 | S15: 0 | T15: 0 | U15: 0 | V15: 0 | W15: 0 | Y15: | | Z15: 0 | AA15: 0 | AB15: 0 | AC15: 0 | AD15: 0 | AE15: | | AF15: =IFERROR(IF(Z15<=0,-(Z15-AA15)/AA15,(Z15-AA15)/AA15),0) -> 0 | AG15: 0 | AH15: 0 | AI15: 0 | AJ15: | | AK15: R
C16: Memory Care Available | D16: 0 | E16: 0 | F16: 0 | G16: 0 | H16: 0 | I16: 0 | J16: 0 | K16: 0 | L16: 0 | M16: 0 | N16: 0 | O16: 0 | P16: 0 | Q16: 0 | R16: 0 | S16: 0 | T16: 0 | U16: 0 | V16: 0 | W16: 0 | Y16: | | Z16: 0 | AA16: 0 | AB16: 0 | AC16: 0 | AD16: 0 | AE16: | | AF16: =IFERROR(IF(Z16<=0,-(Z16-AA16)/AA16,(Z16-AA16)/AA16),0) -> 0 | AG16: 0 | AH16: 0 | AI16: 0 | AJ16: | | AK16: R
C17: Total Units Available | D17: 12 | E17: 12 | F17: 0 | G17: 0 | H17: 12 | I17: 12 | J17: 0 | K17: 0 | L17: 12 | M17: 12 | N17: 0 | O17: 0 | P17: 12 | Q17: 12 | R17: 0 | S17: 0 | T17: 12 | U17: 11.629037 | V17: 0.370963 | W17: 0.03189971792 | Y17: | | Z17: 12 | AA17: 12 | AB17: 12 | AC17: 12 | AD17: 12 | AE17: | | AF17: =IFERROR(IF(Z17<=0,-(Z17-AA17)/AA17,(Z17-AA17)/AA17),0) -> 0 | AG17: 0 | AH17: 0 | AI17: 0 | AJ17: | | AK17: T
C18: % Occupied | F18: 0 | G18: 0 | J18: 0 | K18: 0 | N18: 0 | O18: 0 | R18: 0 | S18: 0 | V18: 0 | W18: 0 | Y18: | | AE18: | | AF18: =IFERROR(IF(Z18<=0,-(Z18-AA18)/AA18,(Z18-AA18)/AA18),0) -> 0 | AG18: 0 | AH18: 0 | AI18: 0 | AJ18: | | AK18: H | AL18: %
C19: Independent Living % Occupied | D19: 0.991933 | E19: 0.930108 | F19: 0.061825 | G19: 0.06647077544 | H19: 0.991933 | I19: 0.900541 | J19: 0.091392 | K19: 0.1014856625 | L19: 0.974013 | M19: 1 | N19: -0.025987 | O19: -0.025987 | P19: 0.974013 | Q19: 0.855736 | R19: 0.118277 | S19: 0.138216693 | T19: 0.990591 | U19: 0.709338 | V19: 0.281253 | W19: 0.3965006809 | Y19: | | Z19: 0.974013 | AA19: 1 | AB19: 1.000897 | AC19: 0.95878 | AD19: 0.855736 | AE19: | | AF19: =IFERROR(IF(Z19<=0,-(Z19-AA19)/AA19,(Z19-AA19)/AA19),0) -> -0.025987 | AG19: -0.0008961961121 | AH19: 0.04392769979 | AI19: 0.1204156422 | AJ19: | | AK19: R | AL19: %
C20: Assisted Living % Occupied | D20: 0 | E20: 0 | F20: 0 | G20: 0 | H20: 0 | I20: 0 | J20: 0 | K20: 0 | L20: 0 | M20: 0 | N20: 0 | O20: 0 | P20: 0 | Q20: 0 | R20: 0 | S20: 0 | T20: 0 | U20: 0 | V20: 0 | W20: 0 | Y20: | | Z20: 0 | AA20: 0 | AB20: 0 | AC20: 0 | AD20: 0 | AE20: | | AF20: =IFERROR(IF(Z20<=0,-(Z20-AA20)/AA20,(Z20-AA20)/AA20),0) -> 0 | AG20: 0 | AH20: 0 | AI20: 0 | AJ20: | | AK20: R | AL20: %
C21: Memory Care % Occupied | D21: 0 | E21: 0 | F21: 0 | G21: 0 | H21: 0 | I21: 0 | J21: 0 | K21: 0 | L21: 0 | M21: 0 | N21: 0 | O21: 0 | P21: 0 | Q21: 0 | R21: 0 | S21: 0 | T21: 0 | U21: 0 | V21: 0 | W21: 0 | Y21: | | Z21: 0 | AA21: 0 | AB21: 0 | AC21: 0 | AD21: 0 | AE21: | | AF21: =IFERROR(IF(Z21<=0,-(Z21-AA21)/AA21,(Z21-AA21)/AA21),0) -> 0 | AG21: 0 | AH21: 0 | AI21: 0 | AJ21: | | AK21: R | AL21: %
C22: Total % Occupied | D22: 0.991933 | E22: 0.930108 | F22: 0.061825 | G22: 0.06647077544 | H22: 0.991933 | I22: 0.900541 | J22: 0.091392 | K22: 0.1014856625 | L22: 0.974013 | M22: 1 | N22: -0.025987 | O22: -0.025987 | P22: 0.974013 | Q22: 0.855736 | R22: 0.118277 | S22: 0.138216693 | T22: 0.990591 | U22: 0.709338 | V22: 0.281253 | W22: 0.3965006809 | Y22: | | Z22: 0.974013 | AA22: 1 | AB22: 1.000897 | AC22: 0.95878 | AD22: 0.855736 | AE22: | | AF22: =IFERROR(IF(Z22<=0,-(Z22-AA22)/AA22,(Z22-AA22)/AA22),0) -> -0.025987 | AG22: -0.0008961961121 | AH22: 0.04392769979 | AI22: 0.1204156422 | AJ22: | | AK22: T | AL22: %
C23: Monthly Rent per Unit (AVG.) | F23: 0 | G23: 0 | J23: 0 | K23: 0 | N23: 0 | O23: 0 | R23: 0 | S23: 0 | V23: 0 | W23: 0 | Y23: | | AE23: | | AF23: =IFERROR(IF(Z23<=0,-(Z23-AA23)/AA23,(Z23-AA23)/AA23),0) -> 0 | AG23: 0 | AH23: 0 | AI23: 0 | AJ23: | | AK23: H | AL23: $
C24: Independent Living Rent per Unit | D24: 3195.752402 | E24: 3220.313941 | F24: -24.561539 | G24: -0.007627063525 | H24: 3195.752402 | I24: 3042.315273 | J24: 153.437129 | K24: 0.05043432887 | L24: 3236.109925 | M24: 3313.313888 | N24: -77.203963 | O24: -0.02330113162 | P24: 3236.109925 | Q24: 3152.390344 | R24: 83.719581 | S24: 0.02655749189 | T24: 3220.021283 | U24: 3344.990256 | V24: -124.968973 | W24: -0.03736004097 | Y24: | | Z24: 3236.109925 | AA24: 3313.313888 | AB24: 3077.484816 | AC24: 3267.957171 | AD24: 3152.390344 | AE24: | | AF24: =IFERROR(IF(Z24<=0,-(Z24-AA24)/AA24,(Z24-AA24)/AA24),0) -> -0.02330113162 | AG24: 0.07663045835 | AH24: -0.05828483821 | AI24: 0.03666006249 | AJ24: | | AK24: R | AL24: $
C25: Assisted Living Rent per Unit | F25: 0 | G25: 0 | J25: 0 | K25: 0 | N25: 0 | O25: 0 | R25: 0 | S25: 0 | V25: 0 | W25: 0 | Y25: | | AE25: | | AF25: =IFERROR(IF(Z25<=0,-(Z25-AA25)/AA25,(Z25-AA25)/AA25),0) -> 0 | AG25: 0 | AH25: 0 | AI25: 0 | AJ25: | | AK25: R | AL25: $
C26: Memory Care Rent per Unit | F26: 0 | G26: 0 | J26: 0 | K26: 0 | N26: 0 | O26: 0 | R26: 0 | S26: 0 | V26: 0 | W26: 0 | Y26: | | AE26: | | AF26: =IFERROR(IF(Z26<=0,-(Z26-AA26)/AA26,(Z26-AA26)/AA26),0) -> 0 | AG26: 0 | AH26: 0 | AI26: 0 | AJ26: | | AK26: R | AL26: $
C27: Total Monthly Rent per Unit (AVG.) | D27: 3164.18106 | E27: 3221.326368 | F27: -57.145308 | G27: -0.01773968281 | H27: 3164.18106 | I27: 3042.315273 | J27: 121.865787 | K27: 0.04005692246 | L27: 3210.029414 | M27: 3234.147222 | N27: -24.117808 | O27: -0.007457238754 | P27: 3210.029414 | Q27: 3152.390344 | R27: 57.63907 | S27: 0.01828424266 | T27: 3181.486863 | U27: 3363.932118 | V27: -182.445255 | W27: -0.05423571243 | Y27: | | Z27: 3210.029414 | AA27: 3234.147222 | AB27: 3088.585968 | AC27: 3259.265575 | AD27: 3152.390344 | AE27: | | AF27: =IFERROR(IF(Z27<=0,-(Z27-AA27)/AA27,(Z27-AA27)/AA27),0) -> -0.007457238754 | AG27: 0.0471287688 | AH27: -0.05236750522 | AI27: 0.03390291789 | AJ27: | | AK27: T | AL27: $
Y28: | | AE28: | | AJ28: |
A29: H | C29: Revenue | D29: 0 | E29: 0 | F29: =IF(C29="","",D29-E29) -> 0 | G29: =IF(C29="","",IFERROR(IF(E29<=0,-F29/E29,F29/E29),0)) -> 0 | H29: 0 | I29: 0 | J29: =IF(C29="","",H29-I29) -> 0 | K29: =IF(C29="","",IFERROR(IF(I29<=0,-J29/I29,J29/I29),0)) -> 0 | L29: 0 | M29: 0 | N29: =IF(C29="","",L29-M29) -> 0 | O29: =IF(C29="","",IFERROR(IF(M29<=0,-N29/M29,N29/M29),0)) -> 0 | P29: 0 | Q29: 0 | R29: =IF(C29="","",P29-Q29) -> 0 | S29: =IF(C29="","",IFERROR(IF(Q29<=0,-R29/Q29,R29/Q29),0)) -> 0 | T29: 0 | U29: 0 | V29: =IF(C29="","",T29-U29) -> 0 | W29: =IF(C29="","",IFERROR(IF(U29<=0,-V29/U29,V29/U29),0)) -> 0 | Y29: ="|" -> | | Z29: 0 | AA29: 0 | AB29: 0 | AC29: 0 | AD29: 0 | AE29: ="|" -> | | AF29: =IF(C29="","",IFERROR(IF(Z29<=0,-(Z29-AA29)/AA29,(Z29-AA29)/AA29),0)) -> 0 | AG29: =IF(C29="","",IFERROR(IF(AA29<=0,-(AA29-AB29)/AB29,(AA29-AB29)/AB29),0)) -> 0 | AH29: =IF(C29="","",IFERROR(IF(AB29<=0,-(AB29-AC29)/AC29,(AB29-AC29)/AC29),0)) -> 0 | AI29: =IF(C29="","",IFERROR(IF(AC29<=0,-(AC29-AD29)/AD29,(AC29-AD29)/AD29),0)) -> 0 | AJ29: ="|" -> | | AK29: -1 | AL29: 0 | AM29: H
A30: R | B30: 401000 | C30: IL Rent | D30: 35839.68 | E30: 33623.55 | F30: 2216.13 | G30: 0.06591005411 | H30: 35839.68 | I30: 31646.35 | J30: 4193.33 | K30: 0.1325059604 | L30: 105653.23 | M30: 105570 | N30: 83.23 | O30: 0.0007883868523 | P30: 105653.23 | Q30: 90100.35 | R30: 15552.88 | S30: 0.1726173095 | T30: 281677.23 | U30: 202413.93 | V30: 79263.3 | W30: 0.391590144 | Y30: | | Z30: 105653.23 | AA30: 105570 | AB30: 105681 | AC30: 101229.39 | AD30: 90100.35 | AE30: | | AF30: 0.0007883868523 | AG30: -0.001050330712 | AH30: 0.04397546997 | AI30: 0.1235182771 | AJ30: | | AK30: 0 | AL30: 0 | AM30: R
A31: T | C31: IL Rent | D31: 35839.68 | E31: 33623.55 | F31: 2216.13 | G31: 0.06591005411 | H31: 35839.68 | I31: 31646.35 | J31: 4193.33 | K31: 0.1325059604 | L31: 105653.23 | M31: 105570 | N31: 83.23 | O31: 0.0007883868523 | P31: 105653.23 | Q31: 90100.35 | R31: 15552.88 | S31: 0.1726173095 | T31: 281677.23 | U31: 202413.93 | V31: 79263.3 | W31: 0.391590144 | Y31: | | Z31: 105653.23 | AA31: 105570 | AB31: 105681 | AC31: 101229.39 | AD31: 90100.35 | AE31: | | AF31: 0.0007883868523 | AG31: -0.001050330712 | AH31: 0.04397546997 | AI31: 0.1235182771 | AJ31: | | AK31: -1 | AL31: 0 | AM31: T
A32: R | B32: 401400 | C32: IL Rent - Second Resident | D32: 2200 | E32: 2377.42 | F32: -177.42 | G32: -0.07462711679 | H32: 2200 | I32: 1730.43 | J32: 469.57 | K32: 0.2713602977 | L32: 7877.42 | M32: 13709.3 | N32: -5831.88 | O32: -0.4253958991 | P32: 7877.42 | Q32: 8513.76 | R32: -636.34 | S32: -0.07474253444 | T32: 24594.57 | U32: 20826.66 | V32: 3767.91 | W32: 0.1809176315 | Y32: | | Z32: 7877.42 | AA32: 13709.3 | AB32: 6307.85 | AC32: 11567.74 | AD32: 8513.76 | AE32: | | AF32: -0.4253958991 | AG32: 1.173371275 | AH32: -0.4547033388 | AI32: 0.3587110748 | AJ32: | | AK32: 0 | AL32: 0 | AM32: R
A33: T | C33: IL Rent 2nd Resident | D33: 2200 | E33: 2377.42 | F33: -177.42 | G33: -0.07462711679 | H33: 2200 | I33: 1730.43 | J33: 469.57 | K33: 0.2713602977 | L33: 7877.42 | M33: 13709.3 | N33: -5831.88 | O33: -0.4253958991 | P33: 7877.42 | Q33: 8513.76 | R33: -636.34 | S33: -0.07474253444 | T33: 24594.57 | U33: 20826.66 | V33: 3767.91 | W33: 0.1809176315 | Y33: | | Z33: 7877.42 | AA33: 13709.3 | AB33: 6307.85 | AC33: 11567.74 | AD33: 8513.76 | AE33: | | AF33: -0.4253958991 | AG33: 1.173371275 | AH33: -0.4547033388 | AI33: 0.3587110748 | AJ33: | | AK33: -1 | AL33: 0 | AM33: T
A34: R | B34: 401200 | C34: IL Rent Concessions | E34: -58.08 | F34: 58.08 | G34: 1 | I34: -500 | J34: 500 | K34: 1 | L34: -58.08 | N34: -58.08 | O34: 0 | P34: -58.08 | Q34: -1500 | R34: 1441.92 | S34: 0.96128 | T34: -58.08 | U34: -2500 | V34: 2441.92 | W34: 0.976768 | Y34: | | Z34: -58.08 | AB34: -1100 | AD34: -1500 | AE34: | | AF34: 0 | AG34: 1 | AH34: 0 | AI34: 1 | AJ34: | | AK34: 0 | AL34: 0 | AM34: R
A35: T | C35: IL Rent Concessions | D35: 0 | E35: -58.08 | F35: 58.08 | G35: 1 | H35: 0 | I35: -500 | J35: 500 | K35: 1 | L35: -58.08 | M35: 0 | N35: -58.08 | O35: 0 | P35: -58.08 | Q35: -1500 | R35: 1441.92 | S35: 0.96128 | T35: -58.08 | U35: -2500 | V35: 2441.92 | W35: 0.976768 | Y35: | | Z35: -58.08 | AA35: 0 | AB35: -1100 | AC35: 0 | AD35: -1500 | AE35: | | AF35: 0 | AG35: 1 | AH35: 0 | AI35: 1 | AJ35: | | AK35: -1 | AL35: 0 | AM35: T
A36: R | B36: 440340 | C36: Community Fee | F36: 0 | G36: 0 | J36: 0 | K36: 0 | N36: 0 | O36: 0 | R36: 0 | S36: 0 | U36: -250 | V36: 250 | W36: 1 | Y36: | | AE36: | | AF36: 0 | AG36: 0 | AH36: 0 | AI36: 0 | AJ36: | | AK36: 0 | AL36: 0 | AM36: R
A37: T | C37: Community Fees | D37: 0 | E37: 0 | F37: 0 | G37: 0 | H37: 0 | I37: 0 | J37: 0 | K37: 0 | L37: 0 | M37: 0 | N37: 0 | O37: 0 | P37: 0 | Q37: 0 | R37: 0 | S37: 0 | T37: 0 | U37: -250 | V37: 250 | W37: 1 | Y37: | | Z37: 0 | AA37: 0 | AB37: 0 | AC37: 0 | AD37: 0 | AE37: | | AF37: 0 | AG37: 0 | AH37: 0 | AI37: 0 | AJ37: | | AK37: -1 | AL37: 0 | AM37: T
A38: R | B38: 441340 | C38: Meals - Refunds | D38: -425.8 | E38: -38.7 | F38: -387.1 | G38: -10.00258398 | H38: -425.8 | J38: -425.8 | K38: 0 | L38: -1064.5 | M38: -3000 | N38: 1935.5 | O38: 0.6451666667 | P38: -1064.5 | R38: -1064.5 | S38: 0 | T38: -4064.5 | V38: -4064.5 | W38: 0 | Y38: | | Z38: -1064.5 | AA38: -3000 | AB38: 300 | AC38: -300 | AE38: | | AF38: 0.6451666667 | AG38: 11 | AH38: -2 | AI38: 0 | AJ38: | | AK38: 0 | AL38: 0 | AM38: R
A39: R | B39: 441500 | C39: Other Income | D39: 50 | E39: 50 | F39: 0 | G39: 0 | H39: 50 | J39: 50 | K39: 0 | L39: 150 | M39: 150 | N39: 0 | O39: 0 | P39: 150 | R39: 150 | S39: 0 | T39: 400 | V39: 400 | W39: 0 | Y39: | | Z39: 150 | AA39: 150 | AB39: 100 | AE39: | | AF39: 0 | AG39: 0.5 | AH39: 0 | AI39: 0 | AJ39: | | AK39: 0 | AL39: 0 | AM39: R
A40: R | B40: 441650 | C40: Pet Fees | F40: 0 | G40: 0 | J40: 0 | K40: 0 | N40: 0 | O40: 0 | R40: 0 | S40: 0 | U40: 1500 | V40: -1500 | W40: -1 | Y40: | | AE40: | | AF40: 0 | AG40: 0 | AH40: 0 | AI40: 0 | AJ40: | | AK40: 0 | AL40: 0 | AM40: R
A41: T | C41: Other Income | D41: -375.8 | E41: 11.3 | F41: -387.1 | G41: -34.25663717 | H41: -375.8 | I41: 0 | J41: -375.8 | K41: 0 | L41: -914.5 | M41: -2850 | N41: 1935.5 | O41: 0.679122807 | P41: -914.5 | Q41: 0 | R41: -914.5 | S41: 0 | T41: -3664.5 | U41: 1500 | V41: -5164.5 | W41: -3.443 | Y41: | | Z41: -914.5 | AA41: -2850 | AB41: 400 | AC41: -300 | AD41: 0 | AE41: | | AF41: 0.679122807 | AG41: 8.125 | AH41: -2.333333333 | AI41: 0 | AJ41: | | AK41: -1 | AL41: 0 | AM41: T
Y42: | | AE42: | | AJ42: | | AL42: 0
A43: T | C43: Total Revenue | D43: 37663.88 | E43: 35954.19 | F43: 1709.69 | G43: 0.04755189868 | H43: 37663.88 | I43: 32876.78 | J43: 4787.1 | K43: 0.1456073253 | L43: 112558.07 | M43: 116429.3 | N43: -3871.23 | O43: -0.03324962016 | P43: 112558.07 | Q43: 97114.11 | R43: 15443.96 | S43: 0.1590290021 | T43: 302549.22 | U43: 221990.59 | V43: 80558.63 | W43: 0.3628920938 | Y43: | | Z43: 112558.07 | AA43: 116429.3 | AB43: 111288.85 | AC43: 112497.13 | AD43: 97114.11 | AE43: | | AF43: -0.03324962016 | AG43: 0.04619016191 | AH43: -0.01074054067 | AI43: 0.1584014928 | AJ43: | | AK43: -1 | AL43: 1 | AM43: T
A44: H | C44: Operating Expenses | D44: 0 | E44: 0 | F44: 0 | G44: 0 | H44: 0 | I44: 0 | J44: 0 | K44: 0 | L44: 0 | M44: 0 | N44: 0 | O44: 0 | P44: 0 | Q44: 0 | R44: 0 | S44: 0 | T44: 0 | U44: 0 | V44: 0 | W44: 0 | Y44: | | Z44: 0 | AA44: 0 | AB44: 0 | AC44: 0 | AD44: 0 | AE44: | | AF44: 0 | AG44: 0 | AH44: 0 | AI44: 0 | AJ44: | | AK44: -1 | AL44: 0 | AM44: H
A45: R | B45: 500570 | C45: Labor - Other | D45: 450 | E45: 450 | F45: 0 | G45: 0 | H45: 450 | I45: 450 | J45: 0 | K45: 0 | L45: 1350 | M45: 1350 | N45: 0 | O45: 0 | P45: 1350 | Q45: 1350 | R45: 0 | S45: 0 | T45: 3600 | U45: 3600 | V45: 0 | W45: 0 | Y45: | | Z45: 1350 | AA45: 1350 | AB45: 1350 | AC45: 1350 | AD45: 1350 | AE45: | | AF45: 0 | AG45: 0 | AH45: 0 | AI45: 0 | AJ45: | | AK45: 0 | AL45: 0 | AM45: R
A46: T | C46: Direct Labor | D46: 450 | E46: 450 | F46: 0 | G46: 0 | H46: 450 | I46: 450 | J46: 0 | K46: 0 | L46: 1350 | M46: 1350 | N46: 0 | O46: 0 | P46: 1350 | Q46: 1350 | R46: 0 | S46: 0 | T46: 3600 | U46: 3600 | V46: 0 | W46: 0 | Y46: | | Z46: 1350 | AA46: 1350 | AB46: 1350 | AC46: 1350 | AD46: 1350 | AE46: | | AF46: 0 | AG46: 0 | AH46: 0 | AI46: 0 | AJ46: | | AK46: -1 | AL46: 0 | AM46: T
A47: T | C47: Labor Categories Combined | D47: 450 | E47: 450 | F47: 0 | G47: 0 | H47: 450 | I47: 450 | J47: 0 | K47: 0 | L47: 1350 | M47: 1350 | N47: 0 | O47: 0 | P47: 1350 | Q47: 1350 | R47: 0 | S47: 0 | T47: 3600 | U47: 3600 | V47: 0 | W47: 0 | Y47: | | Z47: 1350 | AA47: 1350 | AB47: 1350 | AC47: 1350 | AD47: 1350 | AE47: | | AF47: 0 | AG47: 0 | AH47: 0 | AI47: 0 | AJ47: | | AK47: -1 | AL47: 1 | AM47: T
A48: R | B48: 676000 | C48: Food | D48: 5015.77 | E48: 5208 | F48: -192.23 | G48: -0.03691052227 | H48: 5015.77 | I48: 8664 | J48: -3648.23 | K48: -0.4210791782 | L48: 15263.77 | M48: 15456 | N48: -192.23 | O48: -0.0124372412 | P48: 15263.77 | Q48: 17868 | R48: -2604.23 | S48: -0.1457482651 | T48: 40631.77 | U48: 30132 | V48: 10499.77 | W48: 0.3484591132 | Y48: | | Z48: 15263.77 | AA48: 15456 | AB48: 14977.16 | AC48: 17086.84 | AD48: 17868 | AE48: | | AF48: -0.0124372412 | AG48: 0.03197134837 | AH48: -0.1234681193 | AI48: -0.04371837923 | AJ48: | | AK48: 0 | AL48: 0 | AM48: R
A49: T | C49: Food | D49: 5015.77 | E49: 5208 | F49: -192.23 | G49: -0.03691052227 | H49: 5015.77 | I49: 8664 | J49: -3648.23 | K49: -0.4210791782 | L49: 15263.77 | M49: 15456 | N49: -192.23 | O49: -0.0124372412 | P49: 15263.77 | Q49: 17868 | R49: -2604.23 | S49: -0.1457482651 | T49: 40631.77 | U49: 30132 | V49: 10499.77 | W49: 0.3484591132 | Y49: | | Z49: 15263.77 | AA49: 15456 | AB49: 14977.16 | AC49: 17086.84 | AD49: 17868 | AE49: | | AF49: -0.0124372412 | AG49: 0.03197134837 | AH49: -0.1234681193 | AI49: -0.04371837923 | AJ49: | | AK49: -1 | AL49: 0 | AM49: T
A50: R | B50: 790300 | C50: Promotion - Marketing | F50: 0 | G50: 0 | J50: 0 | K50: 0 | N50: 0 | O50: 0 | R50: 0 | S50: 0 | U50: 1500 | V50: -1500 | W50: -1 | Y50: | | AE50: | | AF50: 0 | AG50: 0 | AH50: 0 | AI50: 0 | AJ50: | | AK50: 0 | AL50: 0 | AM50: R
A51: T | C51: Advertising & Promotions | D51: 0 | E51: 0 | F51: 0 | G51: 0 | H51: 0 | I51: 0 | J51: 0 | K51: 0 | L51: 0 | M51: 0 | N51: 0 | O51: 0 | P51: 0 | Q51: 0 | R51: 0 | S51: 0 | T51: 0 | U51: 1500 | V51: -1500 | W51: -1 | Y51: | | Z51: 0 | AA51: 0 | AB51: 0 | AC51: 0 | AD51: 0 | AE51: | | AF51: 0 | AG51: 0 | AH51: 0 | AI51: 0 | AJ51: | | AK51: -1 | AL51: 0 | AM51: T
A52: R | B52: 760000 | C52: R & M - Apartments | F52: 0 | G52: 0 | J52: 0 | K52: 0 | M52: 4300 | N52: -4300 | O52: -1 | R52: 0 | S52: 0 | T52: 4300 | V52: 4300 | W52: 0 | Y52: | | AA52: 4300 | AC52: 4111.88 | AE52: | | AF52: 1 | AG52: 0 | AH52: 1 | AI52: 0 | AJ52: | | AK52: 0 | AL52: 0 | AM52: R
A53: T | C53: Repair & Maintenance | D53: 0 | E53: 0 | F53: 0 | G53: 0 | H53: 0 | I53: 0 | J53: 0 | K53: 0 | L53: 0 | M53: 4300 | N53: -4300 | O53: -1 | P53: 0 | Q53: 0 | R53: 0 | S53: 0 | T53: 4300 | U53: 0 | V53: 4300 | W53: 0 | Y53: | | Z53: 0 | AA53: 4300 | AB53: 0 | AC53: 4111.88 | AD53: 0 | AE53: | | AF53: 1 | AG53: 0 | AH53: 1 | AI53: 0 | AJ53: | | AK53: -1 | AL53: 0 | AM53: T
A54: R | B54: 638200 | C54: Computer - Maintenance Agreeme | F54: 0 | G54: 0 | J54: 0 | K54: 0 | L54: -12.15 | M54: 12.15 | N54: -24.3 | O54: -2 | P54: -12.15 | R54: -12.15 | S54: 0 | V54: 0 | W54: 0 | Y54: | | Z54: -12.15 | AA54: 12.15 | AE54: | | AF54: 2 | AG54: 0 | AH54: 0 | AI54: 0 | AJ54: | | AK54: 0 | AL54: 0 | AM54: R
A55: T | C55: Computer Software/Hosting | D55: 0 | E55: 0 | F55: 0 | G55: 0 | H55: 0 | I55: 0 | J55: 0 | K55: 0 | L55: -12.15 | M55: 12.15 | N55: -24.3 | O55: -2 | P55: -12.15 | Q55: 0 | R55: -12.15 | S55: 0 | T55: 0 | U55: 0 | V55: 0 | W55: 0 | Y55: | | Z55: -12.15 | AA55: 12.15 | AB55: 0 | AC55: 0 | AD55: 0 | AE55: | | AF55: 2 | AG55: 0 | AH55: 0 | AI55: 0 | AJ55: | | AK55: -1 | AL55: 0 | AM55: T
A56: R | B56: 880060 | C56: Utilities - Trash | D56: 162 | E56: 162 | F56: 0 | G56: 0 | H56: 162 | I56: 148.5 | J56: 13.5 | K56: 0.09090909091 | L56: 486 | M56: 486 | N56: 0 | O56: 0 | P56: 486 | Q56: 415 | R56: 71 | S56: 0.1710843373 | T56: 1296 | U56: 914.5 | V56: 381.5 | W56: 0.4171678513 | Y56: | | Z56: 486 | AA56: 486 | AB56: 486 | AC56: 472.5 | AD56: 415 | AE56: | | AF56: 0 | AG56: 0 | AH56: 0.02857142857 | AI56: 0.1385542169 | AJ56: | | AK56: 0 | AL56: 0 | AM56: R
A57: T | C57: Utilities | D57: 162 | E57: 162 | F57: 0 | G57: 0 | H57: 162 | I57: 148.5 | J57: 13.5 | K57: 0.09090909091 | L57: 486 | M57: 486 | N57: 0 | O57: 0 | P57: 486 | Q57: 415 | R57: 71 | S57: 0.1710843373 | T57: 1296 | U57: 914.5 | V57: 381.5 | W57: 0.4171678513 | Y57: | | Z57: 486 | AA57: 486 | AB57: 486 | AC57: 472.5 | AD57: 415 | AE57: | | AF57: 0 | AG57: 0 | AH57: 0.02857142857 | AI57: 0.1385542169 | AJ57: | | AK57: -1 | AL57: 0 | AM57: T
A58: R | B58: 890010 | C58: Bank Charges | F58: 0 | G58: 0 | J58: 0 | K58: 0 | N58: 0 | O58: 0 | R58: 0 | S58: 0 | V58: 0 | W58: 0 | Y58: | | AC58: -20 | AE58: | | AF58: 0 | AG58: 0 | AH58: 1 | AI58: 0 | AJ58: | | AK58: 0 | AL58: 0 | AM58: R
A59: T | C59: Other Expenses | D59: 0 | E59: 0 | F59: 0 | G59: 0 | H59: 0 | I59: 0 | J59: 0 | K59: 0 | L59: 0 | M59: 0 | N59: 0 | O59: 0 | P59: 0 | Q59: 0 | R59: 0 | S59: 0 | T59: 0 | U59: 0 | V59: 0 | W59: 0 | Y59: | | Z59: 0 | AA59: 0 | AB59: 0 | AC59: -20 | AD59: 0 | AE59: | | AF59: 0 | AG59: 0 | AH59: 1 | AI59: 0 | AJ59: | | AK59: -1 | AL59: 0 | AM59: T
Y60: | | AE60: | | AJ60: | | AL60: 0
A61: T | C61: Total Operating Expenses | D61: 5627.77 | E61: 5820 | F61: -192.23 | G61: -0.03302920962 | H61: 5627.77 | I61: 9262.5 | J61: -3634.73 | K61: -0.3924134953 | L61: 17087.62 | M61: 21604.15 | N61: -4516.53 | O61: -0.2090584448 | P61: 17087.62 | Q61: 19633 | R61: -2545.38 | S61: -0.1296480416 | T61: 49827.77 | U61: 36146.5 | V61: 13681.27 | W61: 0.3784950133 | Y61: | | Z61: 17087.62 | AA61: 21604.15 | AB61: 16813.16 | AC61: 23001.22 | AD61: 19633 | AE61: | | AF61: -0.2090584448 | AG61: 0.2849547616 | AH61: -0.2690318166 | AI61: 0.1715591097 | AJ61: | | AK61: -1 | AL61: 1 | AM61: T
Y62: | | AE62: | | AJ62: | | AL62: 0
A63: T | C63: Net Operating Income(Loss) | D63: 32036.11 | E63: 30134.19 | F63: 1901.92 | G63: 0.06311501985 | H63: 32036.11 | I63: 23614.28 | J63: 8421.83 | K63: 0.3566414051 | L63: 95470.45 | M63: 94825.15 | N63: 645.3 | O63: 0.006805156649 | P63: 95470.45 | Q63: 77481.11 | R63: 17989.34 | S63: 0.2321771074 | T63: 252721.45 | U63: 185844.09 | V63: 66877.36 | W63: 0.3598573406 | Y63: | | Z63: 95470.45 | AA63: 94825.15 | AB63: 94475.69 | AC63: 89495.91 | AD63: 77481.11 | AE63: | | AF63: 0.006805156649 | AG63: 0.003698940966 | AH63: 0.05564254277 | AI63: 0.1550674739 | AJ63: | | AK63: -1 | AL63: 2 | AM63: T
A64: T | C64: NOI Margin | D64: 0.850579 | E64: 0.838127 | F64: 0.012452 | G64: 0.01485693696 | H64: 0.850579 | I64: 0.718266 | J64: 0.132313 | K64: 0.1842116987 | L64: 0.848188 | M64: 0.814444 | N64: 0.033744 | O64: 0.04143194621 | P64: 0.848188 | Q64: 0.797835 | R64: 0.050353 | S64: 0.06311204698 | T64: 0.835306 | U64: 0.837171 | V64: -0.001865 | W64: -0.002227740808 | Y64: | | Z64: 0.848188 | AA64: 0.814444 | AB64: 0.848923 | AC64: 0.795539 | AD64: 0.797835 | AE64: | | AF64: 0.04143194621 | AG64: -0.04061499099 | AH64: 0.06710418974 | AI64: -0.002877788014 | AJ64: | | AK64: -1 | AM64: T
A65: H | C65: Non-Operating Expenses | D65: 0 | E65: 0 | F65: 0 | G65: 0 | H65: 0 | I65: 0 | J65: 0 | K65: 0 | L65: 0 | M65: 0 | N65: 0 | O65: 0 | P65: 0 | Q65: 0 | R65: 0 | S65: 0 | T65: 0 | U65: 0 | V65: 0 | W65: 0 | Y65: | | Z65: 0 | AA65: 0 | AB65: 0 | AC65: 0 | AD65: 0 | AE65: | | AF65: 0 | AG65: 0 | AH65: 0 | AI65: 0 | AJ65: | | AK65: -1 | AL65: 0 | AM65: H
A66: R | B66: 672600 | C66: Fees - Management | D66: 2259.83 | E66: 2157.25 | F66: 102.58 | G66: 0.04755128057 | H66: 2259.83 | I66: 1972.61 | J66: 287.22 | K66: 0.1456040474 | L66: 6753.48 | M66: 6982.76 | N66: -229.28 | O66: -0.03283515401 | P66: 6753.48 | Q66: 5826.85 | R66: 926.63 | S66: 0.159027605 | T66: 18149.95 | U66: 12111.23 | V66: 6038.72 | W66: 0.4986050137 | Y66: | | Z66: 6753.48 | AA66: 6982.76 | AB66: 6641.33 | AC66: 6740.54 | AD66: 5826.85 | AE66: | | AF66: -0.03283515401 | AG66: 0.05140988326 | AH66: -0.01471840535 | AI66: 0.156806851 | AJ66: | | AK66: 0 | AL66: 0 | AM66: R
A67: T | C67: Management Fees | D67: 2259.83 | E67: 2157.25 | F67: 102.58 | G67: 0.04755128057 | H67: 2259.83 | I67: 1972.61 | J67: 287.22 | K67: 0.1456040474 | L67: 6753.48 | M67: 6982.76 | N67: -229.28 | O67: -0.03283515401 | P67: 6753.48 | Q67: 5826.85 | R67: 926.63 | S67: 0.159027605 | T67: 18149.95 | U67: 12111.23 | V67: 6038.72 | W67: 0.4986050137 | Y67: | | Z67: 6753.48 | AA67: 6982.76 | AB67: 6641.33 | AC67: 6740.54 | AD67: 5826.85 | AE67: | | AF67: -0.03283515401 | AG67: 0.05140988326 | AH67: -0.01471840535 | AI67: 0.156806851 | AJ67: | | AK67: -1 | AL67: 0 | AM67: T
Y68: | | AE68: | | AJ68: | | AL68: 0
A69: T | C69: Total Other (Income)Expenses | D69: 2259.83 | E69: 2157.25 | F69: 102.58 | G69: 0.04755128057 | H69: 2259.83 | I69: 1972.61 | J69: 287.22 | K69: 0.1456040474 | L69: 6753.48 | M69: 6982.76 | N69: -229.28 | O69: -0.03283515401 | P69: 6753.48 | Q69: 5826.85 | R69: 926.63 | S69: 0.159027605 | T69: 18149.95 | U69: 12111.23 | V69: 6038.72 | W69: 0.4986050137 | Y69: | | Z69: 6753.48 | AA69: 6982.76 | AB69: 6641.33 | AC69: 6740.54 | AD69: 5826.85 | AE69: | | AF69: -0.03283515401 | AG69: 0.05140988326 | AH69: -0.01471840535 | AI69: 0.156806851 | AJ69: | | AK69: -1 | AL69: 1 | AM69: T
Y70: | | AE70: | | AJ70: | | AL70: 0
A71: T | C71: Net Income(Loss) B4 Depr/Amort. | D71: 29776.28 | E71: 27976.94 | F71: 1799.34 | G71: 0.06431511094 | H71: 29776.28 | I71: 21641.67 | J71: 8134.61 | K71: 0.3758771851 | L71: 88716.97 | M71: 87842.39 | N71: 874.58 | O71: 0.009956240945 | P71: 88716.97 | Q71: 71654.26 | R71: 17062.71 | S71: 0.238125549 | T71: 234571.5 | U71: 173732.86 | V71: 60838.64 | W71: 0.3501849909 | Y71: | | Z71: 88716.97 | AA71: 87842.39 | AB71: 87834.36 | AC71: 82755.37 | AD71: 71654.26 | AE71: | | AF71: 0.009956240945 | AG71: 9.142208129e-05 | AH71: 0.06137353987 | AI71: 0.1549260295 | AJ71: | | AK71: -1 | AL71: 0 | AM71: T
Y72: | | AE72: | | AJ72: | | AL72: 0
A73: T | C73: Net Income (Loss) | D73: 29776.28 | E73: 27976.94 | F73: 1799.34 | G73: 0.06431511094 | H73: 29776.28 | I73: 21641.67 | J73: 8134.61 | K73: 0.3758771851 | L73: 88716.97 | M73: 87842.39 | N73: 874.58 | O73: 0.009956240945 | P73: 88716.97 | Q73: 71654.26 | R73: 17062.71 | S73: 0.238125549 | T73: 234571.5 | U73: 173732.86 | V73: 60838.64 | W73: 0.3501849909 | Y73: | | Z73: 88716.97 | AA73: 87842.39 | AB73: 87834.36 | AC73: 82755.37 | AD73: 71654.26 | AE73: | | AF73: 0.009956240945 | AG73: 9.142208129e-05 | AH73: 0.06137353987 | AI73: 0.1549260295 | AJ73: | | AK73: -1 | AL73: 2 | AM73: T
A74: T | C74: Net Operating Income(Loss) | D74: 32036.11 | E74: 30134.19 | F74: 1901.92 | G74: 0.06311501985 | H74: 32036.11 | I74: 23614.28 | J74: 8421.83 | K74: 0.3566414051 | L74: 95470.45 | M74: 94825.15 | N74: 645.3 | O74: 0.006805156649 | P74: 95470.45 | Q74: 77481.11 | R74: 17989.34 | S74: 0.2321771074 | T74: 252721.45 | U74: 185844.09 | V74: 66877.36 | W74: 0.3598573406 | Y74: | | Z74: 95470.45 | AA74: 94825.15 | AB74: 94475.69 | AC74: 89495.91 | AD74: 77481.11 | AE74: | | AF74: 0.006805156649 | AG74: 0.003698940966 | AH74: 0.05564254277 | AI74: 0.1550674739 | AJ74: | | AK74: -1 | AM74: T
A75: T | C75: Adjusted Net Operating Income (Loss) | D75: 32036.11 | E75: 30134.19 | F75: 1901.92 | G75: 0.06311501985 | H75: 32036.11 | I75: 23614.28 | J75: 8421.83 | K75: 0.3566414051 | L75: 95470.45 | M75: 94825.15 | N75: 645.3 | O75: 0.006805156649 | P75: 95470.45 | Q75: 77481.11 | R75: 17989.34 | S75: 0.2321771074 | T75: 252721.45 | U75: 185844.09 | V75: 66877.36 | W75: 0.3598573406 | Y75: | | Z75: 95470.45 | AA75: 94825.15 | AB75: 94475.69 | AC75: 89495.91 | AD75: 77481.11 | AE75: | | AF75: 0.006805156649 | AG75: 0.003698940966 | AH75: 0.05564254277 | AI75: 0.1550674739 | AJ75: | | AK75: -1 | AM75: T
Y76: | | AE76: | | AJ76: |

Sheet CPL
A1: 08/01/2025 | C1: Sonida Senior Living, Inc | O1: Run Date/Time: | P1: 2025-09-15T13:33:58.407
C2: Category P&L 13 Month Report
C3: KDC Properties (m1618)
C5: ="Cur Per Ending "&TEXT(EOMONTH(A1,0),"MMMM DD, YYYY") -> Cur Per Ending August 31, 2025 | D5: =MONTH(D6) -> 8 | E5: 9 | F5: 10 | G5: 11 | H5: 12 | I5: 1 | J5: 2 | K5: 3 | L5: 4 | M5: 5 | N5: 6 | O5: 7 | P5: 8
C6: Month - Year | D6: Aug-24 | E6: Sep-24 | F6: Oct-24 | G6: Nov-24 | H6: Dec-24 | I6: Jan-25 | J6: Feb-25 | K6: Mar-25 | L6: Apr-25 | M6: May-25 | N6: Jun-25 | O6: Jul-25 | P6: Aug-25
C8: Units Occupied | Q8: H
C9: Independent Living Occupied | D9: 10.8065 | E9: 11 | F9: 11.5161 | G9: 12 | H9: 12 | I9: 12.0323 | J9: 12 | K9: 12 | L9: 12 | M9: 12 | N9: 12 | O9: 11.1613 | P9: 11.9032 | Q9: R
C10: Assisted Living Occupied | D10: 0 | E10: 0 | F10: 0 | G10: 0 | H10: 0 | I10: 0 | J10: 0 | K10: 0 | L10: 0 | M10: 0 | N10: 0 | O10: 0 | P10: 0 | Q10: R
C11: Memory Care Occupied | D11: 0 | E11: 0 | F11: 0 | G11: 0 | H11: 0 | I11: 0 | J11: 0 | K11: 0 | L11: 0 | M11: 0 | N11: 0 | O11: 0 | P11: 0 | Q11: R
C12: Total Units Occupied | D12: 10.8065 | E12: 11 | F12: 11.5161 | G12: 12 | H12: 12 | I12: 12.0323 | J12: 12 | K12: 12 | L12: 12 | M12: 12 | N12: 12 | O12: 11.1613 | P12: 11.9032 | Q12: T
C13: Units Available | Q13: H
C14: Independent Living Available | D14: 12 | E14: 12 | F14: 12 | G14: 12 | H14: 12 | I14: 12 | J14: 12 | K14: 12 | L14: 12 | M14: 12 | N14: 12 | O14: 12 | P14: 12 | Q14: R
C15: Assisted Living Available | D15: 0 | E15: 0 | F15: 0 | G15: 0 | H15: 0 | I15: 0 | J15: 0 | K15: 0 | L15: 0 | M15: 0 | N15: 0 | O15: 0 | P15: 0 | Q15: R
C16: Memory Care Available | D16: 0 | E16: 0 | F16: 0 | G16: 0 | H16: 0 | I16: 0 | J16: 0 | K16: 0 | L16: 0 | M16: 0 | N16: 0 | O16: 0 | P16: 0 | Q16: R
C17: Total Units Available | D17: 12 | E17: 12 | F17: 12 | G17: 12 | H17: 12 | I17: 12 | J17: 12 | K17: 12 | L17: 12 | M17: 12 | N17: 12 | O17: 12 | P17: 12 | Q17: T
C18: % Occupied | Q18: H | R18: %
C19: Independent Living % Occupied | D19: 0.900541 | E19: 0.916666 | F19: 0.959675 | G19: 1 | H19: 1 | I19: 1.002691 | J19: 1 | K19: 1 | L19: 1 | M19: 1 | N19: 1 | O19: 0.930108 | P19: 0.991933 | Q19: R | R19: %
C20: Assisted Living % Occupied | D20: 0 | E20: 0 | F20: 0 | G20: 0 | H20: 0 | I20: 0 | J20: 0 | K20: 0 | L20: 0 | M20: 0 | N20: 0 | O20: 0 | P20: 0 | Q20: R | R20: %
C21: Memory Care % Occupied | D21: 0 | E21: 0 | F21: 0 | G21: 0 | H21: 0 | I21: 0 | J21: 0 | K21: 0 | L21: 0 | M21: 0 | N21: 0 | O21: 0 | P21: 0 | Q21: R | R21: %
C22: Total % Occupied | D22: 0.900541 | E22: 0.916666 | F22: 0.959675 | G22: 1 | H22: 1 | I22: 1.002691 | J22: 1 | K22: 1 | L22: 1 | M22: 1 | N22: 1 | O22: 0.930108 | P22: 0.991933 | Q22: T | R22: %
C23: Monthly Rent per Unit (AVG.) | Q23: H | R23: $
C24: Independent Living Rent per Unit | D24: 3042.315273 | E24: 3229.727272 | F24: 3268.739416 | G24: 3302.25 | H24: 3118.916666 | I24: 2903.422454 | J24: 3210.583333 | K24: 3358.275 | L24: 3290.833333 | M24: 3290.833333 | N24: 3290.833333 | O24: 3220.313941 | P24: 3195.752402 | Q24: R | R24: $
C25: Assisted Living Rent per Unit | Q25: R | R25: $
C26: Memory Care Rent per Unit | Q26: R | R26: $
C27: Total Monthly Rent per Unit (AVG.) | D27: 3042.315273 | E27: 3229.727272 | F27: 3268.739416 | G27: 3277.25 | H27: 3143.916666 | I27: 2907.577936 | J27: 3214.75 | K27: 3362.441666 | L27: 3295 | M27: 3045 | N27: 3245 | O27: 3221.326368 | P27: 3164.18106 | Q27: T | R27: $
A29: H | C29: Revenue | D29: 0 | E29: 0 | F29: 0 | G29: 0 | H29: 0 | I29: 0 | J29: 0 | K29: 0 | L29: 0 | M29: 0 | N29: 0 | O29: 0 | P29: 0 | Q29: -1 | R29: 0 | S29: H
A30: R | B30: 401000 | C30: IL Rent | D30: 31646.35 | E30: 32227 | F30: 33775.39 | G30: 35227 | H30: 35227 | I30: 35227 | J30: 35227 | K30: 33190 | L30: 36190 | M30: 36190 | N30: 36190 | O30: 33623.55 | P30: 35839.68 | Q30: 0 | R30: 0 | S30: R
A31: T | C31: IL Rent | D31: 31646.35 | E31: 32227 | F31: 33775.39 | G31: 35227 | H31: 35227 | I31: 35227 | J31: 35227 | K31: 33190 | L31: 36190 | M31: 36190 | N31: 36190 | O31: 33623.55 | P31: 35839.68 | Q31: -1 | R31: 0 | S31: T
A32: R | B32: 401400 | C32: IL Rent - Second Resident | D32: 1730.43 | E32: 3300 | F32: 3867.74 | G32: 4400 | H32: 3300 | I32: -292.15 | J32: 3300 | K32: 7109.3 | L32: 3300 | M32: 3300 | N32: 3300 | O32: 2377.42 | P32: 2200 | Q32: 0 | R32: 0 | S32: R
A33: T | C33: IL Rent 2nd Resident | D33: 1730.43 | E33: 3300 | F33: 3867.74 | G33: 4400 | H33: 3300 | I33: -292.15 | J33: 3300 | K33: 7109.3 | L33: 3300 | M33: 3300 | N33: 3300 | O33: 2377.42 | P33: 2200 | Q33: -1 | R33: 0 | S33: T
A34: R | B34: 401200 | C34: IL Rent Concessions | D34: -500 | H34: -1100 | O34: -58.08 | Q34: 0 | R34: 0 | S34: R
A35: T | C35: IL Rent Concessions | D35: -500 | E35: 0 | F35: 0 | G35: 0 | H35: -1100 | I35: 0 | J35: 0 | K35: 0 | L35: 0 | M35: 0 | N35: 0 | O35: -58.08 | P35: 0 | Q35: -1 | R35: 0 | S35: T
A36: R | B36: 440340 | C36: Community Fee | Q36: 0 | R36: 0 | S36: R
A37: T | C37: Community Fees | D37: 0 | E37: 0 | F37: 0 | G37: 0 | H37: 0 | I37: 0 | J37: 0 | K37: 0 | L37: 0 | M37: 0 | N37: 0 | O37: 0 | P37: 0 | Q37: -1 | R37: 0 | S37: T
A38: R | B38: 441340 | C38: Meals - Refunds | G38: -300 | H38: 300 | M38: -3000 | N38: -600 | O38: -38.7 | P38: -425.8 | Q38: 0 | R38: 0 | S38: R
A39: R | B39: 441500 | C39: Other Income | I39: 50 | J39: 50 | K39: 50 | L39: 50 | M39: 50 | N39: 50 | O39: 50 | P39: 50 | Q39: 0 | R39: 0 | S39: R
A40: R | B40: 441650 | C40: Pet Fees | Q40: 0 | R40: 0 | S40: R
A41: T | C41: Other Income | D41: 0 | E41: 0 | F41: 0 | G41: -300 | H41: 300 | I41: 50 | J41: 50 | K41: 50 | L41: 50 | M41: -2950 | N41: -550 | O41: 11.3 | P41: -375.8 | Q41: -1 | R41: 0 | S41: T
R42: 0
A43: T | C43: Total Revenue | D43: 32876.78 | E43: 35527 | F43: 37643.13 | G43: 39327 | H43: 37727 | I43: 34984.85 | J43: 38577 | K43: 40349.3 | L43: 39540 | M43: 36540 | N43: 38940 | O43: 35954.19 | P43: 37663.88 | Q43: -1 | R43: 1 | S43: T
A44: H | C44: Operating Expenses | D44: 0 | E44: 0 | F44: 0 | G44: 0 | H44: 0 | I44: 0 | J44: 0 | K44: 0 | L44: 0 | M44: 0 | N44: 0 | O44: 0 | P44: 0 | Q44: -1 | R44: 0 | S44: H
A45: R | B45: 500570 | C45: Labor - Other | D45: 450 | E45: 450 | F45: 450 | G45: 450 | H45: 450 | I45: 450 | J45: 450 | K45: 450 | L45: 450 | M45: 450 | N45: 450 | O45: 450 | P45: 450 | Q45: 0 | R45: 0 | S45: R
A46: T | C46: Direct Labor | D46: 450 | E46: 450 | F46: 450 | G46: 450 | H46: 450 | I46: 450 | J46: 450 | K46: 450 | L46: 450 | M46: 450 | N46: 450 | O46: 450 | P46: 450 | Q46: -1 | R46: 0 | S46: T
A47: T | C47: Labor Categories Combined | D47: 450 | E47: 450 | F47: 450 | G47: 450 | H47: 450 | I47: 450 | J47: 450 | K47: 450 | L47: 450 | M47: 450 | N47: 450 | O47: 450 | P47: 450 | Q47: -1 | R47: 1 | S47: T
A48: R | B48: 676000 | C48: Food | D48: 8664 | E48: 5400 | F48: 5926.84 | G48: 5760 | H48: 5065.16 | I48: 5208 | J48: 4704 | K48: 5208 | L48: 5040 | M48: 5208 | N48: 5040 | O48: 5208 | P48: 5015.77 | Q48: 0 | R48: 0 | S48: R
A49: T | C49: Food | D49: 8664 | E49: 5400 | F49: 5926.84 | G49: 5760 | H49: 5065.16 | I49: 5208 | J49: 4704 | K49: 5208 | L49: 5040 | M49: 5208 | N49: 5040 | O49: 5208 | P49: 5015.77 | Q49: -1 | R49: 0 | S49: T
A50: R | B50: 790300 | C50: Promotion - Marketing | Q50: 0 | R50: 0 | S50: R
A51: T | C51: Advertising & Promotions | D51: 0 | E51: 0 | F51: 0 | G51: 0 | H51: 0 | I51: 0 | J51: 0 | K51: 0 | L51: 0 | M51: 0 | N51: 0 | O51: 0 | P51: 0 | Q51: -1 | R51: 0 | S51: T
A52: R | B52: 760000 | C52: R & M - Apartments | F52: 4111.88 | L52: 2150 | M52: 2150 | Q52: 0 | R52: 0 | S52: R
A53: T | C53: Repair & Maintenance | D53: 0 | E53: 0 | F53: 4111.88 | G53: 0 | H53: 0 | I53: 0 | J53: 0 | K53: 0 | L53: 2150 | M53: 2150 | N53: 0 | O53: 0 | P53: 0 | Q53: -1 | R53: 0 | S53: T
A54: R | B54: 638200 | C54: Computer - Maintenance Agreeme | M54: 12.15 | N54: -12.15 | Q54: 0 | R54: 0 | S54: R
A55: T | C55: Computer Software/Hosting | D55: 0 | E55: 0 | F55: 0 | G55: 0 | H55: 0 | I55: 0 | J55: 0 | K55: 0 | L55: 0 | M55: 12.15 | N55: -12.15 | O55: 0 | P55: 0 | Q55: -1 | R55: 0 | S55: T
A56: R | B56: 880060 | C56: Utilities - Trash | D56: 148.5 | E56: 148.5 | F56: 162 | G56: 162 | H56: 162 | I56: 162 | J56: 162 | K56: 162 | L56: 162 | M56: 162 | N56: 162 | O56: 162 | P56: 162 | Q56: 0 | R56: 0 | S56: R
A57: T | C57: Utilities | D57: 148.5 | E57: 148.5 | F57: 162 | G57: 162 | H57: 162 | I57: 162 | J57: 162 | K57: 162 | L57: 162 | M57: 162 | N57: 162 | O57: 162 | P57: 162 | Q57: -1 | R57: 0 | S57: T
A58: R | B58: 890010 | C58: Bank Charges | F58: -20 | Q58: 0 | R58: 0 | S58: R
A59: T | C59: Other Expenses | D59: 0 | E59: 0 | F59: -20 | G59: 0 | H59: 0 | I59: 0 | J59: 0 | K59: 0 | L59: 0 | M59: 0 | N59: 0 | O59: 0 | P59: 0 | Q59: -1 | R59: 0 | S59: T
R60: 0
A61: T | C61: Total Operating Expenses | D61: 9262.5 | E61: 5998.5 | F61: 10630.72 | G61: 6372 | H61: 5677.16 | I61: 5820 | J61: 5316 | K61: 5820 | L61: 7802 | M61: 7982.15 | N61: 5639.85 | O61: 5820 | P61: 5627.77 | Q61: -1 | R61: 1 | S61: T
R62: 0
A63: T | C63: Net Operating Income(Loss) | D63: 23614.28 | E63: 29528.5 | F63: 27012.41 | G63: 32955 | H63: 32049.84 | I63: 29164.85 | J63: 33261 | K63: 34529.3 | L63: 31738 | M63: 28557.85 | N63: 33300.15 | O63: 30134.19 | P63: 32036.11 | Q63: -1 | R63: 2 | S63: T
A64: T | C64: NOI Margin | D64: 0.718266 | E64: 0.831156 | F64: 0.717592 | G64: 0.837973 | H64: 0.849519 | I64: 0.833642 | J64: 0.862197 | K64: 0.855759 | L64: 0.80268 | M64: 0.78155 | N64: 0.855165 | O64: 0.838127 | P64: 0.850579 | Q64: -1 | S64: T
A65: H | C65: Non-Operating Expenses | D65: 0 | E65: 0 | F65: 0 | G65: 0 | H65: 0 | I65: 0 | J65: 0 | K65: 0 | L65: 0 | M65: 0 | N65: 0 | O65: 0 | P65: 0 | Q65: -1 | R65: 0 | S65: H
A66: R | B66: 672600 | C66: Fees - Management | D66: 1972.61 | E66: 2131.62 | F66: 2249.3 | G66: 2359.62 | H66: 2227.62 | I66: 2099.09 | J66: 2314.62 | K66: 2420.96 | L66: 2372.4 | M66: 2189.4 | N66: 2336.4 | O66: 2157.25 | P66: 2259.83 | Q66: 0 | R66: 0 | S66: R
A67: T | C67: Management Fees | D67: 1972.61 | E67: 2131.62 | F67: 2249.3 | G67: 2359.62 | H67: 2227.62 | I67: 2099.09 | J67: 2314.62 | K67: 2420.96 | L67: 2372.4 | M67: 2189.4 | N67: 2336.4 | O67: 2157.25 | P67: 2259.83 | Q67: -1 | R67: 0 | S67: T
R68: 0
A69: T | C69: Total Other (Income)Expenses | D69: 1972.61 | E69: 2131.62 | F69: 2249.3 | G69: 2359.62 | H69: 2227.62 | I69: 2099.09 | J69: 2314.62 | K69: 2420.96 | L69: 2372.4 | M69: 2189.4 | N69: 2336.4 | O69: 2157.25 | P69: 2259.83 | Q69: -1 | R69: 1 | S69: T
R70: 0
A71: T | C71: Net Income(Loss) B4 Depr/Amort. | D71: 21641.67 | E71: 27396.88 | F71: 24763.11 | G71: 30595.38 | H71: 29822.22 | I71: 27065.76 | J71: 30946.38 | K71: 32108.34 | L71: 29365.6 | M71: 26368.45 | N71: 30963.75 | O71: 27976.94 | P71: 29776.28 | Q71: -1 | R71: 0 | S71: T
R72: 0
A73: T | C73: Net Income (Loss) | D73: 21641.67 | E73: 27396.88 | F73: 24763.11 | G73: 30595.38 | H73: 29822.22 | I73: 27065.76 | J73: 30946.38 | K73: 32108.34 | L73: 29365.6 | M73: 26368.45 | N73: 30963.75 | O73: 27976.94 | P73: 29776.28 | Q73: -1 | R73: 2 | S73: T
A74: T | C74: Net Operating Income(Loss) | D74: 23614.28 | E74: 29528.5 | F74: 27012.41 | G74: 32955 | H74: 32049.84 | I74: 29164.85 | J74: 33261 | K74: 34529.3 | L74: 31738 | M74: 28557.85 | N74: 33300.15 | O74: 30134.19 | P74: 32036.11 | Q74: -1 | S74: T
A75: T | C75: Adjusted Net Operating Income (Loss) | D75: 23614.28 | E75: 29528.5 | F75: 27012.41 | G75: 32955 | H75: 32049.84 | I75: 29164.85 | J75: 33261 | K75: 34529.3 | L75: 31738 | M75: 28557.85 | N75: 33300.15 | O75: 30134.19 | P75: 32036.11 | Q75: -1 | S75: T

Sheet VAR
C2: MONTHLY OPERATING REVIEW - EXPENSE VARIANCES
C5: Community Name: | D5: KDC Properties (m1618) | H5: Month: | I5: =TEXT(EOMONTH(K5,0),"MMMM YYYY") -> August 2025 | K5: 08/01/2025
C7: Operating Expense Categories | D7: Actuals | E7: Budget | F7: Variance | G7: Variance % | H7: Explanation | I7: Action Plan
C8: Direct Labor | D8: 450 | E8: 0 | F8: -450 | G8: =IFERROR(F8/E8,0) -> 0
C9: Labor - Salary & Wages - Allocated | D9: 0 | E9: 0 | F9: 0 | G9: 0
C10: Other Labor | D10: 0 | E10: 0 | F10: 0 | G10: 0
C11: Contract/Consulting | D11: 0 | E11: 0 | F11: 0 | G11: 0
C12: Vacation | D12: 0 | E12: 0 | F12: 0 | G12: 0
C13: Bonuses | D13: 0 | E13: 0 | F13: 0 | G13: 0
C14: Payroll Taxes | D14: 0 | E14: 0 | F14: 0 | G14: 0
C15: Benefits | D15: 0 | E15: 0 | F15: 0 | G15: 0
C16: Employee Benefits - Allocated | D16: 0 | E16: 0 | F16: 0 | G16: 0
C17: Other Employee Costs | D17: 0 | E17: 0 | F17: 0 | G17: 0
C18: Food | D18: 5015.77 | E18: 0 | F18: -5015.77 | G18: 0
C19: Legal & Professional Fees | D19: 0 | E19: 0 | F19: 0 | G19: 0
C20: Advertising & Promotions | D20: 0 | E20: 0 | F20: 0 | G20: 0
C21: Repair & Maintenance | D21: 0 | E21: 0 | F21: 0 | G21: 0
C22: R & M - Furniture | D22: 0 | E22: 0 | F22: 0 | G22: 0
C23: Service Contracts | D23: 0 | E23: 0 | F23: 0 | G23: 0
C24: Computer Software/Hosting | D24: 0 | E24: 0 | F24: 0 | G24: 0
C25: Computer - Leads | D25: 0 | E25: 0 | F25: 0 | G25: 0
C26: Printing | D26: 0 | E26: 0 | F26: 0 | G26: 0
C27: Postage | D27: 0 | E27: 0 | F27: 0 | G27: 0
C28: Supplies | D28: 0 | E28: 0 | F28: 0 | G28: 0
C29: Utilities | D29: 162 | E29: 0 | F29: -162 | G29: 0
C30: Telephone | D30: 0 | E30: 0 | F30: 0 | G30: 0
C31: Telephone - Fax | D31: 0 | E31: 0 | F31: 0 | G31: 0
C32: Bad Debt | D32: 0 | E32: 0 | F32: 0 | G32: 0
C33: Insurance | D33: 0 | E33: 0 | F33: 0 | G33: 0
C34: Real Estate/CAT Taxes | D34: 0 | E34: 0 | F34: 0 | G34: 0
C35: Other Expenses | D35: 0 | E35: 0 | F35: 0 | G35: 0
C36: Collection Fees | D36: 0 | E36: 0 | F36: 0 | G36: 0
C37: Pursuit Costs | D37: 0 | E37: 0 | F37: 0 | G37: 0
C38: Lease – REIT | D38: 0 | E38: 0 | F38: 0 | G38: 0
C39: Total Operating Expenses | D39: 5627.77 | E39: 0 | F39: -5627.77 | G39: 0

Sheet Exec Summary
C2: MONTHLY OPERATING REVIEW - EXECUTIVE SUMMARY
C5: Community Name: | D5: KDC Properties (m1618) | I5: Month: | J5: =TEXT(L5,"MMMM YYYY") -> August 2025 | L5: 08/01/2025
D7: Current Month | E7: Budget | F7: Difference | G7: Prior Month | H7: Difference | I7: Prior Year Month | J7: Difference
C8: Occupancy % | D8: 0.991933 | E8: 0.916666 | F8: =+D8-E8 -> 0.075267 | G8: 0.930108 | H8: =+D8-G8 -> 0.061825 | I8: 0.900541 | J8: =+D8-I8 -> 0.091392
C9: Avg Rent | D9: 3164.18106 | E9: 0 | F9: 3164.18106 | G9: 3221.326368 | H9: -57.145308 | I9: 3042.315273 | J9: 121.865787
C10: Revenue | D10: =VLOOKUP("Total Revenue",BUD!$C$1:$D$999,2,0) -> 37663.88 | E10: =VLOOKUP("Total Revenue",BUD!$C$1:$E$999,3,0) -> 0 | F10: 37663.88 | G10: =VLOOKUP("Total Revenue",CAT!$C$1:$E$999,3,0) -> 35954.19 | H10: 1709.69 | I10: =VLOOKUP("Total Revenue",CAT!$C$1:$I$999,7,0) -> 32876.78 | J10: 4787.1
C11: Operating Expense | D11: =VLOOKUP("Total Operating Expenses",BUD!$C$1:$D$999,2,0) -> 5627.77 | E11: =VLOOKUP("Total Operating Expenses",BUD!$C$1:$E$999,3,0) -> 0 | F11: 5627.77 | G11: =VLOOKUP("Total Operating Expenses",CAT!$C$1:$E$999,3,0) -> 5820 | H11: -192.23 | I11: =VLOOKUP("Total Operating Expenses",CAT!$C$1:$I$999,7,0) -> 9262.5 | J11: -3634.73 | M11: `
C12: NOI | D12: =VLOOKUP("Net Operating Income(Loss)",BUD!$C$1:$D$999,2,0) -> 32036.11 | E12: =VLOOKUP("Net Operating Income(Loss)",BUD!$C$1:$E$999,3,0) -> 0 | F12: 32036.11 | G12: =VLOOKUP("Net Operating Income(Loss)",CAT!$C$1:$E$999,3,0) -> 30134.19 | H12: 1901.92 | I12: =VLOOKUP("Net Operating Income(Loss)",CAT!$C$1:$I$999,7,0) -> 23614.28 | J12: 8421.83
C13: NOI % | D13: =IFERROR(D12/D10,0) -> 0.8505791225 | E13: 0 | F13: 0.8505791225 | G13: =IFERROR(G12/G10,0) -> 0.8381273504 | H13: 0.0124517721 | I13: =IFERROR(I12/I10,0) -> 0.7182662049 | J13: 0.1323129176
D15: YTD | E15: Budget | F15: Difference | G15: Prior YTD | H15: Difference
C16: Occupancy % | D16: 0.990591 | E16: 0.916666 | F16: =+D16-E16 -> 0.073925 | G16: 0.709338 | H16: =+D16-G16 -> 0.281253
C17: Avg Rent | D17: 3581.395167 | E17: 0 | F17: 3581.395167 | G17: 3308.354849 | H17: 273.040318
C18: Revenue | D18: =VLOOKUP("Total Revenue",CAT!$C$1:$T$999,18,0) -> 302549.22 | E18: =VLOOKUP("Total Revenue",BUD!$C$1:$AK$999,35,0) -> 0 | F18: 302549.22 | G18: =VLOOKUP("Total Revenue",CAT!$C$1:$U$999,19,0) -> 221990.59 | H18: 80558.63
C19: Operating Expense | D19: =VLOOKUP("Total Operating Expenses",CAT!$C$1:$T$999,18,0) -> 49827.77 | E19: =VLOOKUP("Total Operating Expenses",BUD!$C$1:$AK$999,35,0) -> 0 | F19: 49827.77 | G19: =VLOOKUP("Total Operating Expenses",CAT!$C$1:$U$999,19,0) -> 36146.5 | H19: 13681.27
C20: NOI | D20: =VLOOKUP("Net Operating Income(Loss)",CAT!$C$1:$T$999,18,0) -> 252721.45 | E20: =VLOOKUP("Net Operating Income(Loss)",BUD!$C$1:$AK$999,35,0) -> 0 | F20: 252721.45 | G20: =VLOOKUP("Net Operating Income(Loss)",CAT!$C$1:$U$999,19,0) -> 185844.09 | H20: 66877.36
C21: NOI % | D21: =IFERROR(D20/D18,0) -> 0.8353068965 | E21: 0 | F21: 0.8353068965 | G21: =IFERROR(G20/G18,0) -> 0.837171026 | H21: -0.001864129522
D23: IL | E23: AL | F23: MC | G23: Total
C24: Move-Ins | D24: 1 | E24: 0 | F24: 0 | G24: =+D24+E24+F24 -> 1
C25: Move-Outs | G25: 0
C26: Net | D26: =+D24-D25 -> 1 | E26: 0 | F26: 0 | G26: 1
C28: People
C29: Describe action steps with retention, new hires and recruitment efforts, key open positions, and Relias compliance
C35: Quality & Service, Regulatory, Clinical Care Management
C36: High-level report on regulatory activity, clinical outcomes (falls, wounds, rehospitalizations), incident reporting, actions to improve outcomes and resident satisfaction
C43: Growth
C44: Top 3 growth activities | F44: Outcome
C45: 1) | F45: 1)
C46: 2) | F46: 2)
C47: 3) | F47: 3)
C48: Additional Comments and Short-Term Outlook:
C52: Expense Management
C53: Top 3 areas of focus | F53: Outcome
C54: 1) | F54: 1)
C55: 2) | F55: 2)
C56: 3) | F56: 3)
C57: Additional Comments:
C61: Capital Expenditures
C62: List any outstanding needs:
